Body Name,Organisatonal Unit,Expenditure Category,Expenditure Code,Paid Date,Trans No,Amount,Type,Supplier ID,Supplier Name
Oxford City Council,Financial Services,Grants,D3701,07/04/2015,46285340_1,1054.11,Revenue,20000000_46285340,Redacted personal data
Oxford City Council,Financial Services,Grants,D3701,07/04/2015,46285341_1,1255.18,Revenue,20000000_46285341,Redacted personal data
Oxford City Council,Housing and Property,Reactive Maintenance & Minor Repairs,B1101,07/04/2015,46285354_1,8310.6,Revenue,20000000_46285354,THE EYRE ESTATE INVESTMENT FUND
Oxford City Council,Direct Services,Grants,D3701,01/04/2015,46285364_1,866.34,Revenue,20000000_46285364,BARRACKS LANE ALLOTMNET
Oxford City Council,Direct Services,Grants,D3701,01/04/2015,46285377_1,500,Revenue,20000000_46285377,OXFORD & DISTRICT FEDERATION OF ALLOTMENT ASSOCIATIONS
Oxford City Council,Organisational Development,Short Courses,A0622,07/04/2015,46285393_1,1100,Revenue,20000000_46285393,YOUNG PROGRAMME EVENTS LTD
Oxford City Council,Financial Services,Grants,D3701,21/04/2015,46285526_1,5000,Revenue,20000000_46285526,Redacted personal data
Oxford City Council,Direct Services,Pitch & Site Rents,K9534,21/04/2015,46285562_1,750,Revenue,20000000_46285562,OXFORDSHIRE SCIENCE FESTIVAL
Oxford City Council,Financial Services,Grants,D3701,28/04/2015,46285617_1,3488.1,Revenue,20000000_46285617,Redacted personal data
Oxford City Council,Financial Services,Grants,D3701,28/04/2015,46285637_1,4986,Revenue,20000000_46285637,Redacted personal data
Oxford City Council,Community Services,Contributions,D3702,06/05/2015,46285718_1,500,Revenue,20000000_46285718,WOLVERCOTE LUNCH CLUB
Oxford City Council,Suspense,Creditors - BACS,J8810,06/05/2015,46285719_1,1000,Revenue,20000000_46285719,Isis Academy
Oxford City Council,Financial Services,Grants,D3701,12/05/2015,46285722_1,1229.17,Revenue,20000000_46285722,Redacted personal data
Oxford City Council,Financial Services,Grants,D3701,12/05/2015,46285736_1,4082.4,Revenue,20000000_46285736,Redacted personal data
Oxford City Council,Suspense,Property Rents/Income,K9550,12/05/2015,46285766_1,11250,Revenue,20000000_46285766,STARWHITE LTD
Oxford City Council,Planning & Regulatory,Services - General Fees,K9501,19/05/2015,46285827_1,2500,Revenue,20000000_46285827,JHP (EXETER) LTD
Oxford City Council,Suspense,Creditors - BACS,J8810,19/05/2015,46285828_1,2747.55,Revenue,20000000_46285828,NHS PROPERTY SERVICES LTD
Oxford City Council,Business Improvement,Conferences,D3602,19/05/2015,46285833_1,950,Revenue,20000000_46285833,IMPARTURE LTD
Oxford City Council,Financial Services,Grants,D3701,09/06/2015,46286100_1,4479.99,Revenue,20000000_46286100,Redacted personal data
Oxford City Council,Financial Services,Grants,D3701,09/06/2015,46286101_1,10000,Revenue,20000000_46286101,EDWIN COURT RESIDENTS ASSOCIATION
Oxford City Council,Financial Services,Grants,D3701,09/06/2015,46286102_1,4926.63,Revenue,20000000_46286102,Redacted personal data
Oxford City Council,Financial Services,Grants,D3701,09/06/2015,46286104_1,2026.37,Revenue,20000000_46286104,Redacted personal data
Oxford City Council,Financial Services,Grants,D3701,09/06/2015,46286105_1,5000,Revenue,20000000_46286105,Redacted personal data
Oxford City Council,Financial Services,Grants,D3701,09/06/2015,46286106_1,2516.48,Revenue,20000000_46286106,Redacted personal data
Oxford City Council,Financial Services,Grants,D3701,09/06/2015,46286107_1,5000,Revenue,20000000_46286107,Redacted personal data
Oxford City Council,Direct Services,Consultants Fees,D3411,09/06/2015,46286110_1,884,Revenue,20000000_46286110,MMI ASSOCIATES
Oxford City Council,Direct Services,General Contracted Services,D3401,09/06/2015,46286111_1,2465,Revenue,20000000_46286111,MMI ASSOCIATES LTD
Oxford City Council,Direct Services,General Contracted Services,D3401,09/06/2015,46286113_1,1306,Revenue,20000000_46286113,MMI ASSOCIATES LTD
Oxford City Council,Community Services,Pitch & Site Rents,K9534,09/06/2015,46286115_1,1500,Revenue,20000000_46286115,EXTREME EVENTS EUROPE LTD
Oxford City Council,Community Services,Pitch & Site Rents,K9534,09/06/2015,46286116_1,500,Revenue,20000000_46286116,CHARITY LINK
Oxford City Council,Financial Services,General Contracted Services,D3401,09/06/2015,46286159_1,1332.4,Revenue,20000000_46286159,LEXIS NEXIS
Oxford City Council,Community Services,Pitch & Site Rents,K9534,16/06/2015,46286276_1,1500,Revenue,20000000_46286276,OXFORD ROUND TABLE CAHRITABLE TRUST
Oxford City Council,Direct Services,Hire Of Premises/Temp Accom,B1820,16/06/2015,46286279_1,939.68,Revenue,20000000_46286279,ODFAA
Oxford City Council,Financial Services,Grants,D3701,16/06/2015,46286281_1,5000,Revenue,20000000_46286281,Redacted personal data
Oxford City Council,Financial Services,Grants,D3701,23/06/2015,46286318_1,5000,Revenue,20000000_46286318,Redacted personal data
Oxford City Council,Financial Services,Grants,D3701,23/06/2015,46286320_1,5000,Revenue,20000000_46286320,Redacted personal data
Oxford City Council,Direct Services,Other Miscellaneous Expenses,D3811,23/06/2015,46286341_1,1000,Revenue,20000000_46286341,Redacted personal data
Oxford City Council,Financial Services,Grants,D3701,23/06/2015,46286342_1,5000,Revenue,20000000_46286342,Redacted personal data
Oxford City Council,Financial Services,Grants,D3701,23/06/2015,46286343_1,975.69,Revenue,20000000_46286343,Redacted personal data
Oxford City Council,Financial Services,Grants,D3701,23/06/2015,46286344_1,4155.6,Revenue,20000000_46286344,Redacted personal data
Oxford City Council,Financial Services,Grants,D3701,23/06/2015,46286348_1,4972.8,Revenue,20000000_46286348,Redacted personal data
Oxford City Council,Planning & Regulatory,Compensation,D3805,30/06/2015,46286405_1,109121.9,Revenue,20000000_46286405,BEVAN BRITTAN LLP
Oxford City Council,Housing and Property,Rent Allowance Cheques (Home Choice),F5033,07/04/2015,46285336_1,595,Revenue,20000010_46285336,Redacted personal data
Oxford City Council,Housing and Property,Rent Allowance Cheques (Home Choice),F5033,07/04/2015,46285343_1,623,Revenue,20000010_46285343,LEE & LINDARS
Oxford City Council,Housing and Property,Rent Allowance Cheques (Home Choice),F5033,07/04/2015,46285344_1,925,Revenue,20000010_46285344,LETSCO
Oxford City Council,Housing and Property,Rent Allowance Cheques (Home Choice),F5033,07/04/2015,46285345_1,684,Revenue,20000010_46285345,Redacted personal data
Oxford City Council,Housing and Property,Rent Allowance Cheques (Home Choice),F5033,21/04/2015,46285502_1,1730,Revenue,20000010_46285502,Redacted personal data
Oxford City Council,HRA,Special Events,D3807,21/04/2015,46285516_1,686.98,Revenue,20000010_46285516,Redacted personal data
Oxford City Council,HRA,Special Events,D3807,21/04/2015,46285517_1,1082.77,Revenue,20000010_46285517,Redacted personal data
Oxford City Council,Housing and Property,Rent Allowance Cheques (Home Choice),F5033,28/04/2015,46285604_1,616,Revenue,20000010_46285604,Redacted personal data
Oxford City Council,Housing and Property,Rent Allowance Cheques (Home Choice),F5033,28/04/2015,46285605_1,1122,Revenue,20000010_46285605,Redacted personal data
Oxford City Council,Housing and Property,Rent Allowance Cheques (Home Choice),F5033,28/04/2015,46285606_1,1063.56,Revenue,20000010_46285606,Redacted personal data
Oxford City Council,Housing and Property,Rent Allowance Cheques (Home Choice),F5033,28/04/2015,46285607_1,1850,Revenue,20000010_46285607,Redacted personal data
Oxford City Council,Housing and Property,Rent Allowance Cheques (Home Choice),F5033,28/04/2015,46285608_1,925,Revenue,20000010_46285608,Redacted personal data
Oxford City Council,Housing and Property,Rent Allowance Cheques (Home Choice),F5033,28/04/2015,46285609_1,900,Revenue,20000010_46285609,Redacted personal data
Oxford City Council,Housing and Property,Rent Allowance Cheques (Home Choice),F5033,28/04/2015,46285611_1,763.56,Revenue,20000010_46285611,Redacted personal data
Oxford City Council,Housing and Property,Rent Allowance Cheques (Home Choice),F5033,28/04/2015,46285612_1,1800,Revenue,20000010_46285612,Redacted personal data
Oxford City Council,Housing and Property,Rent Allowance Cheques (Home Choice),F5033,28/04/2015,46285613_1,943.56,Revenue,20000010_46285613,Redacted personal data
Oxford City Council,Housing and Property,Rent Allowance Cheques (Home Choice),F5033,28/04/2015,46285614_1,1021.15,Revenue,20000010_46285614,Redacted personal data
Oxford City Council,Housing and Property,Rent Allowance Cheques (Home Choice),F5033,28/04/2015,46285615_1,550,Revenue,20000010_46285615,Redacted personal data
Oxford City Council,Housing and Property,Rent Allowance Cheques (Home Choice),F5033,06/05/2015,46285669_1,1200,Revenue,20000010_46285669,Redacted personal data
Oxford City Council,Housing and Property,Rent Allowance Cheques (Home Choice),F5033,06/05/2015,46285672_1,1500,Revenue,20000010_46285672,GRANDE PROPERTY SERVICES
Oxford City Council,Housing and Property,Rent Allowance Cheques (Home Choice),F5033,06/05/2015,46285674_1,2300,Revenue,20000010_46285674,GRANDE PROPERT SERVICES
Oxford City Council,Housing and Property,Rent Allowance Cheques (Home Choice),F5033,06/05/2015,46285676_1,1242.6,Revenue,20000010_46285676,Redacted personal data
Oxford City Council,Housing and Property,Rent Allowance Cheques (Home Choice),F5033,06/05/2015,46285681_1,1850,Revenue,20000010_46285681,Redacted personal data
Oxford City Council,Housing and Property,Rent Allowance Cheques (Home Choice),F5033,06/05/2015,46285682_1,925,Revenue,20000010_46285682,Redacted personal data
Oxford City Council,Housing and Property,Rent Allowance Cheques (Home Choice),F5033,06/05/2015,46285683_1,1091.04,Revenue,20000010_46285683,Redacted personal data
Oxford City Council,Housing and Property,Rent Allowance Cheques (Home Choice),F5033,06/05/2015,46285685_1,900,Revenue,20000010_46285685,Redacted personal data
Oxford City Council,Housing and Property,Rent Allowance Cheques (Home Choice),F5033,06/05/2015,46285711_1,1232.76,Revenue,20000010_46285711,Redacted personal data
Oxford City Council,Housing and Property,Rent Allowance Cheques (Home Choice),F5033,06/05/2015,46285713_1,1150,Revenue,20000010_46285713,Grande Property Services
Oxford City Council,Housing and Property,Rent Allowance Cheques (Home Choice),F5033,12/05/2015,46285741_1,1091.04,Revenue,20000010_46285741,MORGAN CARVER & ALDWORTH
Oxford City Council,Housing and Property,Rent Allowance Cheques (Home Choice),F5033,12/05/2015,46285742_1,1091.04,Revenue,20000010_46285742,MORGAN CARVER & ALDWORTH
Oxford City Council,Housing and Property,Rent Allowance Cheques (Home Choice),F5033,12/05/2015,46285743_1,1091.04,Revenue,20000010_46285743,ADMIRAL HOMES
Oxford City Council,Housing and Property,Rent Allowance Cheques (Home Choice),F5033,12/05/2015,46285744_1,1091.04,Revenue,20000010_46285744,ADMIRAL HOMES
Oxford City Council,Housing and Property,Rent Allowance Cheques (Home Choice),F5033,12/05/2015,46285745_1,1091.04,Revenue,20000010_46285745,Redacted personal data
Oxford City Council,Housing and Property,Rent Allowance Cheques (Home Choice),F5033,12/05/2015,46285767_1,900,Revenue,20000010_46285767,Redacted personal data
Oxford City Council,Housing and Property,Rent Allowance Cheques (Home Choice),F5033,19/05/2015,46285775_1,1500,Revenue,20000010_46285775,BLUESTONE LETTINGS & MANAGEMENT LTD
Oxford City Council,Housing and Property,Rent Allowance Cheques (Home Choice),F5033,19/05/2015,46285775_2,1000,Revenue,20000010_46285775,BLUESTONE LETTINGS & MANAGEMENT LTD
Oxford City Council,Housing and Property,Rent Allowance Cheques (Home Choice),F5033,19/05/2015,46285775_3,180,Revenue,20000010_46285775,BLUESTONE LETTINGS & MANAGEMENT LTD
Oxford City Council,Housing and Property,Rent Allowance Cheques (Home Choice),F5033,19/05/2015,46285776_1,1125,Revenue,20000010_46285776,Redacted personal data
Oxford City Council,Housing and Property,Rent Allowance Cheques (Home Choice),F5033,19/05/2015,46285776_2,750,Revenue,20000010_46285776,Redacted personal data
Oxford City Council,Housing and Property,Rent Allowance Cheques (Home Choice),F5033,19/05/2015,46285776_3,210,Revenue,20000010_46285776,Redacted personal data
Oxford City Council,Housing and Property,Rent Allowance Cheques (Home Choice),F5033,19/05/2015,46285776_4,105,Revenue,20000010_46285776,Redacted personal data
Oxford City Council,Housing and Property,Rent Allowance Cheques (Home Choice),F5033,19/05/2015,46285818_1,1099.24,Revenue,20000010_46285818,Redacted personal data
Oxford City Council,Housing and Property,Rent Allowance Cheques (Home Choice),F5033,19/05/2015,46285819_1,791.04,Revenue,20000010_46285819,Redacted personal data
Oxford City Council,Housing and Property,Rent Allowance Cheques (Home Choice),F5033,19/05/2015,46285821_1,564,Revenue,20000010_46285821,Redacted personal data
Oxford City Council,Housing and Property,Rent Allowance Cheques (Home Choice),F5033,19/05/2015,46285822_1,534,Revenue,20000010_46285822,LETSCO
Oxford City Council,HRA,Special Events,D3807,27/05/2015,46285906_1,1194.76,Revenue,20000010_46285906,Redacted personal data
Oxford City Council,HRA,Special Events,D3807,27/05/2015,46285907_1,1119.82,Revenue,20000010_46285907,Redacted personal data
Oxford City Council,Housing and Property,Rent Allowance Cheques (Home Choice),F5033,27/05/2015,46285909_1,791.04,Revenue,20000010_46285909,Redacted personal data
Oxford City Council,Housing and Property,Rent Allowance Cheques (Home Choice),F5033,27/05/2015,46285910_1,1575,Revenue,20000010_46285910,Redacted personal data
Oxford City Council,Housing and Property,Rent Allowance Cheques (Home Choice),F5033,27/05/2015,46285911_1,731.04,Revenue,20000010_46285911,Redacted personal data
Oxford City Council,Housing and Property,Rent Allowance Cheques (Home Choice),F5033,27/05/2015,46285939_1,791.04,Revenue,20000010_46285939,Redacted personal data
Oxford City Council,Housing and Property,Rent Allowance Cheques (Home Choice),F5033,27/05/2015,46285945_1,2390,Revenue,20000010_46285945,LEE & LINDARS
Oxford City Council,Housing and Property,Rent Allowance Cheques (Home Choice),F5033,27/05/2015,46285951_1,880.37,Revenue,20000010_46285951,ADMIRAL HOMES
Oxford City Council,HRA,Special Events,D3807,27/05/2015,46285952_1,765.83,Revenue,20000010_46285952,Redacted personal data
Oxford City Council,Housing and Property,Rent Allowance Cheques (Home Choice),F5033,02/06/2015,46286028_1,931.46,Revenue,20000010_46286028,Redacted personal data
Oxford City Council,HRA,Special Events,D3807,02/06/2015,46286029_1,952.35,Revenue,20000010_46286029,Redacted personal data
Oxford City Council,Housing and Property,Rent Allowance Cheques (Home Choice),F5033,02/06/2015,46286032_1,595,Revenue,20000010_46286032,Redacted personal data
Oxford City Council,Housing and Property,Rent Allowance Cheques (Home Choice),F5033,02/06/2015,46286037_1,1175.3,Revenue,20000010_46286037,ANDREWS LETTING & MANAGEMENT
Oxford City Council,Housing and Property,Rent Allowance Cheques (Home Choice),F5033,02/06/2015,46286045_1,1296,Revenue,20000010_46286045,STERLING RESIDENTIAL LETTINGS
Oxford City Council,Housing and Property,Rent Allowance Cheques (Home Choice),F5033,02/06/2015,46286046_1,1944,Revenue,20000010_46286046,STERLING RESIDENTIAL LETTINGS
Oxford City Council,Housing and Property,Rent Allowance Cheques (Home Choice),F5033,02/06/2015,46286049_1,550,Revenue,20000010_46286049,Redacted personal data
Oxford City Council,Housing and Property,Rent Allowance Cheques (Home Choice),F5033,02/06/2015,46286052_1,1500,Revenue,20000010_46286052,Redacted personal data
Oxford City Council,Housing and Property,Rent Allowance Cheques (Home Choice),F5033,02/06/2015,46286053_1,1500,Revenue,20000010_46286053,Redacted personal data
Oxford City Council,Housing and Property,Rent Allowance Cheques (Home Choice),F5033,02/06/2015,46286054_1,2442.6,Revenue,20000010_46286054,Redacted personal data
Oxford City Council,Housing and Property,Rent Allowance Cheques (Home Choice),F5033,02/06/2015,46286055_1,1650,Revenue,20000010_46286055,Redacted personal data
Oxford City Council,Housing and Property,Rent Allowance Cheques (Home Choice),F5033,02/06/2015,46286056_1,834.08,Revenue,20000010_46286056,Redacted personal data
Oxford City Council,Housing and Property,Rent Allowance Cheques (Home Choice),F5033,02/06/2015,46286057_1,900,Revenue,20000010_46286057,Redacted personal data
Oxford City Council,Housing and Property,Rent Allowance Cheques (Home Choice),F5033,02/06/2015,46286059_1,820,Revenue,20000010_46286059,LANDLORD ASSIST
Oxford City Council,Housing and Property,Rent Allowance Cheques (Home Choice),F5033,09/06/2015,46286161_1,550,Revenue,20000010_46286161,Redacted personal data
Oxford City Council,Housing and Property,Rent Allowance Cheques (Home Choice),F5033,09/06/2015,46286171_1,3642.6,Revenue,20000010_46286171,Redacted personal data
Oxford City Council,Housing and Property,Rent Allowance Cheques (Home Choice),F5033,09/06/2015,46286172_1,1100,Revenue,20000010_46286172,Redacted personal data
Oxford City Council,Housing and Property,Rent Allowance Cheques (Home Choice),F5033,09/06/2015,46286173_1,791.04,Revenue,20000010_46286173,Redacted personal data
Oxford City Council,Housing and Property,Rent Allowance Cheques (Home Choice),F5033,16/06/2015,46286270_1,1000,Revenue,20000010_46286270,Redacted personal data
Oxford City Council,Housing and Property,Rent Allowance Cheques (Home Choice),F5033,16/06/2015,46286271_1,1000,Revenue,20000010_46286271,Redacted personal data
Oxford City Council,Housing and Property,Rent Allowance Cheques (Home Choice),F5033,16/06/2015,46286280_1,620,Revenue,20000010_46286280,Redacted personal data
Oxford City Council,Housing and Property,Rent Allowance Cheques (Home Choice),F5033,23/06/2015,46286289_1,600,Revenue,20000010_46286289,Redacted personal data
Oxford City Council,Housing and Property,Rent Allowance Cheques (Home Choice),F5033,23/06/2015,46286290_1,1425,Revenue,20000010_46286290,Redacted personal data
Oxford City Council,Housing and Property,Rent Allowance Cheques (Home Choice),F5033,23/06/2015,46286291_1,806.88,Revenue,20000010_46286291,Cherwell Property Services Ltd. 
Oxford City Council,HRA,Special Events,D3807,23/06/2015,46286316_1,586.36,Revenue,20000010_46286316,Redacted personal data
Oxford City Council,HRA,Special Events,D3807,23/06/2015,46286317_1,1500,Revenue,20000010_46286317,Redacted personal data
Oxford City Council,HRA,Special Events,D3807,23/06/2015,46286322_1,627.95,Revenue,20000010_46286322,Redacted personal data
Oxford City Council,Housing and Property,Rent Allowance Cheques (Home Choice),F5033,30/06/2015,46286379_1,2432.76,Revenue,20000010_46286379,Redacted personal data
Oxford City Council,Housing and Property,Rent Allowance Cheques (Home Choice),F5033,30/06/2015,46286380_1,1000,Revenue,20000010_46286380,Redacted personal data
Oxford City Council,Housing and Property,Rent Allowance Cheques (Home Choice),F5033,30/06/2015,46286385_1,1091.04,Revenue,20000010_46286385,Redacted personal data
Oxford City Council,Housing and Property,Rent Allowance Cheques (Home Choice),F5033,30/06/2015,46286386_1,632.76,Revenue,20000010_46286386,Redacted personal data
Oxford City Council,Housing and Property,Rent Allowance Cheques (Home Choice),F5033,30/06/2015,46286390_1,712.5,Revenue,20000010_46286390,Redacted personal data
Oxford City Council,Housing and Property,Rent Allowance Cheques (Home Choice),F5033,30/06/2015,46286391_1,1260.56,Revenue,20000010_46286391,Redacted personal data
Oxford City Council,Housing and Property,Rent Allowance Cheques (Home Choice),F5033,30/06/2015,46286402_1,600,Revenue,20000010_46286402,Redacted personal data
Oxford City Council,Housing and Property,Rent Allowance Cheques (Home Choice),F5033,30/06/2015,46286437_1,120,Revenue,20000010_46286437,Lee & Lindars
Oxford City Council,Housing and Property,Rent Allowance Cheques (Home Choice),F5033,30/06/2015,46286437_2,1450,Revenue,20000010_46286437,Lee & Lindars
Oxford City Council,Housing and Property,Rent Allowance Cheques (Home Choice),F5033,30/06/2015,46286437_3,840,Revenue,20000010_46286437,Lee & Lindars
Oxford City Council,Housing and Property,Homeless Prevention,D3426,28/04/2015,46285585_1,570,Revenue,20000018_46285585,HOME EXPERTS WORCESTER
Oxford City Council,Housing and Property,Homeless Prevention,D3426,27/05/2015,46285929_1,565,Revenue,20000018_46285929,HOME EXPERTS WORCESTER
Oxford City Council,Housing and Property,Homeless Prevention,D3426,27/05/2015,46285930_1,555,Revenue,20000018_46285930,HOME EXPERTS WORCESTER
Oxford City Council,Housing and Property,Homeless Prevention,D3426,27/05/2015,46285930_2,128.22,Revenue,20000018_46285930,HOME EXPERTS WORCESTER
Oxford City Council,Housing and Property,Homeless Prevention,D3426,27/05/2015,46285931_1,570,Revenue,20000018_46285931,HOME EXPERTS WORCESTER
Oxford City Council,Community Services,Grants,D3701,09/06/2015,46286125_1,700,Revenue,20000019_46286125,OXFORD HINDU TEMPLE & COMMUNITY CENTRE PROJECT
Oxford City Council,Community Services,Grants,D3701,30/06/2015,46286382_1,3500,Revenue,20000019_46286382,INSPIRED YOUNG PEOPLES PROJECT
Oxford City Council,Financial Services,Commission/Discount,K9472,21/04/2015,46285475_1,-0.97,Revenue,20000200,CHAMPION EMPLOYMENT LTD
Oxford City Council,Transformation,Temporary Bureau Staffing,A0108,21/04/2015,46285475_10,2091.95,Revenue,20000200,CHAMPION EMPLOYMENT LTD
Oxford City Council,Transformation,Temporary Bureau Staffing,A0108,21/04/2015,46285475_11,2858.09,Revenue,20000200,CHAMPION EMPLOYMENT LTD
Oxford City Council,Business Improvement,Temporary Bureau Staffing,A0108,21/04/2015,46285475_12,4254.55,Revenue,20000200,CHAMPION EMPLOYMENT LTD
Oxford City Council,Financial Services,Temporary Bureau Staffing,A0108,21/04/2015,46285475_13,2248.38,Revenue,20000200,CHAMPION EMPLOYMENT LTD
Oxford City Council,Financial Services,Temporary Bureau Staffing,A0108,21/04/2015,46285475_14,7894,Revenue,20000200,CHAMPION EMPLOYMENT LTD
Oxford City Council,Business Improvement,Temporary Bureau Staffing,A0108,21/04/2015,46285475_15,1821.72,Revenue,20000200,CHAMPION EMPLOYMENT LTD
Oxford City Council,Financial Services,Temporary Bureau Staffing,A0108,21/04/2015,46285475_16,17602.86,Revenue,20000200,CHAMPION EMPLOYMENT LTD
Oxford City Council,Business Improvement,Temporary Bureau Staffing,A0108,21/04/2015,46285475_17,1373.75,Revenue,20000200,CHAMPION EMPLOYMENT LTD
Oxford City Council,Direct Services,Temporary Bureau Staffing,A0108,21/04/2015,46285475_18,2033.43,Revenue,20000200,CHAMPION EMPLOYMENT LTD
Oxford City Council,Community Services,Temporary Bureau Staffing,A0108,21/04/2015,46285475_19,6291.4,Revenue,20000200,CHAMPION EMPLOYMENT LTD
Oxford City Council,Direct Services,Temporary Bureau Staffing,A0108,21/04/2015,46285475_2,540.67,Revenue,20000200,CHAMPION EMPLOYMENT LTD
Oxford City Council,Planning & Regulatory,Temporary Bureau Staffing,A0108,21/04/2015,46285475_20,6458.75,Revenue,20000200,CHAMPION EMPLOYMENT LTD
Oxford City Council,Community Services,Temporary Bureau Staffing,A0108,21/04/2015,46285475_21,425.55,Revenue,20000200,CHAMPION EMPLOYMENT LTD
Oxford City Council,Planning & Regulatory,Temporary Bureau Staffing,A0108,21/04/2015,46285475_22,3911.68,Revenue,20000200,CHAMPION EMPLOYMENT LTD
Oxford City Council,Planning & Regulatory,Temporary Bureau Staffing,A0108,21/04/2015,46285475_23,3417.61,Revenue,20000200,CHAMPION EMPLOYMENT LTD
Oxford City Council,Planning & Regulatory,Temporary Bureau Staffing,A0108,21/04/2015,46285475_24,10493.55,Revenue,20000200,CHAMPION EMPLOYMENT LTD
Oxford City Council,Planning & Regulatory,Temporary Bureau Staffing,A0108,21/04/2015,46285475_25,2223.95,Revenue,20000200,CHAMPION EMPLOYMENT LTD
Oxford City Council,Planning & Regulatory,Temporary Bureau Staffing,A0108,21/04/2015,46285475_26,7421.9,Revenue,20000200,CHAMPION EMPLOYMENT LTD
Oxford City Council,Housing and Property,Temporary Bureau Staffing,A0108,21/04/2015,46285475_27,1437.51,Revenue,20000200,CHAMPION EMPLOYMENT LTD
Oxford City Council,Housing and Property,Temporary Bureau Staffing,A0108,21/04/2015,46285475_28,6302.5,Revenue,20000200,CHAMPION EMPLOYMENT LTD
Oxford City Council,Housing and Property,Temporary Bureau Staffing,A0108,21/04/2015,46285475_29,1980.72,Revenue,20000200,CHAMPION EMPLOYMENT LTD
Oxford City Council,Direct Services,Temporary Bureau Staffing,A0108,21/04/2015,46285475_3,4085.2,Revenue,20000200,CHAMPION EMPLOYMENT LTD
Oxford City Council,Direct Services,Temporary Bureau Staffing,A0108,21/04/2015,46285475_30,2223.34,Revenue,20000200,CHAMPION EMPLOYMENT LTD
Oxford City Council,Assistant Chief Executive,Main Contractor,Y021,21/04/2015,46285475_31,6883.81,Capital,20000200,CHAMPION EMPLOYMENT LTD
Oxford City Council,Planning & Regulatory,Temporary Bureau Staffing,A0108,21/04/2015,46285475_32,6209.02,Revenue,20000200,CHAMPION EMPLOYMENT LTD
Oxford City Council,Planning & Regulatory,Temporary Bureau Staffing,A0108,21/04/2015,46285475_33,2879.22,Revenue,20000200,CHAMPION EMPLOYMENT LTD
Oxford City Council,Planning & Regulatory,Temporary Bureau Staffing,A0108,21/04/2015,46285475_34,3027.5,Revenue,20000200,CHAMPION EMPLOYMENT LTD
Oxford City Council,Planning & Regulatory,Temporary Bureau Staffing,A0108,21/04/2015,46285475_35,3712,Revenue,20000200,CHAMPION EMPLOYMENT LTD
Oxford City Council,Planning & Regulatory,Temporary Bureau Staffing,A0108,21/04/2015,46285475_36,2204.76,Revenue,20000200,CHAMPION EMPLOYMENT LTD
Oxford City Council,Community Services,Temporary Bureau Staffing,A0108,21/04/2015,46285475_37,1952.1,Revenue,20000200,CHAMPION EMPLOYMENT LTD
Oxford City Council,Law and Governance,Temporary Bureau Staffing,A0108,21/04/2015,46285475_38,1339.2,Revenue,20000200,CHAMPION EMPLOYMENT LTD
Oxford City Council,Assistant Chief Executive,Temporary Bureau Staffing,A0108,21/04/2015,46285475_39,7316.55,Revenue,20000200,CHAMPION EMPLOYMENT LTD
Oxford City Council,Direct Services,Temporary Bureau Staffing,A0108,21/04/2015,46285475_4,1760.56,Revenue,20000200,CHAMPION EMPLOYMENT LTD
Oxford City Council,Assistant Chief Executive,Temporary Bureau Staffing,A0108,21/04/2015,46285475_40,3648.72,Revenue,20000200,CHAMPION EMPLOYMENT LTD
Oxford City Council,Assistant Chief Executive,Temporary Bureau Staffing,A0108,21/04/2015,46285475_41,1374.66,Revenue,20000200,CHAMPION EMPLOYMENT LTD
Oxford City Council,HRA,Main Contractor,y021,21/04/2015,46285475_42,4030,Capital,20000200,CHAMPION EMPLOYMENT LTD
Oxford City Council,HRA,Main Contractor,y021,21/04/2015,46285475_43,3907.45,Capital,20000200,CHAMPION EMPLOYMENT LTD
Oxford City Council,HRA,Temporary Bureau Staffing,A0108,21/04/2015,46285475_44,2493.9,Revenue,20000200,CHAMPION EMPLOYMENT LTD
Oxford City Council,Direct Services,Temporary Bureau Staffing,A0108,21/04/2015,46285475_45,2048.58,Revenue,20000200,CHAMPION EMPLOYMENT LTD
Oxford City Council,Direct Services,Temporary Bureau Staffing,A0108,21/04/2015,46285475_46,2044.94,Revenue,20000200,CHAMPION EMPLOYMENT LTD
Oxford City Council,Direct Services,Temporary Bureau Staffing,A0108,21/04/2015,46285475_47,1722.42,Revenue,20000200,CHAMPION EMPLOYMENT LTD
Oxford City Council,Direct Services,Temporary Bureau Staffing,A0108,21/04/2015,46285475_48,4580.34,Revenue,20000200,CHAMPION EMPLOYMENT LTD
Oxford City Council,Direct Services,Temporary Bureau Staffing,A0108,21/04/2015,46285475_49,11969.24,Revenue,20000200,CHAMPION EMPLOYMENT LTD
Oxford City Council,Community Services,Temporary Bureau Staffing,A0108,21/04/2015,46285475_5,4162.51,Revenue,20000200,CHAMPION EMPLOYMENT LTD
Oxford City Council,Direct Services,Temporary Bureau Staffing,A0108,21/04/2015,46285475_50,17.39,Revenue,20000200,CHAMPION EMPLOYMENT LTD
Oxford City Council,Direct Services,Temporary Bureau Staffing,A0108,21/04/2015,46285475_51,2966.68,Revenue,20000200,CHAMPION EMPLOYMENT LTD
Oxford City Council,Direct Services,Temporary Bureau Staffing,A0108,21/04/2015,46285475_52,20737.05,Revenue,20000200,CHAMPION EMPLOYMENT LTD
Oxford City Council,Direct Services,Temporary Bureau Staffing,A0108,21/04/2015,46285475_53,1920.64,Revenue,20000200,CHAMPION EMPLOYMENT LTD
Oxford City Council,Direct Services,Temporary Bureau Staffing,A0108,21/04/2015,46285475_54,6068.14,Revenue,20000200,CHAMPION EMPLOYMENT LTD
Oxford City Council,Direct Services,Temporary Bureau Staffing,A0108,21/04/2015,46285475_55,3663,Revenue,20000200,CHAMPION EMPLOYMENT LTD
Oxford City Council,Direct Services,Temporary Bureau Staffing,A0108,21/04/2015,46285475_56,1392.8,Revenue,20000200,CHAMPION EMPLOYMENT LTD
Oxford City Council,Community Services,Temporary Bureau Staffing,A0108,21/04/2015,46285475_57,1802.31,Revenue,20000200,CHAMPION EMPLOYMENT LTD
Oxford City Council,Community Services,Temporary Bureau Staffing,A0108,21/04/2015,46285475_58,2308.21,Revenue,20000200,CHAMPION EMPLOYMENT LTD
Oxford City Council,Housing and Property,Temporary Bureau Staffing,A0108,21/04/2015,46285475_6,3607.5,Revenue,20000200,CHAMPION EMPLOYMENT LTD
Oxford City Council,Housing and Property,Temporary Bureau Staffing,A0108,21/04/2015,46285475_7,5301.2,Revenue,20000200,CHAMPION EMPLOYMENT LTD
Oxford City Council,Housing and Property,Temporary Bureau Staffing,A0108,21/04/2015,46285475_8,11480.2,Revenue,20000200,CHAMPION EMPLOYMENT LTD
Oxford City Council,Business Improvement,Temporary Bureau Staffing,A0108,21/04/2015,46285475_9,5910.61,Revenue,20000200,CHAMPION EMPLOYMENT LTD
Oxford City Council,Financial Services,Commission/Discount,K9472,12/05/2015,46285768_1,-46,Revenue,20000200,CHAMPION EMPLOYMENT LTD
Oxford City Council,Business Improvement,Temporary Bureau Staffing,A0108,12/05/2015,46285768_10,4438.7,Revenue,20000200,CHAMPION EMPLOYMENT LTD
Oxford City Council,Financial Services,Temporary Bureau Staffing,A0108,12/05/2015,46285768_11,1946.27,Revenue,20000200,CHAMPION EMPLOYMENT LTD
Oxford City Council,Financial Services,Temporary Bureau Staffing,A0108,12/05/2015,46285768_12,6709.9,Revenue,20000200,CHAMPION EMPLOYMENT LTD
Oxford City Council,Business Improvement,Temporary Bureau Staffing,A0108,12/05/2015,46285768_13,1713.44,Revenue,20000200,CHAMPION EMPLOYMENT LTD
Oxford City Council,Financial Services,Temporary Bureau Staffing,A0108,12/05/2015,46285768_14,7095.72,Revenue,20000200,CHAMPION EMPLOYMENT LTD
Oxford City Council,Financial Services,Temporary Bureau Staffing,A0108,12/05/2015,46285768_15,1327.68,Revenue,20000200,CHAMPION EMPLOYMENT LTD
Oxford City Council,Business Improvement,Temporary Bureau Staffing,A0108,12/05/2015,46285768_16,1105.6,Revenue,20000200,CHAMPION EMPLOYMENT LTD
Oxford City Council,Direct Services,Temporary Bureau Staffing,A0108,12/05/2015,46285768_17,1464.98,Revenue,20000200,CHAMPION EMPLOYMENT LTD
Oxford City Council,Community Services,Temporary Bureau Staffing,A0108,12/05/2015,46285768_18,914.15,Revenue,20000200,CHAMPION EMPLOYMENT LTD
Oxford City Council,Planning & Regulatory,Temporary Bureau Staffing,A0108,12/05/2015,46285768_19,1852.06,Revenue,20000200,CHAMPION EMPLOYMENT LTD
Oxford City Council,Direct Services,Temporary Bureau Staffing,A0108,12/05/2015,46285768_2,8351.8,Revenue,20000200,CHAMPION EMPLOYMENT LTD
Oxford City Council,Planning & Regulatory,Temporary Bureau Staffing,A0108,12/05/2015,46285768_20,486.27,Revenue,20000200,CHAMPION EMPLOYMENT LTD
Oxford City Council,Planning & Regulatory,Temporary Bureau Staffing,A0108,12/05/2015,46285768_21,1387.95,Revenue,20000200,CHAMPION EMPLOYMENT LTD
Oxford City Council,Planning & Regulatory,Temporary Bureau Staffing,A0108,12/05/2015,46285768_22,1978.37,Revenue,20000200,CHAMPION EMPLOYMENT LTD
Oxford City Council,Housing and Property,Temporary Bureau Staffing,A0108,12/05/2015,46285768_23,11521.75,Revenue,20000200,CHAMPION EMPLOYMENT LTD
Oxford City Council,Housing and Property,Temporary Bureau Staffing,A0108,12/05/2015,46285768_24,3307.5,Revenue,20000200,CHAMPION EMPLOYMENT LTD
Oxford City Council,Housing and Property,Temporary Bureau Staffing,A0108,12/05/2015,46285768_25,1715.52,Revenue,20000200,CHAMPION EMPLOYMENT LTD
Oxford City Council,Community Services,Temporary Bureau Staffing,A0108,12/05/2015,46285768_26,2380,Revenue,20000200,CHAMPION EMPLOYMENT LTD
Oxford City Council,Direct Services,Temporary Bureau Staffing,A0108,12/05/2015,46285768_27,1728.16,Revenue,20000200,CHAMPION EMPLOYMENT LTD
Oxford City Council,Assistant Chief Executive,Main Contractor,Y021,12/05/2015,46285768_28,11864.02,Capital,20000200,CHAMPION EMPLOYMENT LTD
Oxford City Council,Planning & Regulatory,Temporary Bureau Staffing,A0108,12/05/2015,46285768_29,5800.22,Revenue,20000200,CHAMPION EMPLOYMENT LTD
Oxford City Council,Direct Services,Temporary Bureau Staffing,A0108,12/05/2015,46285768_3,1222.3,Revenue,20000200,CHAMPION EMPLOYMENT LTD
Oxford City Council,Planning & Regulatory,Temporary Bureau Staffing,A0108,12/05/2015,46285768_30,276.6,Revenue,20000200,CHAMPION EMPLOYMENT LTD
Oxford City Council,Planning & Regulatory,Temporary Bureau Staffing,A0108,12/05/2015,46285768_31,847.5,Revenue,20000200,CHAMPION EMPLOYMENT LTD
Oxford City Council,Planning & Regulatory,Temporary Bureau Staffing,A0108,12/05/2015,46285768_32,1856,Revenue,20000200,CHAMPION EMPLOYMENT LTD
Oxford City Council,Planning & Regulatory,Temporary Bureau Staffing,A0108,12/05/2015,46285768_33,2091.24,Revenue,20000200,CHAMPION EMPLOYMENT LTD
Oxford City Council,Community Services,Temporary Bureau Staffing,A0108,12/05/2015,46285768_34,984.89,Revenue,20000200,CHAMPION EMPLOYMENT LTD
Oxford City Council,Law and Governance,Temporary Bureau Staffing,A0108,12/05/2015,46285768_35,1355.94,Revenue,20000200,CHAMPION EMPLOYMENT LTD
Oxford City Council,Assistant Chief Executive,Temporary Bureau Staffing,A0108,12/05/2015,46285768_36,12682.02,Revenue,20000200,CHAMPION EMPLOYMENT LTD
Oxford City Council,Assistant Chief Executive,Temporary Bureau Staffing,A0108,12/05/2015,46285768_37,414.26,Revenue,20000200,CHAMPION EMPLOYMENT LTD
Oxford City Council,HRA,Temporary Bureau Staffing,A0108,12/05/2015,46285768_38,1265.06,Revenue,20000200,CHAMPION EMPLOYMENT LTD
Oxford City Council,HRA,Main Contractor,Y021,12/05/2015,46285768_39,4805,Capital,20000200,CHAMPION EMPLOYMENT LTD
Oxford City Council,Direct Services,Temporary Bureau Staffing,A0108,12/05/2015,46285768_4,208.35,Revenue,20000200,CHAMPION EMPLOYMENT LTD
Oxford City Council,HRA,Main Contractor,Y021,12/05/2015,46285768_40,2921.52,Capital,20000200,CHAMPION EMPLOYMENT LTD
Oxford City Council,HRA,Temporary Bureau Staffing,A0108,12/05/2015,46285768_41,5445.48,Revenue,20000200,CHAMPION EMPLOYMENT LTD
Oxford City Council,Direct Services,Temporary Bureau Staffing,A0108,12/05/2015,46285768_42,1875.68,Revenue,20000200,CHAMPION EMPLOYMENT LTD
Oxford City Council,Direct Services,Temporary Bureau Staffing,A0108,12/05/2015,46285768_43,352.58,Revenue,20000200,CHAMPION EMPLOYMENT LTD
Oxford City Council,Direct Services,Temporary Bureau Staffing,A0108,12/05/2015,46285768_44,1794.63,Revenue,20000200,CHAMPION EMPLOYMENT LTD
Oxford City Council,Direct Services,Temporary Bureau Staffing,A0108,12/05/2015,46285768_45,1778.64,Revenue,20000200,CHAMPION EMPLOYMENT LTD
Oxford City Council,Direct Services,Temporary Bureau Staffing,A0108,12/05/2015,46285768_46,9926.73,Revenue,20000200,CHAMPION EMPLOYMENT LTD
Oxford City Council,Direct Services,Temporary Bureau Staffing,A0108,12/05/2015,46285768_47,2461.55,Revenue,20000200,CHAMPION EMPLOYMENT LTD
Oxford City Council,Direct Services,Temporary Bureau Staffing,A0108,12/05/2015,46285768_48,12722.62,Revenue,20000200,CHAMPION EMPLOYMENT LTD
Oxford City Council,Direct Services,Temporary Bureau Staffing,A0108,12/05/2015,46285768_49,1895.26,Revenue,20000200,CHAMPION EMPLOYMENT LTD
Oxford City Council,Community Services,Temporary Bureau Staffing,A0108,12/05/2015,46285768_5,4254.08,Revenue,20000200,CHAMPION EMPLOYMENT LTD
Oxford City Council,Direct Services,Temporary Bureau Staffing,A0108,12/05/2015,46285768_50,5070.71,Revenue,20000200,CHAMPION EMPLOYMENT LTD
Oxford City Council,Direct Services,Temporary Bureau Staffing,A0108,12/05/2015,46285768_51,4247.26,Revenue,20000200,CHAMPION EMPLOYMENT LTD
Oxford City Council,Direct Services,Temporary Bureau Staffing,A0108,12/05/2015,46285768_52,4441.89,Revenue,20000200,CHAMPION EMPLOYMENT LTD
Oxford City Council,Community Services,Temporary Bureau Staffing,A0108,12/05/2015,46285768_53,4695.57,Revenue,20000200,CHAMPION EMPLOYMENT LTD
Oxford City Council,Community Services,Temporary Bureau Staffing,A0108,12/05/2015,46285768_54,1960.67,Revenue,20000200,CHAMPION EMPLOYMENT LTD
Oxford City Council,Housing and Property,Temporary Bureau Staffing,A0108,12/05/2015,46285768_55,45,Revenue,20000200,CHAMPION EMPLOYMENT LTD
Oxford City Council,Direct Services,Temporary Bureau Staffing,A0108,12/05/2015,46285768_56,132.3,Revenue,20000200,CHAMPION EMPLOYMENT LTD
Oxford City Council,Housing and Property,Temporary Bureau Staffing,A0108,12/05/2015,46285768_6,5191.52,Revenue,20000200,CHAMPION EMPLOYMENT LTD
Oxford City Council,Housing and Property,Temporary Bureau Staffing,A0108,12/05/2015,46285768_7,3051.48,Revenue,20000200,CHAMPION EMPLOYMENT LTD
Oxford City Council,Business Improvement,Temporary Bureau Staffing,A0108,12/05/2015,46285768_8,13558.56,Revenue,20000200,CHAMPION EMPLOYMENT LTD
Oxford City Council,Transformation,Temporary Bureau Staffing,A0108,12/05/2015,46285768_9,2647.41,Revenue,20000200,CHAMPION EMPLOYMENT LTD
Oxford City Council,Direct Services,Temporary Bureau Staffing,A0108,23/06/2015,46286283_1,5370.47,Revenue,20000200,CHAMPION EMPLOYMENT LTD
Oxford City Council,Financial Services,Temporary Bureau Staffing,A0108,23/06/2015,46286283_10,6315.2,Revenue,20000200,CHAMPION EMPLOYMENT LTD
Oxford City Council,Business Improvement,Temporary Bureau Staffing,A0108,23/06/2015,46286283_11,2434.75,Revenue,20000200,CHAMPION EMPLOYMENT LTD
Oxford City Council,Financial Services,Temporary Bureau Staffing,A0108,23/06/2015,46286283_12,1499.04,Revenue,20000200,CHAMPION EMPLOYMENT LTD
Oxford City Council,Business Improvement,Temporary Bureau Staffing,A0108,23/06/2015,46286283_13,1848.35,Revenue,20000200,CHAMPION EMPLOYMENT LTD
Oxford City Council,Direct Services,Temporary Bureau Staffing,A0108,23/06/2015,46286283_14,2135.02,Revenue,20000200,CHAMPION EMPLOYMENT LTD
Oxford City Council,Community Services,Temporary Bureau Staffing,A0108,23/06/2015,46286283_15,1330.96,Revenue,20000200,CHAMPION EMPLOYMENT LTD
Oxford City Council,Community Services,Temporary Bureau Staffing,A0108,23/06/2015,46286283_16,141.4,Revenue,20000200,CHAMPION EMPLOYMENT LTD
Oxford City Council,Planning & Regulatory,Temporary Bureau Staffing,A0108,23/06/2015,46286283_17,2218.3,Revenue,20000200,CHAMPION EMPLOYMENT LTD
Oxford City Council,Planning & Regulatory,Temporary Bureau Staffing,A0108,23/06/2015,46286283_18,2539.8,Revenue,20000200,CHAMPION EMPLOYMENT LTD
Oxford City Council,Housing and Property,Temporary Bureau Staffing,A0108,23/06/2015,46286283_19,1779.29,Revenue,20000200,CHAMPION EMPLOYMENT LTD
Oxford City Council,Community Services,Temporary Bureau Staffing,A0108,23/06/2015,46286283_2,3302.21,Revenue,20000200,CHAMPION EMPLOYMENT LTD
Oxford City Council,Direct Services,Temporary Bureau Staffing,A0108,23/06/2015,46286283_20,232.05,Revenue,20000200,CHAMPION EMPLOYMENT LTD
Oxford City Council,Assistant Chief Executive,Main Contractor,Y021,23/06/2015,46286283_21,7885.96,Capital,20000200,CHAMPION EMPLOYMENT LTD
Oxford City Council,Planning & Regulatory,Temporary Bureau Staffing,A0108,23/06/2015,46286283_22,7085.13,Revenue,20000200,CHAMPION EMPLOYMENT LTD
Oxford City Council,Partnerships Team,Temporary Bureau Staffing,A0108,23/06/2015,46286283_23,2835,Revenue,20000200,CHAMPION EMPLOYMENT LTD
Oxford City Council,Planning & Regulatory,Temporary Bureau Staffing,A0108,23/06/2015,46286283_24,2692.5,Revenue,20000200,CHAMPION EMPLOYMENT LTD
Oxford City Council,Planning & Regulatory,Temporary Bureau Staffing,A0108,23/06/2015,46286283_25,6112.36,Revenue,20000200,CHAMPION EMPLOYMENT LTD
Oxford City Council,Planning & Regulatory,Temporary Bureau Staffing,A0108,23/06/2015,46286283_26,3739.25,Revenue,20000200,CHAMPION EMPLOYMENT LTD
Oxford City Council,Community Services,Temporary Bureau Staffing,A0108,23/06/2015,46286283_27,1603.88,Revenue,20000200,CHAMPION EMPLOYMENT LTD
Oxford City Council,Assistant Chief Executive,Temporary Bureau Staffing,A0108,23/06/2015,46286283_28,10730.94,Revenue,20000200,CHAMPION EMPLOYMENT LTD
Oxford City Council,Financial Services,Temporary Bureau Staffing,A0108,23/06/2015,46286283_29,4160,Revenue,20000200,CHAMPION EMPLOYMENT LTD
Oxford City Council,Housing and Property,Temporary Bureau Staffing,A0108,23/06/2015,46286283_3,6407.14,Revenue,20000200,CHAMPION EMPLOYMENT LTD
Oxford City Council,Assistant Chief Executive,Temporary Bureau Staffing,A0108,23/06/2015,46286283_30,3752.96,Revenue,20000200,CHAMPION EMPLOYMENT LTD
Oxford City Council,HRA,Temporary Bureau Staffing,A0108,23/06/2015,46286283_31,2049.79,Revenue,20000200,CHAMPION EMPLOYMENT LTD
Oxford City Council,HRA,Main Contractor,Y021,23/06/2015,46286283_32,5425,Capital,20000200,CHAMPION EMPLOYMENT LTD
Oxford City Council,HRA,Temporary Bureau Staffing,A0108,23/06/2015,46286283_33,6546.79,Revenue,20000200,CHAMPION EMPLOYMENT LTD
Oxford City Council,Direct Services,Temporary Bureau Staffing,A0108,23/06/2015,46286283_34,1721.16,Revenue,20000200,CHAMPION EMPLOYMENT LTD
Oxford City Council,Direct Services,Temporary Bureau Staffing,A0108,23/06/2015,46286283_35,2158.34,Revenue,20000200,CHAMPION EMPLOYMENT LTD
Oxford City Council,Direct Services,Temporary Bureau Staffing,A0108,23/06/2015,46286283_36,1924.17,Revenue,20000200,CHAMPION EMPLOYMENT LTD
Oxford City Council,Direct Services,Temporary Bureau Staffing,A0108,23/06/2015,46286283_37,10465.55,Revenue,20000200,CHAMPION EMPLOYMENT LTD
Oxford City Council,Direct Services,Temporary Bureau Staffing,A0108,23/06/2015,46286283_38,3794.07,Revenue,20000200,CHAMPION EMPLOYMENT LTD
Oxford City Council,Direct Services,Temporary Bureau Staffing,A0108,23/06/2015,46286283_39,20336.58,Revenue,20000200,CHAMPION EMPLOYMENT LTD
Oxford City Council,Housing and Property,Temporary Bureau Staffing,A0108,23/06/2015,46286283_4,2311.07,Revenue,20000200,CHAMPION EMPLOYMENT LTD
Oxford City Council,Direct Services,Temporary Bureau Staffing,A0108,23/06/2015,46286283_40,3189.46,Revenue,20000200,CHAMPION EMPLOYMENT LTD
Oxford City Council,Direct Services,Temporary Bureau Staffing,A0108,23/06/2015,46286283_41,3469.86,Revenue,20000200,CHAMPION EMPLOYMENT LTD
Oxford City Council,Direct Services,Temporary Bureau Staffing,A0108,23/06/2015,46286283_42,3207.06,Revenue,20000200,CHAMPION EMPLOYMENT LTD
Oxford City Council,Direct Services,Temporary Bureau Staffing,A0108,23/06/2015,46286283_43,4498.61,Revenue,20000200,CHAMPION EMPLOYMENT LTD
Oxford City Council,Direct Services,Temporary Bureau Staffing,A0108,23/06/2015,46286283_44,6811.36,Revenue,20000200,CHAMPION EMPLOYMENT LTD
Oxford City Council,Community Services,Temporary Bureau Staffing,A0108,23/06/2015,46286283_45,2824.54,Revenue,20000200,CHAMPION EMPLOYMENT LTD
Oxford City Council,Housing and Property,Temporary Bureau Staffing,A0108,23/06/2015,46286283_46,40,Revenue,20000200,CHAMPION EMPLOYMENT LTD
Oxford City Council,Community Services,Temporary Bureau Staffing,A0108,23/06/2015,46286283_47,2447.29,Revenue,20000200,CHAMPION EMPLOYMENT LTD
Oxford City Council,Business Improvement,Temporary Bureau Staffing,A0108,23/06/2015,46286283_5,10855.13,Revenue,20000200,CHAMPION EMPLOYMENT LTD
Oxford City Council,Transformation,Temporary Bureau Staffing,A0108,23/06/2015,46286283_6,1849.07,Revenue,20000200,CHAMPION EMPLOYMENT LTD
Oxford City Council,Transformation,Temporary Bureau Staffing,A0108,23/06/2015,46286283_7,3225.8,Revenue,20000200,CHAMPION EMPLOYMENT LTD
Oxford City Council,Business Improvement,Temporary Bureau Staffing,A0108,23/06/2015,46286283_8,4455.68,Revenue,20000200,CHAMPION EMPLOYMENT LTD
Oxford City Council,Financial Services,Temporary Bureau Staffing,A0108,23/06/2015,46286283_9,1621.42,Revenue,20000200,CHAMPION EMPLOYMENT LTD
Oxford City Council,Direct Services,Tools,D3023,27/05/2015,1016135_1,2265.6,Revenue,20000203,KONE PLC
Oxford City Council,Regeneration and Major Projects Team,Main Contractor,Y021,07/04/2015,48021175_1,2988.6,Capital,20000203,KONE PLC
Oxford City Council,Regeneration and Major Projects Team,Main Contractor,Y021,23/06/2015,48021247_1,2988.6,Capital,20000203,KONE PLC
Oxford City Council,HRA,Asbestos Work,B1106   ,28/04/2015,60037116_1,900,Revenue,20000209,AMITY INSULATION SERVICES LTD
Oxford City Council,HRA,Asbestos Work,B1106   ,19/05/2015,60037812_1,900,Revenue,20000209,AMITY INSULATION SERVICES LTD
Oxford City Council,Direct Services,Direct Services Sub Contractors,B1111   ,27/05/2015,60038443_0,7436,Revenue,20000209,AMITY INSULATION SERVICES LTD
Oxford City Council,Direct Services,Direct Services Sub Contractors,B1111   ,27/05/2015,60038444_1,6238,Revenue,20000209,AMITY INSULATION SERVICES LTD
Oxford City Council,Housing and Property,Services Maintenance (Planned),B1103,14/04/2015,46285410_1,5803.92,Revenue,20000210,BARKER & EVANS LTD
Oxford City Council,Housing and Property,Services Maintenance (Planned),B1103,14/04/2015,46285410_2,338.29,Revenue,20000210,BARKER & EVANS LTD
Oxford City Council,Direct Services,Services Maintenance (Planned),B1103,14/04/2015,46285410_3,297.5,Revenue,20000210,BARKER & EVANS LTD
Oxford City Council,Direct Services,Services Maintenance (Planned),B1103,14/04/2015,46285410_4,87.5,Revenue,20000210,BARKER & EVANS LTD
Oxford City Council,Housing and Property,Services Maintenance (Planned),B1103,14/04/2015,46285410_5,105,Revenue,20000210,BARKER & EVANS LTD
Oxford City Council,Direct Services,Services Maintenance (Planned),B1103,14/04/2015,46285410_6,1168.77,Revenue,20000210,BARKER & EVANS LTD
Oxford City Council,Housing and Property,Services Maintenance (Planned),B1103,14/04/2015,46285410_7,1253.03,Revenue,20000210,BARKER & EVANS LTD
Oxford City Council,Housing and Property,Services Maintenance (Planned),B1103,14/04/2015,46285410_8,629.73,Revenue,20000210,BARKER & EVANS LTD
Oxford City Council,Housing and Property,Services Maintenance (Planned),B1103,14/04/2015,46285410_9,12203.85,Revenue,20000210,BARKER & EVANS LTD
Oxford City Council,Housing and Property,Reactive Maintenance & Minor Repairs,B1101,06/05/2015,46285691_1,832.83,Revenue,20000210,BARKER & EVANS LTD
Oxford City Council,Housing and Property,Services Maintenance (Planned),B1103,06/05/2015,46285710_1,251,Revenue,20000210,BARKER & EVANS LTD
Oxford City Council,Housing and Property,Services Maintenance (Planned),B1103,06/05/2015,46285710_10,622.46,Revenue,20000210,BARKER & EVANS LTD
Oxford City Council,Housing and Property,Services Maintenance (Planned),B1103,06/05/2015,46285710_11,87.5,Revenue,20000210,BARKER & EVANS LTD
Oxford City Council,Housing and Property,Services Maintenance (Planned),B1103,06/05/2015,46285710_12,855.47,Revenue,20000210,BARKER & EVANS LTD
Oxford City Council,Direct Services,Services Maintenance (Planned),B1103,06/05/2015,46285710_13,105,Revenue,20000210,BARKER & EVANS LTD
Oxford City Council,Housing and Property,Services Maintenance (Planned),B1103,06/05/2015,46285710_2,125,Revenue,20000210,BARKER & EVANS LTD
Oxford City Council,Housing and Property,Services Maintenance (Planned),B1103,06/05/2015,46285710_3,262.5,Revenue,20000210,BARKER & EVANS LTD
Oxford City Council,Housing and Property,Services Maintenance (Planned),B1103,06/05/2015,46285710_4,443.97,Revenue,20000210,BARKER & EVANS LTD
Oxford City Council,Housing and Property,Services Maintenance (Planned),B1103,06/05/2015,46285710_5,122.5,Revenue,20000210,BARKER & EVANS LTD
Oxford City Council,Direct Services,Services Maintenance (Planned),B1103,06/05/2015,46285710_6,297.1,Revenue,20000210,BARKER & EVANS LTD
Oxford City Council,Direct Services,Services Maintenance (Planned),B1103,06/05/2015,46285710_7,105,Revenue,20000210,BARKER & EVANS LTD
Oxford City Council,Housing and Property,Services Maintenance (Planned),B1103,06/05/2015,46285710_8,175,Revenue,20000210,BARKER & EVANS LTD
Oxford City Council,Direct Services,Services Maintenance (Planned),B1103,06/05/2015,46285710_9,832.82,Revenue,20000210,BARKER & EVANS LTD
Oxford City Council,Housing and Property,Services Maintenance (Planned),B1103,09/06/2015,46286153_1,11782.37,Revenue,20000210,BARKER & EVANS LTD
Oxford City Council,Direct Services,Services Maintenance (Planned),B1103,09/06/2015,46286153_2,357.69,Revenue,20000210,BARKER & EVANS LTD
Oxford City Council,Direct Services,Services Maintenance (Planned),B1103,09/06/2015,46286153_3,2305.05,Revenue,20000210,BARKER & EVANS LTD
Oxford City Council,Housing and Property,Services Maintenance (Planned),B1103,09/06/2015,46286153_4,2919.65,Revenue,20000210,BARKER & EVANS LTD
Oxford City Council,Housing and Property,Services Maintenance (Planned),B1103,09/06/2015,46286153_5,350,Revenue,20000210,BARKER & EVANS LTD
Oxford City Council,Housing and Property,Services Maintenance (Planned),B1103,30/06/2015,46286393_1,4134.38,Revenue,20000210,BARKER & EVANS LTD
Oxford City Council,Housing and Property,Services Maintenance (Planned),B1103,30/06/2015,46286393_2,70,Revenue,20000210,BARKER & EVANS LTD
Oxford City Council,Direct Services,Services Maintenance (Planned),B1103,30/06/2015,46286393_3,1393.7,Revenue,20000210,BARKER & EVANS LTD
Oxford City Council,Housing and Property,Services Maintenance (Planned),B1103,30/06/2015,46286393_4,1178.11,Revenue,20000210,BARKER & EVANS LTD
Oxford City Council,Housing and Property,Services Maintenance (Planned),B1103,30/06/2015,46286393_5,1011.51,Revenue,20000210,BARKER & EVANS LTD
Oxford City Council,Housing and Property,Services Maintenance (Planned),B1103,30/06/2015,46286393_6,344.8,Revenue,20000210,BARKER & EVANS LTD
Oxford City Council,HRA,Services Maintenance (Planned),B1103,30/06/2015,46286393_7,122.5,Revenue,20000210,BARKER & EVANS LTD
Oxford City Council,Housing and Property,Services Maintenance (Planned),B1103,30/06/2015,46286393_8,52.5,Revenue,20000210,BARKER & EVANS LTD
Oxford City Council,Housing and Property,Services Maintenance (Planned),B1103,30/06/2015,46286394_1,3407.22,Revenue,20000210,BARKER & EVANS LTD
Oxford City Council,Direct Services,Services Maintenance (Planned),B1103,30/06/2015,46286394_2,507.5,Revenue,20000210,BARKER & EVANS LTD
Oxford City Council,Direct Services,Services Maintenance (Planned),B1103,30/06/2015,46286394_3,98.14,Revenue,20000210,BARKER & EVANS LTD
Oxford City Council,Housing and Property,Services Maintenance (Planned),B1103,30/06/2015,46286394_4,372.1,Revenue,20000210,BARKER & EVANS LTD
Oxford City Council,Housing and Property,Services Maintenance (Planned),B1103,30/06/2015,46286394_5,314.2,Revenue,20000210,BARKER & EVANS LTD
Oxford City Council,Direct Services,Direct Services Sub Contractors,B1111,14/04/2015,60036202_0,750.27,Revenue,20000210,BARKER & EVANS LTD
Oxford City Council,Direct Services,Direct Services Sub Contractors,B1111   ,28/04/2015,60037079_0,1428.98,Revenue,20000210,BARKER & EVANS LTD
Oxford City Council,Direct Services,Direct Services Sub Contractors,B1111   ,28/04/2015,60037081_0,1210.62,Revenue,20000210,BARKER & EVANS LTD
Oxford City Council,Direct Services,Direct Services Sub Contractors,B1111   ,28/04/2015,60037274_1,1374.71,Revenue,20000210,BARKER & EVANS LTD
Oxford City Council,Direct Services,Direct Services Sub Contractors,B1111   ,06/05/2015,60037446_0,29063.12,Revenue,20000210,BARKER & EVANS LTD
Oxford City Council,Direct Services,Direct Services Sub Contractors,B1111   ,06/05/2015,60037447_1,1205.45,Revenue,20000210,BARKER & EVANS LTD
Oxford City Council,Direct Services,Direct Services Sub Contractors,B1111   ,02/06/2015,60038779_1,579.88,Revenue,20000210,BARKER & EVANS LTD
Oxford City Council,Direct Services,Direct Services Sub Contractors,B1111   ,02/06/2015,60038784_0,510.82,Revenue,20000210,BARKER & EVANS LTD
Oxford City Council,Direct Services,Direct Services Sub Contractors,B1111   ,09/06/2015,60039083_1,1405.78,Revenue,20000210,BARKER & EVANS LTD
Oxford City Council,Direct Services,Direct Services Sub Contractors,B1111   ,09/06/2015,60039084_0,1100.49,Revenue,20000210,BARKER & EVANS LTD
Oxford City Council,Direct Services,Direct Services Sub Contractors,B1111   ,09/06/2015,60039245_1,3695,Revenue,20000210,BARKER & EVANS LTD
Oxford City Council,Environmental Development,Grants-Private Persons,Y005,14/04/2015,1014315_1,2599,Capital,20000222,ELLIOTT & JORDAN LTD
Oxford City Council,Planning & Regulatory,General Contracted Services,D3401,14/04/2015,1015116_1,1171.47,Revenue,20000222,ELLIOTT & JORDAN LTD
Oxford City Council,Planning & Regulatory,General Contracted Services,D3401,21/04/2015,1015119_1,5117.36,Revenue,20000222,ELLIOTT & JORDAN LTD
Oxford City Council,Planning & Regulatory,General Contracted Services,D3401,14/04/2015,1015121_1,1171.47,Revenue,20000222,ELLIOTT & JORDAN LTD
Oxford City Council,Environmental Development,Grants-Private Persons,Y005,19/05/2015,1015506_1,3953.5,Capital,20000222,ELLIOTT & JORDAN LTD
Oxford City Council,Environmental Development,Grants-Private Persons,Y005,12/05/2015,1015574_1,2560.06,Capital,20000222,ELLIOTT & JORDAN LTD
Oxford City Council,Environmental Development,Grants-Private Persons,Y005,06/05/2015,1015821_1,3828.5,Capital,20000222,ELLIOTT & JORDAN LTD
Oxford City Council,Environmental Development,Grants-Private Persons,Y005,06/05/2015,1016031_1,2913.74,Capital,20000222,ELLIOTT & JORDAN LTD
Oxford City Council,Environmental Development,Grants-Private Persons,Y005,27/05/2015,1016379_1,4270.5,Capital,20000222,ELLIOTT & JORDAN LTD
Oxford City Council,Planning & Regulatory,General Contracted Services,D3401,27/05/2015,1016765_1,500,Revenue,20000222,ELLIOTT & JORDAN LTD
Oxford City Council,Environmental Development,Grants-Private Persons,Y005,30/06/2015,1017256_1,3984,Capital,20000222,ELLIOTT & JORDAN LTD
Oxford City Council,Environmental Development,Grants-Private Persons,Y005,23/06/2015,1017257_1,6019,Capital,20000222,ELLIOTT & JORDAN LTD
Oxford City Council,Environmental Development,Grants-Private Persons,Y005,23/06/2015,1017355_1,4393,Capital,20000222,ELLIOTT & JORDAN LTD
Oxford City Council,HRA,Fire Damage & Other Equipment Repairs,B1305,07/04/2015,46285395_1,2953.42,Revenue,20000225,FERGAL CONTRACTING CO LTD
Oxford City Council,Direct Services,Direct Services Supplies & Services,D3311   ,07/04/2015,60035903_2,650,Revenue,20000233,JONES & REEVES
Oxford City Council,Direct Services,Direct Services Supplies & Services,D3311   ,07/04/2015,60035904_0,1000,Revenue,20000233,JONES & REEVES
Oxford City Council,Direct Services,Direct Services Supplies & Services,D3311   ,07/04/2015,60035905_2,600,Revenue,20000233,JONES & REEVES
Oxford City Council,Direct Services,Direct Services Supplies & Services,D3311   ,07/04/2015,60035906_0,540,Revenue,20000233,JONES & REEVES
Oxford City Council,Direct Services,Direct Services Supplies & Services,D3311   ,07/04/2015,60035907_2,540,Revenue,20000233,JONES & REEVES
Oxford City Council,Direct Services,Direct Services Supplies & Services,D3311   ,07/04/2015,60035908_0,540,Revenue,20000233,JONES & REEVES
Oxford City Council,Direct Services,Direct Services Supplies & Services,D3311   ,07/04/2015,60035909_2,800,Revenue,20000233,JONES & REEVES
Oxford City Council,Direct Services,Direct Services Supplies & Services,D3311   ,07/04/2015,60035910_0,580,Revenue,20000233,JONES & REEVES
Oxford City Council,Direct Services,Direct Services Supplies & Services,D3311   ,07/04/2015,60035911_2,1600,Revenue,20000233,JONES & REEVES
Oxford City Council,Direct Services,Direct Services Supplies & Services,D3311   ,07/04/2015,60035912_0,600,Revenue,20000233,JONES & REEVES
Oxford City Council,Direct Services,Direct Services Supplies & Services,D3311   ,07/04/2015,60035913_2,580,Revenue,20000233,JONES & REEVES
Oxford City Council,Direct Services,Direct Services Supplies & Services,D3311   ,07/04/2015,60035914_0,520,Revenue,20000233,JONES & REEVES
Oxford City Council,Direct Services,Direct Services Supplies & Services,D3311   ,07/04/2015,60035915_2,650,Revenue,20000233,JONES & REEVES
Oxford City Council,Direct Services,Direct Services Supplies & Services,D3311   ,07/04/2015,60035918_0,500,Revenue,20000233,JONES & REEVES
Oxford City Council,Direct Services,Direct Services Supplies & Services,D3311   ,07/04/2015,60035925_2,2400,Revenue,20000233,JONES & REEVES
Oxford City Council,Direct Services,Direct Services Supplies & Services,D3311   ,07/04/2015,60035928_0,750,Revenue,20000233,JONES & REEVES
Oxford City Council,Direct Services,Direct Services Supplies & Services,D3311,14/04/2015,60036205_2,790,Revenue,20000233,JONES & REEVES
Oxford City Council,Direct Services,Direct Services Supplies & Services,D3311,14/04/2015,60036616_0,680,Revenue,20000233,JONES & REEVES
Oxford City Council,Direct Services,Direct Services Supplies & Services,D3311,14/04/2015,60036620_0,500,Revenue,20000233,JONES & REEVES
Oxford City Council,Direct Services,Direct Services Sub Contractors,B1111   ,28/04/2015,60037297_0,1356,Revenue,20000233,JONES & REEVES
Oxford City Council,Direct Services,Direct Services Supplies & Services,D3311   ,06/05/2015,60037482_0,990,Revenue,20000233,JONES & REEVES
Oxford City Council,Direct Services,Direct Services Supplies & Services,D3311   ,06/05/2015,60037483_1,580,Revenue,20000233,JONES & REEVES
Oxford City Council,Direct Services,Direct Services Sub Contractors,B1111   ,19/05/2015,60038140_1,1500,Revenue,20000233,JONES & REEVES
Oxford City Council,Direct Services,Direct Services Sub Contractors,B1111   ,19/05/2015,60038141_0,1500,Revenue,20000233,JONES & REEVES
Oxford City Council,Direct Services,Direct Services Sub Contractors,B1111   ,19/05/2015,60038142_1,1500,Revenue,20000233,JONES & REEVES
Oxford City Council,Direct Services,Direct Services Sub Contractors,B1111   ,19/05/2015,60038143_0,1500,Revenue,20000233,JONES & REEVES
Oxford City Council,Direct Services,Direct Services Sub Contractors,B1111   ,19/05/2015,60038150_1,609.12,Revenue,20000233,JONES & REEVES
Oxford City Council,Direct Services,Direct Services Sub Contractors,B1111   ,19/05/2015,60038152_1,583.31,Revenue,20000233,JONES & REEVES
Oxford City Council,Direct Services,Direct Services Sub Contractors,B1111   ,19/05/2015,60038158_1,518.34,Revenue,20000233,JONES & REEVES
Oxford City Council,Direct Services,Direct Services Sub Contractors,B1111   ,19/05/2015,60038160_1,609.12,Revenue,20000233,JONES & REEVES
Oxford City Council,Direct Services,Direct Services Sub Contractors,B1111   ,19/05/2015,60038162_1,957.78,Revenue,20000233,JONES & REEVES
Oxford City Council,Direct Services,Direct Services Sub Contractors,B1111   ,19/05/2015,60038165_0,721.5,Revenue,20000233,JONES & REEVES
Oxford City Council,Direct Services,Direct Services Sub Contractors,B1111   ,19/05/2015,60038168_1,830.28,Revenue,20000233,JONES & REEVES
Oxford City Council,Direct Services,Direct Services Supplies & Services,D3311   ,27/05/2015,60038432_1,530,Revenue,20000233,JONES & REEVES
Oxford City Council,Direct Services,Direct Services Supplies & Services,D3311   ,27/05/2015,60038433_0,690,Revenue,20000233,JONES & REEVES
Oxford City Council,Direct Services,Direct Services Supplies & Services,D3311   ,27/05/2015,60038436_1,1590,Revenue,20000233,JONES & REEVES
Oxford City Council,Direct Services,Direct Services Supplies & Services,D3311   ,27/05/2015,60038437_0,1450,Revenue,20000233,JONES & REEVES
Oxford City Council,Direct Services,Direct Services Supplies & Services,D3311   ,27/05/2015,60038438_1,530,Revenue,20000233,JONES & REEVES
Oxford City Council,Direct Services,Direct Services Supplies & Services,D3311   ,27/05/2015,60038439_0,530,Revenue,20000233,JONES & REEVES
Oxford City Council,Direct Services,Direct Services Supplies & Services,D3311   ,27/05/2015,60038440_1,530,Revenue,20000233,JONES & REEVES
Oxford City Council,Direct Services,Direct Services Supplies & Services,D3311   ,27/05/2015,60038441_0,530,Revenue,20000233,JONES & REEVES
Oxford City Council,Direct Services,Direct Services Supplies & Services,D3311   ,09/06/2015,60039081_1,650,Revenue,20000233,JONES & REEVES
Oxford City Council,HRA,Main Contractor,Y021,12/05/2015,1015930_1,1078701.28,Capital,20000236,J B LEADBITTER & CO LTD
Oxford City Council,Low Carbon / Cleaner Greener Policy,Furniture & Equipment Maintenance & Repairs,D3002,02/06/2015,1016908_1,933,Revenue,20000244,OXFORD REFRIGERATION LTD
Oxford City Council,Direct Services,Direct Services Supplies & Services,D3311,14/04/2015,60036579_1,4000,Revenue,20000244,OXFORD REFRIGERATION LTD
Oxford City Council,Direct Services,Direct Services Supplies & Services,D3311,14/04/2015,60036581_1,1345,Revenue,20000244,OXFORD REFRIGERATION LTD
Oxford City Council,Direct Services,General Contracted Services,D3401   ,27/05/2015,60038517_0,4995,Revenue,20000244,OXFORD REFRIGERATION LTD
Oxford City Council,Direct Services,Reactive Maintenance & Minor Repairs,B1101   ,30/06/2015,60040002_0,1846,Revenue,20000244,OXFORD REFRIGERATION LTD
Oxford City Council,Housing and Property,Shop Frontages,B1105,12/05/2015,46285765_1,583.95,Revenue,20000249,SSE CONTRACTING LTD
Oxford City Council,Housing and Property,Shop Frontages,B1105,12/05/2015,46285765_2,2127.84,Revenue,20000249,SSE CONTRACTING LTD
Oxford City Council,Direct Services,Shop Frontages,B1105,12/05/2015,46285765_3,282.4,Revenue,20000249,SSE CONTRACTING LTD
Oxford City Council,Housing and Property,Shop Frontages,B1105,12/05/2015,46285765_4,491.04,Revenue,20000249,SSE CONTRACTING LTD
Oxford City Council,Housing and Property,Services Maintenance (Planned),B1103,23/06/2015,46286293_1,3000,Revenue,20000249,SSE CONTRACTING LTD
Oxford City Council,Direct Services,General Contracted Services,D3401   ,28/04/2015,60037196_1,2348.67,Revenue,20000249,SSE CONTRACTING LTD
Oxford City Council,Direct Services,General Contracted Services,D3401   ,28/04/2015,60037197_0,3207.93,Revenue,20000249,SSE CONTRACTING LTD
Oxford City Council,Direct Services,Direct Services Supplies & Services,D3311   ,07/04/2015,60035930_0,1050,Revenue,20000258,L A WOOD (OXON) LTD
Oxford City Council,Direct Services,Direct Services Sub Contractors,B1111,14/04/2015,60036630_1,1149.01,Revenue,20000258,L A WOOD (OXON) LTD
Oxford City Council,Direct Services,Direct Services Sub Contractors,B1111   ,21/04/2015,60036892_1,2238.41,Revenue,20000258,L A WOOD (OXON) LTD
Oxford City Council,Direct Services,Direct Services Sub Contractors,B1111   ,06/05/2015,60037598_0,915.83,Revenue,20000258,L A WOOD (OXON) LTD
Oxford City Council,Direct Services,Direct Services Sub Contractors,B1111   ,19/05/2015,60038179_0,657.54,Revenue,20000258,L A WOOD (OXON) LTD
Oxford City Council,Direct Services,Direct Services Sub Contractors,B1111   ,19/05/2015,60038180_1,897.6,Revenue,20000258,L A WOOD (OXON) LTD
Oxford City Council,Direct Services,Direct Services Sub Contractors,B1111   ,27/05/2015,60038455_0,749.62,Revenue,20000258,L A WOOD (OXON) LTD
Oxford City Council,Direct Services,Direct Services Supplies & Services,D3311   ,09/06/2015,60039080_0,1050,Revenue,20000258,L A WOOD (OXON) LTD
Oxford City Council,Direct Services,Direct Services Sub Contractors,B1111   ,16/06/2015,60039486_0,6850,Revenue,20000258,L A WOOD (OXON) LTD
Oxford City Council,Direct Services,Waste Disposal & Skip Hire,D3420,14/04/2015,1015132_1,970.5,Revenue,20000263,SHEEHAN HAULAGE & PLANT HIRE LTD
Oxford City Council,Direct Services,Waste Disposal & Skip Hire,D3420,12/05/2015,1016117_1,986,Revenue,20000263,SHEEHAN HAULAGE & PLANT HIRE LTD
Oxford City Council,Direct Services,Waste Disposal & Skip Hire,D3420,23/06/2015,1017481_1,911.6,Revenue,20000263,SHEEHAN HAULAGE & PLANT HIRE LTD
Oxford City Council,Direct Services,Materials,D3021   ,07/04/2015,60035841_2,687.06,Revenue,20000263,SHEEHAN HAULAGE & PLANT HIRE LTD
Oxford City Council,Direct Services,Materials,D3021   ,07/04/2015,60035842_0,674.54,Revenue,20000263,SHEEHAN HAULAGE & PLANT HIRE LTD
Oxford City Council,Direct Services,Materials,D3021   ,07/04/2015,60035843_2,684.66,Revenue,20000263,SHEEHAN HAULAGE & PLANT HIRE LTD
Oxford City Council,Direct Services,Materials,D3021   ,07/04/2015,60035844_0,509.32,Revenue,20000263,SHEEHAN HAULAGE & PLANT HIRE LTD
Oxford City Council,Direct Services,Materials,D3021   ,07/04/2015,60035845_2,649.68,Revenue,20000263,SHEEHAN HAULAGE & PLANT HIRE LTD
Oxford City Council,Direct Services,Materials,D3021   ,07/04/2015,60035859_2,607.29,Revenue,20000263,SHEEHAN HAULAGE & PLANT HIRE LTD
Oxford City Council,HRA,Fire Damage & Other Equipment Repairs,B1305   ,07/04/2015,60036091_1,530,Revenue,20000263,SHEEHAN HAULAGE & PLANT HIRE LTD
Oxford City Council,HRA,Asbestos Work,B1106,14/04/2015,60036531_2,1069,Revenue,20000263,SHEEHAN HAULAGE & PLANT HIRE LTD
Oxford City Council,Direct Services,Tipping Charges,D3421,14/04/2015,60036532_0,648,Revenue,20000263,SHEEHAN HAULAGE & PLANT HIRE LTD
Oxford City Council,Direct Services,Tipping Charges,D3421,14/04/2015,60036535_1,694,Revenue,20000263,SHEEHAN HAULAGE & PLANT HIRE LTD
Oxford City Council,Direct Services,Tipping Charges,D3421,14/04/2015,60036537_1,552,Revenue,20000263,SHEEHAN HAULAGE & PLANT HIRE LTD
Oxford City Council,Direct Services,Tipping Charges,D3421   ,21/04/2015,60036855_0,782,Revenue,20000263,SHEEHAN HAULAGE & PLANT HIRE LTD
Oxford City Council,Direct Services,Tipping Charges,D3421   ,21/04/2015,60036856_2,514,Revenue,20000263,SHEEHAN HAULAGE & PLANT HIRE LTD
Oxford City Council,Direct Services,Materials,D3021   ,28/04/2015,60037035_0,925.66,Revenue,20000263,SHEEHAN HAULAGE & PLANT HIRE LTD
Oxford City Council,Direct Services,General Contracted Services,D3401   ,28/04/2015,60037189_0,2614.18,Revenue,20000263,SHEEHAN HAULAGE & PLANT HIRE LTD
Oxford City Council,Direct Services,General Contracted Services,D3401   ,28/04/2015,60037190_1,2612.68,Revenue,20000263,SHEEHAN HAULAGE & PLANT HIRE LTD
Oxford City Council,Direct Services,General Contracted Services,D3401   ,28/04/2015,60037191_0,4680,Revenue,20000263,SHEEHAN HAULAGE & PLANT HIRE LTD
Oxford City Council,Direct Services,Temporary Bureau Staffing,A0108   ,28/04/2015,60037192_1,2640,Revenue,20000263,SHEEHAN HAULAGE & PLANT HIRE LTD
Oxford City Council,Direct Services,Tipping Charges,D3421   ,12/05/2015,60037760_1,770,Revenue,20000263,SHEEHAN HAULAGE & PLANT HIRE LTD
Oxford City Council,Direct Services,Tipping Charges,D3421   ,12/05/2015,60037762_1,662,Revenue,20000263,SHEEHAN HAULAGE & PLANT HIRE LTD
Oxford City Council,Direct Services,General Contracted Services,D3401   ,27/05/2015,60038341_0,1681.74,Revenue,20000263,SHEEHAN HAULAGE & PLANT HIRE LTD
Oxford City Council,Direct Services,General Contracted Services,D3401   ,27/05/2015,60038342_1,679.52,Revenue,20000263,SHEEHAN HAULAGE & PLANT HIRE LTD
Oxford City Council,Suspense,Materials,D3021   ,27/05/2015,60038354_1,863.72,Revenue,20000263,SHEEHAN HAULAGE & PLANT HIRE LTD
Oxford City Council,Direct Services,Tipping Charges,D3421   ,27/05/2015,60038506_1,742,Revenue,20000263,SHEEHAN HAULAGE & PLANT HIRE LTD
Oxford City Council,Direct Services,Tipping Charges,D3421   ,27/05/2015,60038507_0,590,Revenue,20000263,SHEEHAN HAULAGE & PLANT HIRE LTD
Oxford City Council,Direct Services,General Contracted Services,D3401   ,09/06/2015,60038906_0,2340,Revenue,20000263,SHEEHAN HAULAGE & PLANT HIRE LTD
Oxford City Council,Direct Services,Temporary Bureau Staffing,A0108   ,09/06/2015,60038907_1,1830,Revenue,20000263,SHEEHAN HAULAGE & PLANT HIRE LTD
Oxford City Council,Direct Services,Temporary Bureau Staffing,A0108   ,09/06/2015,60038908_0,1830,Revenue,20000263,SHEEHAN HAULAGE & PLANT HIRE LTD
Oxford City Council,Direct Services,Temporary Bureau Staffing,A0108   ,09/06/2015,60038909_1,1188,Revenue,20000263,SHEEHAN HAULAGE & PLANT HIRE LTD
Oxford City Council,Suspense,Materials,D3021   ,09/06/2015,60039045_1,735.32,Revenue,20000263,SHEEHAN HAULAGE & PLANT HIRE LTD
Oxford City Council,HRA,Asbestos Work,B1106   ,09/06/2015,60039220_0,999,Revenue,20000263,SHEEHAN HAULAGE & PLANT HIRE LTD
Oxford City Council,Direct Services,Tipping Charges,D3421   ,09/06/2015,60039224_0,648,Revenue,20000263,SHEEHAN HAULAGE & PLANT HIRE LTD
Oxford City Council,Direct Services,Tipping Charges,D3421   ,16/06/2015,60039468_0,658,Revenue,20000263,SHEEHAN HAULAGE & PLANT HIRE LTD
Oxford City Council,HRA,Asbestos Work,B1106   ,16/06/2015,60039469_1,964,Revenue,20000263,SHEEHAN HAULAGE & PLANT HIRE LTD
Oxford City Council,Direct Services,Tipping Charges,D3421   ,16/06/2015,60039471_1,700,Revenue,20000263,SHEEHAN HAULAGE & PLANT HIRE LTD
Oxford City Council,Direct Services,Tipping Charges,D3421   ,16/06/2015,60039524_0,772,Revenue,20000263,SHEEHAN HAULAGE & PLANT HIRE LTD
Oxford City Council,Direct Services,Tipping Charges,D3421   ,16/06/2015,60039528_0,718,Revenue,20000263,SHEEHAN HAULAGE & PLANT HIRE LTD
Oxford City Council,Direct Services,Tipping Charges,D3421   ,16/06/2015,60039529_1,526,Revenue,20000263,SHEEHAN HAULAGE & PLANT HIRE LTD
Oxford City Council,Direct Services,Temporary Bureau Staffing,A0108   ,23/06/2015,60039691_0,660,Revenue,20000263,SHEEHAN HAULAGE & PLANT HIRE LTD
Oxford City Council,Direct Services,General Contracted Services,D3401   ,23/06/2015,60039861_0,2808,Revenue,20000263,SHEEHAN HAULAGE & PLANT HIRE LTD
Oxford City Council,Direct Services,General Contracted Services,D3401   ,23/06/2015,60039862_1,1869.07,Revenue,20000263,SHEEHAN HAULAGE & PLANT HIRE LTD
Oxford City Council,Direct Services,Temporary Bureau Staffing,A0108   ,30/06/2015,60040316_0,1716,Revenue,20000263,SHEEHAN HAULAGE & PLANT HIRE LTD
Oxford City Council,Direct Services,Direct Services Sub Contractors,B1111   ,06/05/2015,60037478_0,5975,Revenue,20000267,JOHN SHEEHAN (OXFORD) LTD
Oxford City Council,Direct Services,Direct Services Sub Contractors,B1111   ,30/06/2015,60040067_1,65052.21,Revenue,20000267,JOHN SHEEHAN (OXFORD) LTD
Oxford City Council,Direct Services,Sign Shop Materials,D3018   ,28/04/2015,60037204_1,3492,Revenue,20000278,B & M ENGINEERS LIMITED
Oxford City Council,Direct Services,Sign Shop Materials,D3018   ,23/06/2015,60039883_0,620.8,Revenue,20000278,B & M ENGINEERS LIMITED
Oxford City Council,Direct Services,General Contracted Services,D3401,14/04/2015,60036419_1,9980.5,Revenue,20000284,GORMAN SURFACING LIMITED
Oxford City Council,Housing and Property,Reactive Maintenance & Minor Repairs,B1101,14/04/2015,46285402_1,891.92,Revenue,20000286,D E & H V HUSSEY
Oxford City Council,Housing and Property,Reactive Maintenance & Minor Repairs,B1101,12/05/2015,46285764_1,548.61,Revenue,20000286,D E & H V HUSSEY
Oxford City Council,Housing and Property,Reactive Maintenance & Minor Repairs,B1101,19/05/2015,46285809_1,664.07,Revenue,20000286,D E & H V HUSSEY
Oxford City Council,Regeneration and Major Projects Team,Main Contractor,Y021,12/05/2015,48021206_1,720,Capital,20000286,D E & H V HUSSEY
Oxford City Council,Regeneration and Major Projects Team,Main Contractor,Y021,19/05/2015,48021221_1,945,Capital,20000286,D E & H V HUSSEY
Oxford City Council,Housing and Property,Reactive Maintenance & Minor Repairs,B1101   ,07/04/2015,60036152_2,1350,Revenue,20000286,D E & H V HUSSEY
Oxford City Council,Housing and Property,Reactive Maintenance & Minor Repairs,B1101   ,19/05/2015,60038008_1,526.2,Revenue,20000286,D E & H V HUSSEY
Oxford City Council,HRA,Controlled Entry Maintenance,B1243,28/04/2015,46285599_1,1722.98,Revenue,20000293,TUNSTALL TELECOM LIMITED
Oxford City Council,HRA,Controlled Entry Maintenance,B1243,28/04/2015,46285599_2,95.42,Revenue,20000293,TUNSTALL TELECOM LIMITED
Oxford City Council,HRA,Controlled Entry Maintenance,B1243,23/06/2015,46286287_1,1536.18,Revenue,20000293,TUNSTALL TELECOM LIMITED
Oxford City Council,HRA,Controlled Entry Maintenance,B1243,23/06/2015,46286287_2,95.42,Revenue,20000293,TUNSTALL TELECOM LIMITED
Oxford City Council,HRA,Controlled Entry Maintenance,B1243,23/06/2015,46286288_1,1536.18,Revenue,20000293,TUNSTALL TELECOM LIMITED
Oxford City Council,HRA,Controlled Entry Maintenance,B1243,23/06/2015,46286288_2,95.42,Revenue,20000293,TUNSTALL TELECOM LIMITED
Oxford City Council,HRA,Main Contractor,Y021,06/05/2015,1015855_1,3707.25,Capital,20000314,MARK GROUP LTD
Oxford City Council,Housing and Property,Services Maintenance (Planned),B1103,09/06/2015,46286150_1,5236.76,Revenue,20000386,OTIS LIMITED
Oxford City Council,Direct Services,Reactive Maintenance & Minor Repairs,B1101,14/04/2015,1015043_1,690,Revenue,20000397,WINDRUSH DOOR & WINDOW SERVICES LTD
Oxford City Council,Direct Services,Direct Services Sub Contractors,B1111   ,07/04/2015,60036038_1,3900,Revenue,20000441,1ST CHOICE SCAFFOLDING (OXFORD) LTD
Oxford City Council,Direct Services,Direct Services Sub Contractors,B1111   ,07/04/2015,60036044_1,655.2,Revenue,20000441,1ST CHOICE SCAFFOLDING (OXFORD) LTD
Oxford City Council,Direct Services,Direct Services Sub Contractors,B1111   ,07/04/2015,60036046_1,561.6,Revenue,20000441,1ST CHOICE SCAFFOLDING (OXFORD) LTD
Oxford City Council,Direct Services,Direct Services Sub Contractors,B1111   ,21/04/2015,60036904_1,655.2,Revenue,20000441,1ST CHOICE SCAFFOLDING (OXFORD) LTD
Oxford City Council,Direct Services,Direct Services Sub Contractors,B1111   ,21/04/2015,60036928_1,842.4,Revenue,20000441,1ST CHOICE SCAFFOLDING (OXFORD) LTD
Oxford City Council,Direct Services,Direct Services Sub Contractors,B1111   ,28/04/2015,60037065_0,1370,Revenue,20000441,1ST CHOICE SCAFFOLDING (OXFORD) LTD
Oxford City Council,Direct Services,Direct Services Supplies & Services,D3311   ,28/04/2015,60037067_0,1825.2,Revenue,20000441,1ST CHOICE SCAFFOLDING (OXFORD) LTD
Oxford City Council,Direct Services,Direct Services Sub Contractors,B1111   ,28/04/2015,60037071_0,624,Revenue,20000441,1ST CHOICE SCAFFOLDING (OXFORD) LTD
Oxford City Council,Direct Services,Direct Services Sub Contractors,B1111   ,06/05/2015,60037480_0,8400,Revenue,20000441,1ST CHOICE SCAFFOLDING (OXFORD) LTD
Oxford City Council,Direct Services,Direct Services Sub Contractors,B1111   ,27/05/2015,60038541_0,686.4,Revenue,20000441,1ST CHOICE SCAFFOLDING (OXFORD) LTD
Oxford City Council,Direct Services,Direct Services Sub Contractors,B1111   ,30/06/2015,60040365_1,720,Revenue,20000441,1ST CHOICE SCAFFOLDING (OXFORD) LTD
Oxford City Council,Direct Services,Direct Services Sub Contractors,B1111   ,30/06/2015,60040367_1,550,Revenue,20000441,1ST CHOICE SCAFFOLDING (OXFORD) LTD
Oxford City Council,Direct Services,Direct Services Sub Contractors,B1111   ,30/06/2015,60040369_1,220,Revenue,20000441,1ST CHOICE SCAFFOLDING (OXFORD) LTD
Oxford City Council,Direct Services,Direct Services Sub Contractors,B1111   ,30/06/2015,60040369_2,1684.8,Revenue,20000441,1ST CHOICE SCAFFOLDING (OXFORD) LTD
Oxford City Council,Direct Services,Direct Services Sub Contractors,B1111   ,30/06/2015,60040403_1,546,Revenue,20000441,1ST CHOICE SCAFFOLDING (OXFORD) LTD
Oxford City Council,HRA,Laundry Appliances,B1222,06/05/2015,46285706_1,1019.7,Revenue,20002002,AJB ENGINEERING SERVICES LTD
Oxford City Council,HRA,Laundry Appliances,B1222,06/05/2015,46285706_2,169.17,Revenue,20002002,AJB ENGINEERING SERVICES LTD
Oxford City Council,HRA,Laundry Appliances,B1222,02/06/2015,46286026_1,1019.71,Revenue,20002002,AJB ENGINEERING SERVICES LTD
Oxford City Council,HRA,Laundry Appliances,B1222,02/06/2015,46286026_2,256.17,Revenue,20002002,AJB ENGINEERING SERVICES LTD
Oxford City Council,Suspense,Materials,D3021,14/04/2015,60036263_1,635.36,Revenue,20002005,HANSON AGGREGATES
Oxford City Council,Direct Services,Materials,D3021,14/04/2015,60036265_1,1560,Revenue,20002005,HANSON AGGREGATES
Oxford City Council,Direct Services,Materials,D3021,14/04/2015,60036421_1,1184,Revenue,20002005,HANSON AGGREGATES
Oxford City Council,Direct Services,Materials,D3021,14/04/2015,60036422_1,1181.04,Revenue,20002005,HANSON AGGREGATES
Oxford City Council,Direct Services,Materials,D3021,14/04/2015,60036424_1,666,Revenue,20002005,HANSON AGGREGATES
Oxford City Council,Direct Services,Materials,D3021,14/04/2015,60036425_1,1184,Revenue,20002005,HANSON AGGREGATES
Oxford City Council,Direct Services,Materials,D3021   ,28/04/2015,60037027_0,1248,Revenue,20002005,HANSON AGGREGATES
Oxford City Council,Direct Services,Materials,D3021   ,28/04/2015,60037031_0,801.84,Revenue,20002005,HANSON AGGREGATES
Oxford City Council,Direct Services,Materials,D3021   ,28/04/2015,60037032_1,947.43,Revenue,20002005,HANSON AGGREGATES
Oxford City Council,Direct Services,Materials,D3021   ,28/04/2015,60037172_1,619.84,Revenue,20002005,HANSON AGGREGATES
Oxford City Council,Direct Services,Materials,D3021   ,28/04/2015,60037199_0,980.84,Revenue,20002005,HANSON AGGREGATES
Oxford City Council,Direct Services,Materials,D3021   ,28/04/2015,60037263_0,1478.52,Revenue,20002005,HANSON AGGREGATES
Oxford City Council,Suspense,Materials,D3021   ,28/04/2015,60037264_1,853.06,Revenue,20002005,HANSON AGGREGATES
Oxford City Council,Direct Services,Materials,D3021   ,28/04/2015,60037265_0,1425.24,Revenue,20002005,HANSON AGGREGATES
Oxford City Council,Suspense,Materials,D3021   ,27/05/2015,60038343_0,637.88,Revenue,20002005,HANSON AGGREGATES
Oxford City Council,Direct Services,Materials,D3021   ,27/05/2015,60038344_1,1136,Revenue,20002005,HANSON AGGREGATES
Oxford City Council,Direct Services,Materials,D3021   ,27/05/2015,60038345_0,1178.08,Revenue,20002005,HANSON AGGREGATES
Oxford City Council,Direct Services,Materials,D3021   ,27/05/2015,60038358_1,888,Revenue,20002005,HANSON AGGREGATES
Oxford City Council,Direct Services,Materials,D3021   ,02/06/2015,60038727_1,740,Revenue,20002005,HANSON AGGREGATES
Oxford City Council,Direct Services,Materials,D3021   ,02/06/2015,60038751_1,3509.44,Revenue,20002005,HANSON AGGREGATES
Oxford City Council,Direct Services,Materials,D3021   ,02/06/2015,60038752_0,2286.36,Revenue,20002005,HANSON AGGREGATES
Oxford City Council,Direct Services,Materials,D3021   ,09/06/2015,60039034_0,2124,Revenue,20002005,HANSON AGGREGATES
Oxford City Council,Direct Services,Materials,D3021   ,09/06/2015,60039035_1,669.9,Revenue,20002005,HANSON AGGREGATES
Oxford City Council,Direct Services,Materials,D3021   ,09/06/2015,60039037_1,853.64,Revenue,20002005,HANSON AGGREGATES
Oxford City Council,Suspense,Materials,D3021   ,09/06/2015,60039038_0,608.27,Revenue,20002005,HANSON AGGREGATES
Oxford City Council,Direct Services,Materials,D3021   ,16/06/2015,60039435_1,1401.12,Revenue,20002005,HANSON AGGREGATES
Oxford City Council,Direct Services,Materials,D3021   ,16/06/2015,60039448_0,604.8,Revenue,20002005,HANSON AGGREGATES
Oxford City Council,Direct Services,Materials,D3021   ,16/06/2015,60039460_0,1680,Revenue,20002005,HANSON AGGREGATES
Oxford City Council,Direct Services,Materials,D3021   ,16/06/2015,60039461_1,1680,Revenue,20002005,HANSON AGGREGATES
Oxford City Council,Direct Services,Materials,D3021   ,16/06/2015,60039462_0,848.16,Revenue,20002005,HANSON AGGREGATES
Oxford City Council,Direct Services,Materials,D3021   ,16/06/2015,60039464_0,932.88,Revenue,20002005,HANSON AGGREGATES
Oxford City Council,Suspense,Materials,D3021   ,16/06/2015,60039466_0,619.29,Revenue,20002005,HANSON AGGREGATES
Oxford City Council,Suspense,Materials,D3021   ,16/06/2015,60039467_1,877.37,Revenue,20002005,HANSON AGGREGATES
Oxford City Council,Direct Services,Materials,D3021   ,23/06/2015,60039659_0,660,Revenue,20002005,HANSON AGGREGATES
Oxford City Council,Direct Services,Materials,D3021   ,23/06/2015,60039864_1,1043.5,Revenue,20002005,HANSON AGGREGATES
Oxford City Council,Direct Services,Materials,D3021   ,30/06/2015,60040320_0,586.67,Revenue,20002005,HANSON AGGREGATES
Oxford City Council,Suspense,Materials,D3021   ,30/06/2015,60040326_0,629.37,Revenue,20002005,HANSON AGGREGATES
Oxford City Council,Direct Services,Materials,D3021,21/04/2015,47979729_2,48.4,Revenue,20002006,ATS EUROMASTER LIMITED
Oxford City Council,Direct Services,Veh.maint direct purchase,D3031,21/04/2015,47979729_3,675.87,Revenue,20002006,ATS EUROMASTER LIMITED
Oxford City Council,Direct Services,Materials,D3021,19/05/2015,47979942_1,691.26,Revenue,20002033,TENNANT UK CLEANING SOLUTIONS LTD (FORMERLY APPLIED SWEEPERS LTD)
Oxford City Council,Direct Services,Materials,D3021,19/05/2015,47979942_2,14.7,Revenue,20002033,TENNANT UK CLEANING SOLUTIONS LTD (FORMERLY APPLIED SWEEPERS LTD)
Oxford City Council,Community Services,Tools,D3023,23/06/2015,1016917_1,1238.04,Revenue,20002034,ARCO LTD
Oxford City Council,Direct Services,Materials,D3021   ,21/04/2015,60036882_1,915.59,Revenue,20002034,ARCO LTD
Oxford City Council,Community Services,Grants,D3701,28/04/2015,46285646_1,14128,Revenue,20002085,FUSION
Oxford City Council,Housing and Property,Gas,B1502,07/04/2015,1014815_1,1708.8,Revenue,20002096,BRITISH GAS TRADING LTD
Oxford City Council,Environmental Development,Other Contributions,Y995,21/04/2015,1015368_1,72000,Capital,20002099,CANAL & RIVER TRUST
Oxford City Council,HRA,Rent,B1701,16/06/2015,1017370_1,1200,Revenue,20002099,CANAL & RIVER TRUST
Oxford City Council,Direct Services,General Contracted Services,D3401   ,09/06/2015,47980222_1,1543,Revenue,20002117,CTC WITNEY
Oxford City Council,Direct Services,Security Services,D3418,21/04/2015,1015373_1,4449.11,Revenue,20002120,OCS GROUP UK LTD T/A CANNON
Oxford City Council,Direct Services,Security Services,D3418,23/06/2015,1017455_1,4449.11,Revenue,20002120,OCS GROUP UK LTD T/A CANNON
Oxford City Council,Direct Services,General Contracted Services,D3401,23/06/2015,1017456_1,543.13,Revenue,20002120,OCS GROUP UK LTD T/A CANNON
Oxford City Council,Direct Services,Security Services,D3418,23/06/2015,1017457_1,4449.11,Revenue,20002120,OCS GROUP UK LTD T/A CANNON
Oxford City Council,Direct Services,General Contracted Services,D3401,23/06/2015,1017458_1,543.13,Revenue,20002120,OCS GROUP UK LTD T/A CANNON
Oxford City Council,Direct Services,Security Services,D3418,30/06/2015,1017459_1,4449.11,Revenue,20002120,OCS GROUP UK LTD T/A CANNON
Oxford City Council,Direct Services,General Contracted Services,D3401,30/06/2015,1017460_1,543.13,Revenue,20002120,OCS GROUP UK LTD T/A CANNON
Oxford City Council,Community Services,Photocopying/Paper Supplies,D3306,14/04/2015,1015046_1,1905.49,Revenue,20002121,CANON (UK) LTD
Oxford City Council,Community Services,Photocopying/Paper Supplies,D3306,21/04/2015,1015154_1,1019,Revenue,20002121,CANON (UK) LTD
Oxford City Council,Community Services,Photocopying/Paper Supplies,D3306,21/04/2015,1015155_1,1395.8,Revenue,20002121,CANON (UK) LTD
Oxford City Council,Planning & Regulatory,Photocopying/Paper Supplies,D3306,28/04/2015,1015482_1,962.54,Revenue,20002121,CANON (UK) LTD
Oxford City Council,Planning & Regulatory,Photocopying/Paper Supplies,D3306,02/06/2015,1016572_1,697.07,Revenue,20002121,CANON (UK) LTD
Oxford City Council,Community Services,Photocopying/Paper Supplies,D3306,09/06/2015,1017004_1,1404.29,Revenue,20002121,CANON (UK) LTD
Oxford City Council,Community Services,Photocopying/Paper Supplies,D3306,09/06/2015,1017005_1,1032.97,Revenue,20002121,CANON (UK) LTD
Oxford City Council,Direct Services,Photocopying/Paper Supplies,D3306,09/06/2015,1017006_1,836.41,Revenue,20002121,CANON (UK) LTD
Oxford City Council,Direct Services,Photocopying/Paper Supplies,D3306,09/06/2015,1017010_1,1404.69,Revenue,20002121,CANON (UK) LTD
Oxford City Council,Direct Services,Photocopying/Paper Supplies,D3306,23/06/2015,1017231_1,2013.42,Revenue,20002121,CANON (UK) LTD
Oxford City Council,Direct Services,Photocopying/Paper Supplies,D3306,23/06/2015,1017237_1,918.85,Revenue,20002121,CANON (UK) LTD
Oxford City Council,Direct Services,Main Contractor,Y021,14/04/2015,47979657_10,286,Capital,20002134,HARTWELL FORD KIDLINGTON
Oxford City Council,Direct Services,Main Contractor,Y021,14/04/2015,47979657_11,1495,Capital,20002134,HARTWELL FORD KIDLINGTON
Oxford City Council,Direct Services,Main Contractor,Y021,14/04/2015,47979657_12,749,Capital,20002134,HARTWELL FORD KIDLINGTON
Oxford City Council,Direct Services,Main Contractor,Y021,14/04/2015,47979657_2,16376.75,Capital,20002134,HARTWELL FORD KIDLINGTON
Oxford City Council,Direct Services,Main Contractor,Y021,14/04/2015,47979657_3,60,Capital,20002134,HARTWELL FORD KIDLINGTON
Oxford City Council,Direct Services,Main Contractor,Y021,14/04/2015,47979657_4,150,Capital,20002134,HARTWELL FORD KIDLINGTON
Oxford City Council,Direct Services,Main Contractor,Y021,14/04/2015,47979657_5,45,Capital,20002134,HARTWELL FORD KIDLINGTON
Oxford City Council,Direct Services,Main Contractor,Y021,14/04/2015,47979657_6,530,Capital,20002134,HARTWELL FORD KIDLINGTON
Oxford City Council,Direct Services,Main Contractor,Y021,14/04/2015,47979657_7,30,Capital,20002134,HARTWELL FORD KIDLINGTON
Oxford City Council,Direct Services,Main Contractor,Y021,14/04/2015,47979657_8,195,Capital,20002134,HARTWELL FORD KIDLINGTON
Oxford City Council,Direct Services,Main Contractor,Y021,14/04/2015,47979657_9,6595,Capital,20002134,HARTWELL FORD KIDLINGTON
Oxford City Council,Direct Services,Main Contractor,Y021,14/04/2015,47979664_0,16376.75,Capital,20002134,HARTWELL FORD KIDLINGTON
Oxford City Council,Direct Services,Main Contractor,Y021,14/04/2015,47979664_1,60,Capital,20002134,HARTWELL FORD KIDLINGTON
Oxford City Council,Direct Services,Main Contractor,Y021,14/04/2015,47979664_10,749,Capital,20002134,HARTWELL FORD KIDLINGTON
Oxford City Council,Direct Services,Main Contractor,Y021,14/04/2015,47979664_2,150,Capital,20002134,HARTWELL FORD KIDLINGTON
Oxford City Council,Direct Services,Main Contractor,Y021,14/04/2015,47979664_3,45,Capital,20002134,HARTWELL FORD KIDLINGTON
Oxford City Council,Direct Services,Main Contractor,Y021,14/04/2015,47979664_4,530,Capital,20002134,HARTWELL FORD KIDLINGTON
Oxford City Council,Direct Services,Main Contractor,Y021,14/04/2015,47979664_5,30,Capital,20002134,HARTWELL FORD KIDLINGTON
Oxford City Council,Direct Services,Main Contractor,Y021,14/04/2015,47979664_6,195,Capital,20002134,HARTWELL FORD KIDLINGTON
Oxford City Council,Direct Services,Main Contractor,Y021,14/04/2015,47979664_7,6595,Capital,20002134,HARTWELL FORD KIDLINGTON
Oxford City Council,Direct Services,Main Contractor,Y021,14/04/2015,47979664_8,286,Capital,20002134,HARTWELL FORD KIDLINGTON
Oxford City Council,Direct Services,Main Contractor,Y021,14/04/2015,47979664_9,1495,Capital,20002134,HARTWELL FORD KIDLINGTON
Oxford City Council,Direct Services,Main Contractor,Y021,21/04/2015,47979682_0,15856.75,Capital,20002134,HARTWELL FORD KIDLINGTON
Oxford City Council,Direct Services,Main Contractor,Y021,21/04/2015,47979682_1,475,Capital,20002134,HARTWELL FORD KIDLINGTON
Oxford City Council,Direct Services,Main Contractor,Y021,21/04/2015,47979682_2,150,Capital,20002134,HARTWELL FORD KIDLINGTON
Oxford City Council,Direct Services,Main Contractor,Y021,21/04/2015,47979682_3,45,Capital,20002134,HARTWELL FORD KIDLINGTON
Oxford City Council,Direct Services,Main Contractor,Y021,21/04/2015,47979682_4,530,Capital,20002134,HARTWELL FORD KIDLINGTON
Oxford City Council,Direct Services,Main Contractor,Y021,21/04/2015,47979682_5,30,Capital,20002134,HARTWELL FORD KIDLINGTON
Oxford City Council,Direct Services,Main Contractor,Y021,21/04/2015,47979682_6,195,Capital,20002134,HARTWELL FORD KIDLINGTON
Oxford City Council,Direct Services,Main Contractor,Y021,21/04/2015,47979682_7,6230,Capital,20002134,HARTWELL FORD KIDLINGTON
Oxford City Council,Direct Services,Main Contractor,Y021,21/04/2015,47979682_8,250,Capital,20002134,HARTWELL FORD KIDLINGTON
Oxford City Council,Direct Services,Main Contractor,Y021,21/04/2015,47979682_9,749,Capital,20002134,HARTWELL FORD KIDLINGTON
Oxford City Council,Direct Services,Main Contractor,Y021,21/04/2015,47979691_10,280,Capital,20002134,HARTWELL FORD KIDLINGTON
Oxford City Council,Direct Services,Main Contractor,Y021,21/04/2015,47979691_11,749,Capital,20002134,HARTWELL FORD KIDLINGTON
Oxford City Council,Direct Services,Main Contractor,Y021,21/04/2015,47979691_2,16376.75,Capital,20002134,HARTWELL FORD KIDLINGTON
Oxford City Council,Direct Services,Main Contractor,Y021,21/04/2015,47979691_3,60,Capital,20002134,HARTWELL FORD KIDLINGTON
Oxford City Council,Direct Services,Main Contractor,Y021,21/04/2015,47979691_4,150,Capital,20002134,HARTWELL FORD KIDLINGTON
Oxford City Council,Direct Services,Main Contractor,Y021,21/04/2015,47979691_5,45,Capital,20002134,HARTWELL FORD KIDLINGTON
Oxford City Council,Direct Services,Main Contractor,Y021,21/04/2015,47979691_6,530,Capital,20002134,HARTWELL FORD KIDLINGTON
Oxford City Council,Direct Services,Main Contractor,Y021,21/04/2015,47979691_7,30,Capital,20002134,HARTWELL FORD KIDLINGTON
Oxford City Council,Direct Services,Main Contractor,Y021,21/04/2015,47979691_8,195,Capital,20002134,HARTWELL FORD KIDLINGTON
Oxford City Council,Direct Services,Main Contractor,Y021,21/04/2015,47979691_9,8945,Capital,20002134,HARTWELL FORD KIDLINGTON
Oxford City Council,Direct Services,Main Contractor,Y021,21/04/2015,47979694_0,15856.75,Capital,20002134,HARTWELL FORD KIDLINGTON
Oxford City Council,Direct Services,Main Contractor,Y021,21/04/2015,47979694_1,475,Capital,20002134,HARTWELL FORD KIDLINGTON
Oxford City Council,Direct Services,Main Contractor,Y021,21/04/2015,47979694_2,150,Capital,20002134,HARTWELL FORD KIDLINGTON
Oxford City Council,Direct Services,Main Contractor,Y021,21/04/2015,47979694_3,45,Capital,20002134,HARTWELL FORD KIDLINGTON
Oxford City Council,Direct Services,Main Contractor,Y021,21/04/2015,47979694_4,530,Capital,20002134,HARTWELL FORD KIDLINGTON
Oxford City Council,Direct Services,Main Contractor,Y021,21/04/2015,47979694_5,30,Capital,20002134,HARTWELL FORD KIDLINGTON
Oxford City Council,Direct Services,Main Contractor,Y021,21/04/2015,47979694_6,195,Capital,20002134,HARTWELL FORD KIDLINGTON
Oxford City Council,Direct Services,Main Contractor,Y021,21/04/2015,47979694_7,6230,Capital,20002134,HARTWELL FORD KIDLINGTON
Oxford City Council,Direct Services,Main Contractor,Y021,21/04/2015,47979694_8,250,Capital,20002134,HARTWELL FORD KIDLINGTON
Oxford City Council,Direct Services,Main Contractor,Y021,21/04/2015,47979694_9,749,Capital,20002134,HARTWELL FORD KIDLINGTON
Oxford City Council,Direct Services,Main Contractor,Y021,21/04/2015,47979707_10,749,Capital,20002134,HARTWELL FORD KIDLINGTON
Oxford City Council,Direct Services,Main Contractor,Y021,21/04/2015,47979707_2,15856.75,Capital,20002134,HARTWELL FORD KIDLINGTON
Oxford City Council,Direct Services,Main Contractor,Y021,21/04/2015,47979707_3,150,Capital,20002134,HARTWELL FORD KIDLINGTON
Oxford City Council,Direct Services,Main Contractor,Y021,21/04/2015,47979707_4,45,Capital,20002134,HARTWELL FORD KIDLINGTON
Oxford City Council,Direct Services,Main Contractor,Y021,21/04/2015,47979707_5,530,Capital,20002134,HARTWELL FORD KIDLINGTON
Oxford City Council,Direct Services,Main Contractor,Y021,21/04/2015,47979707_6,30,Capital,20002134,HARTWELL FORD KIDLINGTON
Oxford City Council,Direct Services,Main Contractor,Y021,21/04/2015,47979707_7,195,Capital,20002134,HARTWELL FORD KIDLINGTON
Oxford City Council,Direct Services,Main Contractor,Y021,21/04/2015,47979707_8,7319,Capital,20002134,HARTWELL FORD KIDLINGTON
Oxford City Council,Direct Services,Main Contractor,Y021,21/04/2015,47979707_9,250,Capital,20002134,HARTWELL FORD KIDLINGTON
Oxford City Council,Direct Services,Main Contractor,Y021,21/04/2015,47979724_0,15856.75,Capital,20002134,HARTWELL FORD KIDLINGTON
Oxford City Council,Direct Services,Main Contractor,Y021,21/04/2015,47979724_1,60,Capital,20002134,HARTWELL FORD KIDLINGTON
Oxford City Council,Direct Services,Main Contractor,Y021,21/04/2015,47979724_10,1495,Capital,20002134,HARTWELL FORD KIDLINGTON
Oxford City Council,Direct Services,Main Contractor,Y021,21/04/2015,47979724_11,749,Capital,20002134,HARTWELL FORD KIDLINGTON
Oxford City Council,Direct Services,Main Contractor,Y021,21/04/2015,47979724_12,650,Capital,20002134,HARTWELL FORD KIDLINGTON
Oxford City Council,Direct Services,Main Contractor,Y021,21/04/2015,47979724_2,150,Capital,20002134,HARTWELL FORD KIDLINGTON
Oxford City Council,Direct Services,Main Contractor,Y021,21/04/2015,47979724_3,45,Capital,20002134,HARTWELL FORD KIDLINGTON
Oxford City Council,Direct Services,Main Contractor,Y021,21/04/2015,47979724_4,600,Capital,20002134,HARTWELL FORD KIDLINGTON
Oxford City Council,Direct Services,Main Contractor,Y021,21/04/2015,47979724_5,530,Capital,20002134,HARTWELL FORD KIDLINGTON
Oxford City Council,Direct Services,Main Contractor,Y021,21/04/2015,47979724_6,30,Capital,20002134,HARTWELL FORD KIDLINGTON
Oxford City Council,Direct Services,Main Contractor,Y021,21/04/2015,47979724_7,195,Capital,20002134,HARTWELL FORD KIDLINGTON
Oxford City Council,Direct Services,Main Contractor,Y021,21/04/2015,47979724_8,4795,Capital,20002134,HARTWELL FORD KIDLINGTON
Oxford City Council,Direct Services,Main Contractor,Y021,21/04/2015,47979724_9,280,Capital,20002134,HARTWELL FORD KIDLINGTON
Oxford City Council,Direct Services,Main Contractor,Y021,21/04/2015,47979736_0,15856.75,Capital,20002134,HARTWELL FORD KIDLINGTON
Oxford City Council,Direct Services,Main Contractor,Y021,21/04/2015,47979736_1,475,Capital,20002134,HARTWELL FORD KIDLINGTON
Oxford City Council,Direct Services,Main Contractor,Y021,21/04/2015,47979736_2,150,Capital,20002134,HARTWELL FORD KIDLINGTON
Oxford City Council,Direct Services,Main Contractor,Y021,21/04/2015,47979736_3,45,Capital,20002134,HARTWELL FORD KIDLINGTON
Oxford City Council,Direct Services,Main Contractor,Y021,21/04/2015,47979736_4,530,Capital,20002134,HARTWELL FORD KIDLINGTON
Oxford City Council,Direct Services,Main Contractor,Y021,21/04/2015,47979736_5,30,Capital,20002134,HARTWELL FORD KIDLINGTON
Oxford City Council,Direct Services,Main Contractor,Y021,21/04/2015,47979736_6,195,Capital,20002134,HARTWELL FORD KIDLINGTON
Oxford City Council,Direct Services,Main Contractor,Y021,21/04/2015,47979736_7,6230,Capital,20002134,HARTWELL FORD KIDLINGTON
Oxford City Council,Direct Services,Main Contractor,Y021,21/04/2015,47979736_8,250,Capital,20002134,HARTWELL FORD KIDLINGTON
Oxford City Council,Direct Services,Main Contractor,Y021,21/04/2015,47979736_9,749,Capital,20002134,HARTWELL FORD KIDLINGTON
Oxford City Council,Direct Services,Main Contractor,Y021,21/04/2015,47979738_0,15856.75,Capital,20002134,HARTWELL FORD KIDLINGTON
Oxford City Council,Direct Services,Main Contractor,Y021,21/04/2015,47979738_1,60,Capital,20002134,HARTWELL FORD KIDLINGTON
Oxford City Council,Direct Services,Main Contractor,Y021,21/04/2015,47979738_10,1495,Capital,20002134,HARTWELL FORD KIDLINGTON
Oxford City Council,Direct Services,Main Contractor,Y021,21/04/2015,47979738_11,749,Capital,20002134,HARTWELL FORD KIDLINGTON
Oxford City Council,Direct Services,Main Contractor,Y021,21/04/2015,47979738_12,650,Capital,20002134,HARTWELL FORD KIDLINGTON
Oxford City Council,Direct Services,Main Contractor,Y021,21/04/2015,47979738_2,150,Capital,20002134,HARTWELL FORD KIDLINGTON
Oxford City Council,Direct Services,Main Contractor,Y021,21/04/2015,47979738_3,45,Capital,20002134,HARTWELL FORD KIDLINGTON
Oxford City Council,Direct Services,Main Contractor,Y021,21/04/2015,47979738_4,600,Capital,20002134,HARTWELL FORD KIDLINGTON
Oxford City Council,Direct Services,Main Contractor,Y021,21/04/2015,47979738_5,530,Capital,20002134,HARTWELL FORD KIDLINGTON
Oxford City Council,Direct Services,Main Contractor,Y021,21/04/2015,47979738_6,30,Capital,20002134,HARTWELL FORD KIDLINGTON
Oxford City Council,Direct Services,Main Contractor,Y021,21/04/2015,47979738_7,195,Capital,20002134,HARTWELL FORD KIDLINGTON
Oxford City Council,Direct Services,Main Contractor,Y021,21/04/2015,47979738_8,4795,Capital,20002134,HARTWELL FORD KIDLINGTON
Oxford City Council,Direct Services,Main Contractor,Y021,21/04/2015,47979738_9,280,Capital,20002134,HARTWELL FORD KIDLINGTON
Oxford City Council,Direct Services,Main Contractor,Y021,12/05/2015,47979776_0,5868.93,Capital,20002134,HARTWELL FORD KIDLINGTON
Oxford City Council,Direct Services,Main Contractor,Y021,12/05/2015,47979776_1,55,Capital,20002134,HARTWELL FORD KIDLINGTON
Oxford City Council,Direct Services,Main Contractor,Y021,12/05/2015,47979776_2,592.5,Capital,20002134,HARTWELL FORD KIDLINGTON
Oxford City Council,Direct Services,Main Contractor,Y021,12/05/2015,47979776_3,395,Capital,20002134,HARTWELL FORD KIDLINGTON
Oxford City Council,Direct Services,Main Contractor,Y021,12/05/2015,47979776_4,295,Capital,20002134,HARTWELL FORD KIDLINGTON
Oxford City Council,Direct Services,Main Contractor,Y021,12/05/2015,47979776_5,46.5,Capital,20002134,HARTWELL FORD KIDLINGTON
Oxford City Council,Direct Services,Main Contractor,Y021,12/05/2015,47979776_6,58.5,Capital,20002134,HARTWELL FORD KIDLINGTON
Oxford City Council,Direct Services,Main Contractor,Y021,12/05/2015,47979776_7,245,Capital,20002134,HARTWELL FORD KIDLINGTON
Oxford City Council,Direct Services,Main Contractor,Y021,12/05/2015,47979777_1,6073.1,Capital,20002134,HARTWELL FORD KIDLINGTON
Oxford City Council,Direct Services,Main Contractor,Y021,12/05/2015,47979777_2,55,Capital,20002134,HARTWELL FORD KIDLINGTON
Oxford City Council,Direct Services,Main Contractor,Y021,12/05/2015,47979777_3,592.5,Capital,20002134,HARTWELL FORD KIDLINGTON
Oxford City Council,Direct Services,Main Contractor,Y021,12/05/2015,47979777_4,395,Capital,20002134,HARTWELL FORD KIDLINGTON
Oxford City Council,Direct Services,Main Contractor,Y021,12/05/2015,47979777_5,295,Capital,20002134,HARTWELL FORD KIDLINGTON
Oxford City Council,Direct Services,Main Contractor,Y021,12/05/2015,47979777_6,46.5,Capital,20002134,HARTWELL FORD KIDLINGTON
Oxford City Council,Direct Services,Main Contractor,Y021,12/05/2015,47979777_7,58.5,Capital,20002134,HARTWELL FORD KIDLINGTON
Oxford City Council,Direct Services,Main Contractor,Y021,12/05/2015,47979777_8,245,Capital,20002134,HARTWELL FORD KIDLINGTON
Oxford City Council,Direct Services,Main Contractor,Y021,19/05/2015,47979966_1,7854,Capital,20002134,HARTWELL FORD KIDLINGTON
Oxford City Council,Direct Services,Main Contractor,Y021,19/05/2015,47979966_2,55,Capital,20002134,HARTWELL FORD KIDLINGTON
Oxford City Council,Direct Services,Main Contractor,Y021,19/05/2015,47979966_3,592.5,Capital,20002134,HARTWELL FORD KIDLINGTON
Oxford City Council,Direct Services,Main Contractor,Y021,19/05/2015,47979966_4,395,Capital,20002134,HARTWELL FORD KIDLINGTON
Oxford City Council,Direct Services,Main Contractor,Y021,19/05/2015,47979966_5,295,Capital,20002134,HARTWELL FORD KIDLINGTON
Oxford City Council,Direct Services,Main Contractor,Y021,19/05/2015,47979966_6,46.5,Capital,20002134,HARTWELL FORD KIDLINGTON
Oxford City Council,Direct Services,Main Contractor,Y021,19/05/2015,47979966_7,58.5,Capital,20002134,HARTWELL FORD KIDLINGTON
Oxford City Council,Direct Services,Main Contractor,Y021,19/05/2015,47979966_8,245,Capital,20002134,HARTWELL FORD KIDLINGTON
Oxford City Council,Direct Services,Main Contractor,Y021    ,09/06/2015,47980225_0,8962.6,Capital,20002134,HARTWELL FORD KIDLINGTON
Oxford City Council,Direct Services,Main Contractor,Y021    ,09/06/2015,47980225_1,180,Capital,20002134,HARTWELL FORD KIDLINGTON
Oxford City Council,Direct Services,Main Contractor,Y021    ,09/06/2015,47980225_10,185,Capital,20002134,HARTWELL FORD KIDLINGTON
Oxford City Council,Direct Services,Main Contractor,Y021    ,09/06/2015,47980225_2,295,Capital,20002134,HARTWELL FORD KIDLINGTON
Oxford City Council,Direct Services,Main Contractor,Y021    ,09/06/2015,47980225_3,705,Capital,20002134,HARTWELL FORD KIDLINGTON
Oxford City Council,Direct Services,Main Contractor,Y021    ,09/06/2015,47980225_4,245,Capital,20002134,HARTWELL FORD KIDLINGTON
Oxford City Council,Direct Services,Main Contractor,Y021    ,09/06/2015,47980225_5,46.5,Capital,20002134,HARTWELL FORD KIDLINGTON
Oxford City Council,Direct Services,Main Contractor,Y021    ,09/06/2015,47980225_6,395,Capital,20002134,HARTWELL FORD KIDLINGTON
Oxford City Council,Direct Services,Main Contractor,Y021    ,09/06/2015,47980225_7,58.5,Capital,20002134,HARTWELL FORD KIDLINGTON
Oxford City Council,Direct Services,Main Contractor,Y021    ,09/06/2015,47980225_8,562.5,Capital,20002134,HARTWELL FORD KIDLINGTON
Oxford City Council,Direct Services,Main Contractor,Y021    ,09/06/2015,47980225_9,20,Capital,20002134,HARTWELL FORD KIDLINGTON
Oxford City Council,Direct Services,Veh.maint direct purchase,D3031,09/06/2015,46286066_1,557.29,Revenue,20002168,DENNIS EAGLE LTD
Oxford City Council,Suspense,Materials,D3021,14/04/2015,47979645_0,1103.3,Revenue,20002168,DENNIS EAGLE LTD
Oxford City Council,Direct Services,Materials,D3021   ,28/04/2015,60037138_1,3276.06,Revenue,20002171,EDMUNDSON ELECTRICAL LTD
Oxford City Council,Direct Services,Materials,D3021   ,07/04/2015,60036031_1,2373.53,Revenue,20002183,EYRE & ELLISTON LTD
Oxford City Council,Direct Services,Materials,D3021,14/04/2015,60036353_0,6144.35,Revenue,20002183,EYRE & ELLISTON LTD
Oxford City Council,Direct Services,Tools,D3023,14/04/2015,60036368_2,2769.12,Revenue,20002183,EYRE & ELLISTON LTD
Oxford City Council,Direct Services,Materials,D3021,14/04/2015,60036388_1,2274.84,Revenue,20002183,EYRE & ELLISTON LTD
Oxford City Council,Direct Services,Materials,D3021   ,21/04/2015,60036736_1,1455.19,Revenue,20002183,EYRE & ELLISTON LTD
Oxford City Council,Direct Services,Materials,D3021   ,21/04/2015,60036737_1,1858.65,Revenue,20002183,EYRE & ELLISTON LTD
Oxford City Council,Direct Services,Reactive Maintenance & Minor Repairs,B1101   ,21/04/2015,60036738_1,623.5,Revenue,20002183,EYRE & ELLISTON LTD
Oxford City Council,Direct Services,Materials,D3021   ,21/04/2015,60036739_1,1260.77,Revenue,20002183,EYRE & ELLISTON LTD
Oxford City Council,Direct Services,Materials,D3021   ,21/04/2015,60036760_0,4862.29,Revenue,20002183,EYRE & ELLISTON LTD
Oxford City Council,Direct Services,Direct Services Supplies & Services,D3311   ,21/04/2015,60036761_2,1257.49,Revenue,20002183,EYRE & ELLISTON LTD
Oxford City Council,Direct Services,Materials,D3021   ,21/04/2015,60036833_0,2587.32,Revenue,20002183,EYRE & ELLISTON LTD
Oxford City Council,Direct Services,Direct Services Supplies & Services,D3311   ,21/04/2015,60036903_0,751,Revenue,20002183,EYRE & ELLISTON LTD
Oxford City Council,Direct Services,Materials,D3021   ,21/04/2015,60036912_2,2520.9,Revenue,20002183,EYRE & ELLISTON LTD
Oxford City Council,Direct Services,Materials,D3021   ,28/04/2015,60037003_0,515.25,Revenue,20002183,EYRE & ELLISTON LTD
Oxford City Council,Direct Services,Materials,D3021   ,28/04/2015,60037004_1,2870.58,Revenue,20002183,EYRE & ELLISTON LTD
Oxford City Council,Direct Services,Materials,D3021   ,28/04/2015,60037223_0,3168,Revenue,20002183,EYRE & ELLISTON LTD
Oxford City Council,Direct Services,Materials,D3021   ,28/04/2015,60037228_1,1875.84,Revenue,20002183,EYRE & ELLISTON LTD
Oxford City Council,Direct Services,Reactive Maintenance & Minor Repairs,B1101   ,28/04/2015,60037345_0,623.5,Revenue,20002183,EYRE & ELLISTON LTD
Oxford City Council,Direct Services,Materials,D3021   ,28/04/2015,60037356_1,3079.28,Revenue,20002183,EYRE & ELLISTON LTD
Oxford City Council,Direct Services,Materials,D3021   ,12/05/2015,60037716_1,600.15,Revenue,20002183,EYRE & ELLISTON LTD
Oxford City Council,Direct Services,Direct Services Supplies & Services,D3311   ,12/05/2015,60037737_0,1207.67,Revenue,20002183,EYRE & ELLISTON LTD
Oxford City Council,Direct Services,Materials,D3021   ,12/05/2015,60037748_1,652.03,Revenue,20002183,EYRE & ELLISTON LTD
Oxford City Council,Direct Services,Materials,D3021   ,19/05/2015,60037894_1,3210.34,Revenue,20002183,EYRE & ELLISTON LTD
Oxford City Council,Direct Services,Materials,D3021   ,19/05/2015,60037896_1,642.38,Revenue,20002183,EYRE & ELLISTON LTD
Oxford City Council,Direct Services,Materials,D3021   ,19/05/2015,60037900_1,3029.31,Revenue,20002183,EYRE & ELLISTON LTD
Oxford City Council,Direct Services,Materials,D3021   ,19/05/2015,60037901_0,2866.25,Revenue,20002183,EYRE & ELLISTON LTD
Oxford City Council,Direct Services,Materials,D3021   ,19/05/2015,60037902_1,968.4,Revenue,20002183,EYRE & ELLISTON LTD
Oxford City Council,Direct Services,Direct Services Supplies & Services,D3311   ,27/05/2015,60038295_0,549.9,Revenue,20002183,EYRE & ELLISTON LTD
Oxford City Council,Direct Services,Materials,D3021   ,27/05/2015,60038298_1,1028.99,Revenue,20002183,EYRE & ELLISTON LTD
Oxford City Council,Direct Services,Materials,D3021   ,27/05/2015,60038305_0,5252.95,Revenue,20002183,EYRE & ELLISTON LTD
Oxford City Council,Direct Services,Materials,D3021   ,27/05/2015,60038307_0,2265.68,Revenue,20002183,EYRE & ELLISTON LTD
Oxford City Council,Direct Services,Materials,D3021   ,27/05/2015,60038491_0,1735.13,Revenue,20002183,EYRE & ELLISTON LTD
Oxford City Council,Direct Services,Materials,D3021   ,02/06/2015,60038695_1,3677.43,Revenue,20002183,EYRE & ELLISTON LTD
Oxford City Council,Direct Services,Materials,D3021   ,02/06/2015,60038696_0,898.78,Revenue,20002183,EYRE & ELLISTON LTD
Oxford City Council,Direct Services,Materials,D3021   ,02/06/2015,60038697_1,2645.79,Revenue,20002183,EYRE & ELLISTON LTD
Oxford City Council,Direct Services,Materials,D3021   ,09/06/2015,60038960_0,2017.87,Revenue,20002183,EYRE & ELLISTON LTD
Oxford City Council,Direct Services,Materials,D3021   ,09/06/2015,60038962_0,796.25,Revenue,20002183,EYRE & ELLISTON LTD
Oxford City Council,Direct Services,Materials,D3021   ,09/06/2015,60038972_0,784,Revenue,20002183,EYRE & ELLISTON LTD
Oxford City Council,Direct Services,Materials,D3021   ,09/06/2015,60038979_1,857.21,Revenue,20002183,EYRE & ELLISTON LTD
Oxford City Council,Direct Services,Materials,D3021   ,09/06/2015,60038981_1,1755.14,Revenue,20002183,EYRE & ELLISTON LTD
Oxford City Council,Direct Services,Direct Services Supplies & Services,D3311   ,09/06/2015,60039267_1,887.29,Revenue,20002183,EYRE & ELLISTON LTD
Oxford City Council,Direct Services,Materials,D3021   ,16/06/2015,60039340_0,2031.86,Revenue,20002183,EYRE & ELLISTON LTD
Oxford City Council,Direct Services,Materials,D3021   ,16/06/2015,60039404_0,1448.37,Revenue,20002183,EYRE & ELLISTON LTD
Oxford City Council,Direct Services,Materials,D3021   ,16/06/2015,60039405_1,848.55,Revenue,20002183,EYRE & ELLISTON LTD
Oxford City Council,Direct Services,Direct Services Supplies & Services,D3311   ,23/06/2015,60039797_0,569.42,Revenue,20002183,EYRE & ELLISTON LTD
Oxford City Council,Direct Services,Materials,D3021   ,23/06/2015,60039798_1,5467.21,Revenue,20002183,EYRE & ELLISTON LTD
Oxford City Council,Direct Services,Materials,D3021   ,23/06/2015,60039799_0,3845.69,Revenue,20002183,EYRE & ELLISTON LTD
Oxford City Council,Direct Services,Materials,D3021   ,30/06/2015,60040199_1,1768.71,Revenue,20002183,EYRE & ELLISTON LTD
Oxford City Council,Direct Services,Veh.maint direct purchase,D3031,16/06/2015,46286205_1,588,Revenue,20002198,FRENCO SERVICE REPLACMNTS LTD
Oxford City Council,Direct Services,Materials,D3021,19/05/2015,47980037_1,750,Revenue,20002198,FRENCO SERVICE REPLACMNTS LTD
Oxford City Council,Direct Services,Materials,D3021,19/05/2015,47980037_2,445,Revenue,20002198,FRENCO SERVICE REPLACMNTS LTD
Oxford City Council,Direct Services,Materials,D3021   ,27/05/2015,47980131_1,915.4,Revenue,20002198,FRENCO SERVICE REPLACMNTS LTD
Oxford City Council,Direct Services,Materials,D3021,09/06/2015,47980266_0,2450,Revenue,20002198,FRENCO SERVICE REPLACMNTS LTD
Oxford City Council,Direct Services,Materials,D3021   ,30/06/2015,47980432_1,455.76,Revenue,20002198,FRENCO SERVICE REPLACMNTS LTD
Oxford City Council,Direct Services,Materials,D3021   ,30/06/2015,47980432_2,457.7,Revenue,20002198,FRENCO SERVICE REPLACMNTS LTD
Oxford City Council,Direct Services,Waste Disposal & Skip Hire,D3420,07/04/2015,1014659_1,1016,Revenue,20002222,GRUNDON WASTE MANAGEMENT LTD
Oxford City Council,Direct Services,Waste Disposal & Skip Hire,D3420,28/04/2015,1015438_1,1022,Revenue,20002222,GRUNDON WASTE MANAGEMENT LTD
Oxford City Council,Direct Services,Waste Disposal & Skip Hire,D3420,02/06/2015,1016667_1,1802.72,Revenue,20002222,GRUNDON WASTE MANAGEMENT LTD
Oxford City Council,Suspense,Materials,D3021   ,28/04/2015,60037169_0,2685.84,Revenue,20002249,INSTARMAC LTD
Oxford City Council,Suspense,Materials,D3021   ,28/04/2015,60037201_0,1369.2,Revenue,20002249,INSTARMAC LTD
Oxford City Council,Suspense,Materials,D3021   ,09/06/2015,60039047_1,3485.84,Revenue,20002249,INSTARMAC LTD
Oxford City Council,Suspense,Materials,D3021   ,09/06/2015,60039048_0,565.6,Revenue,20002249,INSTARMAC LTD
Oxford City Council,Suspense,Other Miscellaneous Expenses,D3811,28/04/2015,1015679_1,834.81,Revenue,20002254,GRAFTON MERCHANTING GB LTD
Oxford City Council,Direct Services,Materials,D3021   ,07/04/2015,60035978_2,5634.51,Revenue,20002254,GRAFTON MERCHANTING GB LTD
Oxford City Council,Direct Services,Direct Services Supplies & Services,D3311   ,07/04/2015,60035979_0,654.58,Revenue,20002254,GRAFTON MERCHANTING GB LTD
Oxford City Council,Direct Services,Direct Services Supplies & Services,D3311   ,07/04/2015,60035980_2,815.14,Revenue,20002254,GRAFTON MERCHANTING GB LTD
Oxford City Council,Direct Services,Building Alterations & Modifications,B1108   ,07/04/2015,60035982_2,2970,Revenue,20002254,GRAFTON MERCHANTING GB LTD
Oxford City Council,Direct Services,Direct Services Supplies & Services,D3311   ,07/04/2015,60035984_2,773.35,Revenue,20002254,GRAFTON MERCHANTING GB LTD
Oxford City Council,Direct Services,Direct Services Supplies & Services,D3311   ,07/04/2015,60035985_0,798.1,Revenue,20002254,GRAFTON MERCHANTING GB LTD
Oxford City Council,Direct Services,Direct Services Supplies & Services,D3311   ,07/04/2015,60035986_2,667.08,Revenue,20002254,GRAFTON MERCHANTING GB LTD
Oxford City Council,Direct Services,Direct Services Supplies & Services,D3311   ,07/04/2015,60035987_0,654.58,Revenue,20002254,GRAFTON MERCHANTING GB LTD
Oxford City Council,Direct Services,Direct Services Supplies & Services,D3311   ,07/04/2015,60035988_1,788.2,Revenue,20002254,GRAFTON MERCHANTING GB LTD
Oxford City Council,Direct Services,Direct Services Supplies & Services,D3311   ,07/04/2015,60035989_1,695.69,Revenue,20002254,GRAFTON MERCHANTING GB LTD
Oxford City Council,Direct Services,Direct Services Supplies & Services,D3311   ,07/04/2015,60035990_1,687.91,Revenue,20002254,GRAFTON MERCHANTING GB LTD
Oxford City Council,Direct Services,Direct Services Supplies & Services,D3311   ,07/04/2015,60035991_1,731.06,Revenue,20002254,GRAFTON MERCHANTING GB LTD
Oxford City Council,Direct Services,Direct Services Supplies & Services,D3311   ,07/04/2015,60035992_1,794.68,Revenue,20002254,GRAFTON MERCHANTING GB LTD
Oxford City Council,Direct Services,Direct Services Supplies & Services,D3311   ,07/04/2015,60035993_1,1510.32,Revenue,20002254,GRAFTON MERCHANTING GB LTD
Oxford City Council,Direct Services,Materials,D3021   ,07/04/2015,60035994_1,3520.04,Revenue,20002254,GRAFTON MERCHANTING GB LTD
Oxford City Council,Direct Services,Direct Services Supplies & Services,D3311   ,07/04/2015,60035995_1,654.58,Revenue,20002254,GRAFTON MERCHANTING GB LTD
Oxford City Council,Direct Services,Direct Services Supplies & Services,D3311   ,07/04/2015,60035996_1,679.2,Revenue,20002254,GRAFTON MERCHANTING GB LTD
Oxford City Council,Direct Services,Direct Services Supplies & Services,D3311   ,07/04/2015,60035997_1,675.87,Revenue,20002254,GRAFTON MERCHANTING GB LTD
Oxford City Council,Direct Services,Direct Services Supplies & Services,D3311   ,07/04/2015,60035998_1,731.06,Revenue,20002254,GRAFTON MERCHANTING GB LTD
Oxford City Council,Direct Services,Direct Services Supplies & Services,D3311   ,07/04/2015,60035999_1,810.71,Revenue,20002254,GRAFTON MERCHANTING GB LTD
Oxford City Council,Direct Services,Direct Services Supplies & Services,D3311   ,07/04/2015,60036000_1,815.14,Revenue,20002254,GRAFTON MERCHANTING GB LTD
Oxford City Council,Direct Services,Materials,D3021   ,07/04/2015,60036007_1,1411.47,Revenue,20002254,GRAFTON MERCHANTING GB LTD
Oxford City Council,Direct Services,Materials,D3021   ,07/04/2015,60036008_1,2257.5,Revenue,20002254,GRAFTON MERCHANTING GB LTD
Oxford City Council,Direct Services,Materials,D3021   ,07/04/2015,60036011_1,1432.91,Revenue,20002254,GRAFTON MERCHANTING GB LTD
Oxford City Council,Direct Services,Building Alterations & Modifications,B1108   ,07/04/2015,60036012_1,878.4,Revenue,20002254,GRAFTON MERCHANTING GB LTD
Oxford City Council,Direct Services,Materials,D3021   ,07/04/2015,60036015_1,1652.52,Revenue,20002254,GRAFTON MERCHANTING GB LTD
Oxford City Council,Direct Services,Direct Services Supplies & Services,D3311   ,07/04/2015,60036107_1,796.11,Revenue,20002254,GRAFTON MERCHANTING GB LTD
Oxford City Council,Direct Services,Materials,D3021   ,07/04/2015,60036110_1,2094.31,Revenue,20002254,GRAFTON MERCHANTING GB LTD
Oxford City Council,Direct Services,Materials,D3021   ,07/04/2015,60036112_1,1180.68,Revenue,20002254,GRAFTON MERCHANTING GB LTD
Oxford City Council,Direct Services,Materials,D3021,14/04/2015,60036276_1,2458.8,Revenue,20002254,GRAFTON MERCHANTING GB LTD
Oxford City Council,Direct Services,Direct Services Supplies & Services,D3311,14/04/2015,60036277_1,654.58,Revenue,20002254,GRAFTON MERCHANTING GB LTD
Oxford City Council,Direct Services,Direct Services Supplies & Services,D3311,14/04/2015,60036278_1,679.2,Revenue,20002254,GRAFTON MERCHANTING GB LTD
Oxford City Council,Direct Services,Direct Services Supplies & Services,D3311,14/04/2015,60036279_1,815.14,Revenue,20002254,GRAFTON MERCHANTING GB LTD
Oxford City Council,Direct Services,Direct Services Supplies & Services,D3311,14/04/2015,60036280_1,763.1,Revenue,20002254,GRAFTON MERCHANTING GB LTD
Oxford City Council,Direct Services,Direct Services Supplies & Services,D3311,14/04/2015,60036282_1,815.14,Revenue,20002254,GRAFTON MERCHANTING GB LTD
Oxford City Council,Direct Services,Direct Services Supplies & Services,D3311,14/04/2015,60036285_1,3464.39,Revenue,20002254,GRAFTON MERCHANTING GB LTD
Oxford City Council,Direct Services,Direct Services Supplies & Services,D3311,14/04/2015,60036287_1,631.63,Revenue,20002254,GRAFTON MERCHANTING GB LTD
Oxford City Council,Direct Services,Direct Services Supplies & Services,D3311,14/04/2015,60036290_1,744.56,Revenue,20002254,GRAFTON MERCHANTING GB LTD
Oxford City Council,Direct Services,Direct Services Supplies & Services,D3311,14/04/2015,60036291_1,1215.27,Revenue,20002254,GRAFTON MERCHANTING GB LTD
Oxford City Council,Direct Services,Direct Services Supplies & Services,D3311,14/04/2015,60036292_1,911.31,Revenue,20002254,GRAFTON MERCHANTING GB LTD
Oxford City Council,Direct Services,Direct Services Supplies & Services,D3311,14/04/2015,60036293_1,815.14,Revenue,20002254,GRAFTON MERCHANTING GB LTD
Oxford City Council,Direct Services,Direct Services Supplies & Services,D3311,14/04/2015,60036294_1,654.58,Revenue,20002254,GRAFTON MERCHANTING GB LTD
Oxford City Council,Direct Services,Direct Services Supplies & Services,D3311,14/04/2015,60036295_1,654.58,Revenue,20002254,GRAFTON MERCHANTING GB LTD
Oxford City Council,Direct Services,Direct Services Supplies & Services,D3311,14/04/2015,60036310_1,624.63,Revenue,20002254,GRAFTON MERCHANTING GB LTD
Oxford City Council,Direct Services,Direct Services Supplies & Services,D3311,14/04/2015,60036311_1,710.29,Revenue,20002254,GRAFTON MERCHANTING GB LTD
Oxford City Council,Direct Services,Direct Services Supplies & Services,D3311,14/04/2015,60036312_1,511.95,Revenue,20002254,GRAFTON MERCHANTING GB LTD
Oxford City Council,Direct Services,Direct Services Supplies & Services,D3311,14/04/2015,60036313_1,643.99,Revenue,20002254,GRAFTON MERCHANTING GB LTD
Oxford City Council,Direct Services,Direct Services Supplies & Services,D3311,14/04/2015,60036314_1,527.27,Revenue,20002254,GRAFTON MERCHANTING GB LTD
Oxford City Council,Direct Services,Direct Services Supplies & Services,D3311,14/04/2015,60036315_1,651.03,Revenue,20002254,GRAFTON MERCHANTING GB LTD
Oxford City Council,Direct Services,Materials,D3021,14/04/2015,60036320_1,3717.51,Revenue,20002254,GRAFTON MERCHANTING GB LTD
Oxford City Council,Direct Services,Materials,D3021,14/04/2015,60036321_1,501.33,Revenue,20002254,GRAFTON MERCHANTING GB LTD
Oxford City Council,Direct Services,Materials,D3021,14/04/2015,60036553_1,944.44,Revenue,20002254,GRAFTON MERCHANTING GB LTD
Oxford City Council,Direct Services,Materials,D3021,14/04/2015,60036556_1,1945.62,Revenue,20002254,GRAFTON MERCHANTING GB LTD
Oxford City Council,Direct Services,Direct Services Supplies & Services,D3311,14/04/2015,60036558_1,761.37,Revenue,20002254,GRAFTON MERCHANTING GB LTD
Oxford City Council,Direct Services,Direct Services Supplies & Services,D3311,14/04/2015,60036559_1,654.58,Revenue,20002254,GRAFTON MERCHANTING GB LTD
Oxford City Council,Direct Services,Direct Services Supplies & Services,D3311,14/04/2015,60036562_0,648.93,Revenue,20002254,GRAFTON MERCHANTING GB LTD
Oxford City Council,Direct Services,Direct Services Supplies & Services,D3311,14/04/2015,60036563_2,654.58,Revenue,20002254,GRAFTON MERCHANTING GB LTD
Oxford City Council,Direct Services,Direct Services Supplies & Services,D3311,14/04/2015,60036564_0,654.58,Revenue,20002254,GRAFTON MERCHANTING GB LTD
Oxford City Council,Direct Services,Direct Services Supplies & Services,D3311,14/04/2015,60036565_2,1298.8,Revenue,20002254,GRAFTON MERCHANTING GB LTD
Oxford City Council,Direct Services,Direct Services Supplies & Services,D3311,14/04/2015,60036566_0,856.25,Revenue,20002254,GRAFTON MERCHANTING GB LTD
Oxford City Council,Direct Services,Direct Services Supplies & Services,D3311,14/04/2015,60036568_0,702.98,Revenue,20002254,GRAFTON MERCHANTING GB LTD
Oxford City Council,Direct Services,Direct Services Supplies & Services,D3311,14/04/2015,60036570_0,1304.97,Revenue,20002254,GRAFTON MERCHANTING GB LTD
Oxford City Council,Direct Services,Materials,D3021,14/04/2015,60036594_0,505.09,Revenue,20002254,GRAFTON MERCHANTING GB LTD
Oxford City Council,Direct Services,Materials,D3021,14/04/2015,60036595_2,817.38,Revenue,20002254,GRAFTON MERCHANTING GB LTD
Oxford City Council,Direct Services,Materials,D3021,14/04/2015,60036598_0,589.8,Revenue,20002254,GRAFTON MERCHANTING GB LTD
Oxford City Council,Direct Services,Materials,D3021,14/04/2015,60036599_2,884.7,Revenue,20002254,GRAFTON MERCHANTING GB LTD
Oxford City Council,Direct Services,Direct Services Supplies & Services,D3311   ,21/04/2015,60036659_0,910.84,Revenue,20002254,GRAFTON MERCHANTING GB LTD
Oxford City Council,Direct Services,Direct Services Supplies & Services,D3311   ,21/04/2015,60036661_0,654.58,Revenue,20002254,GRAFTON MERCHANTING GB LTD
Oxford City Council,Direct Services,Direct Services Supplies & Services,D3311   ,21/04/2015,60036662_2,740.68,Revenue,20002254,GRAFTON MERCHANTING GB LTD
Oxford City Council,Direct Services,Materials,D3021   ,21/04/2015,60036663_0,1269.49,Revenue,20002254,GRAFTON MERCHANTING GB LTD
Oxford City Council,Direct Services,Materials,D3021   ,21/04/2015,60036664_1,3580.28,Revenue,20002254,GRAFTON MERCHANTING GB LTD
Oxford City Council,Direct Services,Direct Services Supplies & Services,D3311   ,21/04/2015,60036665_1,1101.32,Revenue,20002254,GRAFTON MERCHANTING GB LTD
Oxford City Council,Direct Services,Materials,D3021   ,21/04/2015,60036669_1,3365.61,Revenue,20002254,GRAFTON MERCHANTING GB LTD
Oxford City Council,Direct Services,Materials,D3021   ,21/04/2015,60036670_1,2795,Revenue,20002254,GRAFTON MERCHANTING GB LTD
Oxford City Council,Direct Services,Materials,D3021   ,21/04/2015,60036671_1,2483.25,Revenue,20002254,GRAFTON MERCHANTING GB LTD
Oxford City Council,Direct Services,Materials,D3021   ,21/04/2015,60036672_1,584.08,Revenue,20002254,GRAFTON MERCHANTING GB LTD
Oxford City Council,Direct Services,Materials,D3021   ,21/04/2015,60036673_1,1001.24,Revenue,20002254,GRAFTON MERCHANTING GB LTD
Oxford City Council,Direct Services,Direct Services Supplies & Services,D3311   ,21/04/2015,60036676_1,526.28,Revenue,20002254,GRAFTON MERCHANTING GB LTD
Oxford City Council,Direct Services,Direct Services Supplies & Services,D3311   ,21/04/2015,60036677_1,535.87,Revenue,20002254,GRAFTON MERCHANTING GB LTD
Oxford City Council,Direct Services,Direct Services Supplies & Services,D3311   ,21/04/2015,60036679_1,684.85,Revenue,20002254,GRAFTON MERCHANTING GB LTD
Oxford City Council,Direct Services,Direct Services Supplies & Services,D3311   ,21/04/2015,60036681_1,521.22,Revenue,20002254,GRAFTON MERCHANTING GB LTD
Oxford City Council,Direct Services,Direct Services Supplies & Services,D3311   ,21/04/2015,60036683_1,612.38,Revenue,20002254,GRAFTON MERCHANTING GB LTD
Oxford City Council,Direct Services,Direct Services Supplies & Services,D3311   ,21/04/2015,60036684_1,551.44,Revenue,20002254,GRAFTON MERCHANTING GB LTD
Oxford City Council,Direct Services,Materials,D3021   ,21/04/2015,60036743_2,5135.83,Revenue,20002254,GRAFTON MERCHANTING GB LTD
Oxford City Council,Direct Services,Direct Services Supplies & Services,D3311   ,21/04/2015,60036747_2,691.9,Revenue,20002254,GRAFTON MERCHANTING GB LTD
Oxford City Council,Direct Services,Direct Services Supplies & Services,D3311   ,21/04/2015,60036748_0,854.99,Revenue,20002254,GRAFTON MERCHANTING GB LTD
Oxford City Council,Direct Services,Direct Services Supplies & Services,D3311   ,21/04/2015,60036749_2,721.94,Revenue,20002254,GRAFTON MERCHANTING GB LTD
Oxford City Council,Direct Services,Materials,D3021   ,21/04/2015,60036770_0,1559.32,Revenue,20002254,GRAFTON MERCHANTING GB LTD
Oxford City Council,Direct Services,Direct Services Supplies & Services,D3311   ,21/04/2015,60036841_0,654.58,Revenue,20002254,GRAFTON MERCHANTING GB LTD
Oxford City Council,Direct Services,Building Alterations & Modifications,B1108   ,21/04/2015,60036847_0,3120.75,Revenue,20002254,GRAFTON MERCHANTING GB LTD
Oxford City Council,Direct Services,Direct Services Supplies & Services,D3311   ,21/04/2015,60036849_0,1182.7,Revenue,20002254,GRAFTON MERCHANTING GB LTD
Oxford City Council,Direct Services,Direct Services Supplies & Services,D3311   ,21/04/2015,60036853_0,891.81,Revenue,20002254,GRAFTON MERCHANTING GB LTD
Oxford City Council,Direct Services,Direct Services Supplies & Services,D3311   ,21/04/2015,60036884_1,1224.18,Revenue,20002254,GRAFTON MERCHANTING GB LTD
Oxford City Council,Direct Services,Direct Services Supplies & Services,D3311   ,21/04/2015,60036885_1,593.11,Revenue,20002254,GRAFTON MERCHANTING GB LTD
Oxford City Council,Direct Services,Direct Services Supplies & Services,D3311   ,21/04/2015,60036886_1,796.29,Revenue,20002254,GRAFTON MERCHANTING GB LTD
Oxford City Council,Direct Services,Direct Services Supplies & Services,D3311   ,21/04/2015,60036887_1,658,Revenue,20002254,GRAFTON MERCHANTING GB LTD
Oxford City Council,Direct Services,Direct Services Supplies & Services,D3311   ,21/04/2015,60036888_1,578.26,Revenue,20002254,GRAFTON MERCHANTING GB LTD
Oxford City Council,Direct Services,Direct Services Supplies & Services,D3311   ,21/04/2015,60036889_1,753.67,Revenue,20002254,GRAFTON MERCHANTING GB LTD
Oxford City Council,Direct Services,Direct Services Supplies & Services,D3311   ,21/04/2015,60036890_1,683.19,Revenue,20002254,GRAFTON MERCHANTING GB LTD
Oxford City Council,Direct Services,Direct Services Supplies & Services,D3311   ,21/04/2015,60036891_1,657.76,Revenue,20002254,GRAFTON MERCHANTING GB LTD
Oxford City Council,Direct Services,Materials,D3021   ,21/04/2015,60036895_0,4214.56,Revenue,20002254,GRAFTON MERCHANTING GB LTD
Oxford City Council,Direct Services,Materials,D3021   ,28/04/2015,60036981_0,1381.68,Revenue,20002254,GRAFTON MERCHANTING GB LTD
Oxford City Council,Direct Services,Direct Services Supplies & Services,D3311   ,28/04/2015,60036982_1,654.58,Revenue,20002254,GRAFTON MERCHANTING GB LTD
Oxford City Council,Direct Services,Direct Services Supplies & Services,D3311   ,28/04/2015,60036983_0,634.22,Revenue,20002254,GRAFTON MERCHANTING GB LTD
Oxford City Council,Direct Services,Direct Services Supplies & Services,D3311   ,28/04/2015,60036984_1,593.11,Revenue,20002254,GRAFTON MERCHANTING GB LTD
Oxford City Council,Direct Services,Direct Services Supplies & Services,D3311   ,28/04/2015,60036985_0,981.11,Revenue,20002254,GRAFTON MERCHANTING GB LTD
Oxford City Council,Direct Services,Direct Services Supplies & Services,D3311   ,28/04/2015,60036986_1,593.11,Revenue,20002254,GRAFTON MERCHANTING GB LTD
Oxford City Council,Direct Services,Direct Services Supplies & Services,D3311   ,28/04/2015,60036987_0,654.58,Revenue,20002254,GRAFTON MERCHANTING GB LTD
Oxford City Council,Direct Services,Direct Services Supplies & Services,D3311   ,28/04/2015,60036988_1,664.64,Revenue,20002254,GRAFTON MERCHANTING GB LTD
Oxford City Council,Direct Services,Direct Services Supplies & Services,D3311   ,28/04/2015,60036989_0,634.22,Revenue,20002254,GRAFTON MERCHANTING GB LTD
Oxford City Council,Direct Services,Materials,D3021   ,28/04/2015,60036995_0,846.44,Revenue,20002254,GRAFTON MERCHANTING GB LTD
Oxford City Council,Direct Services,Materials,D3021   ,28/04/2015,60037044_1,918.71,Revenue,20002254,GRAFTON MERCHANTING GB LTD
Oxford City Council,Direct Services,Direct Services Supplies & Services,D3311   ,28/04/2015,60037046_1,546.66,Revenue,20002254,GRAFTON MERCHANTING GB LTD
Oxford City Council,Direct Services,Direct Services Supplies & Services,D3311   ,28/04/2015,60037047_0,531.92,Revenue,20002254,GRAFTON MERCHANTING GB LTD
Oxford City Council,Direct Services,Direct Services Supplies & Services,D3311   ,28/04/2015,60037048_1,623.51,Revenue,20002254,GRAFTON MERCHANTING GB LTD
Oxford City Council,Direct Services,Direct Services Supplies & Services,D3311   ,28/04/2015,60037049_0,569.72,Revenue,20002254,GRAFTON MERCHANTING GB LTD
Oxford City Council,Direct Services,Direct Services Supplies & Services,D3311   ,28/04/2015,60037051_0,639.6,Revenue,20002254,GRAFTON MERCHANTING GB LTD
Oxford City Council,Direct Services,Direct Services Supplies & Services,D3311   ,28/04/2015,60037054_1,815.07,Revenue,20002254,GRAFTON MERCHANTING GB LTD
Oxford City Council,Direct Services,Materials,D3021   ,28/04/2015,60037056_1,1295.59,Revenue,20002254,GRAFTON MERCHANTING GB LTD
Oxford City Council,Direct Services,Direct Services Supplies & Services,D3311   ,28/04/2015,60037093_0,933.43,Revenue,20002254,GRAFTON MERCHANTING GB LTD
Oxford City Council,Direct Services,Direct Services Supplies & Services,D3311   ,28/04/2015,60037095_0,998.87,Revenue,20002254,GRAFTON MERCHANTING GB LTD
Oxford City Council,Direct Services,Materials,D3021   ,28/04/2015,60037096_1,720.16,Revenue,20002254,GRAFTON MERCHANTING GB LTD
Oxford City Council,Direct Services,Materials,D3021   ,28/04/2015,60037121_0,870.64,Revenue,20002254,GRAFTON MERCHANTING GB LTD
Oxford City Council,Direct Services,Materials,D3021   ,28/04/2015,60037128_1,6394.41,Revenue,20002254,GRAFTON MERCHANTING GB LTD
Oxford City Council,Direct Services,Direct Services Supplies & Services,D3311   ,28/04/2015,60037213_0,1133.51,Revenue,20002254,GRAFTON MERCHANTING GB LTD
Oxford City Council,Direct Services,Materials,D3021   ,28/04/2015,60037217_0,988.57,Revenue,20002254,GRAFTON MERCHANTING GB LTD
Oxford City Council,Direct Services,Direct Services Supplies & Services,D3311   ,28/04/2015,60037218_1,755.37,Revenue,20002254,GRAFTON MERCHANTING GB LTD
Oxford City Council,Direct Services,Direct Services Supplies & Services,D3311   ,28/04/2015,60037320_1,593.11,Revenue,20002254,GRAFTON MERCHANTING GB LTD
Oxford City Council,Direct Services,Direct Services Supplies & Services,D3311   ,28/04/2015,60037322_1,621.39,Revenue,20002254,GRAFTON MERCHANTING GB LTD
Oxford City Council,Direct Services,Direct Services Supplies & Services,D3311   ,28/04/2015,60037323_0,613.35,Revenue,20002254,GRAFTON MERCHANTING GB LTD
Oxford City Council,Direct Services,Materials,D3021   ,28/04/2015,60037325_0,3148.02,Revenue,20002254,GRAFTON MERCHANTING GB LTD
Oxford City Council,Direct Services,Direct Services Supplies & Services,D3311   ,28/04/2015,60037327_0,984.12,Revenue,20002254,GRAFTON MERCHANTING GB LTD
Oxford City Council,Direct Services,Direct Services Supplies & Services,D3311   ,28/04/2015,60037328_1,643.15,Revenue,20002254,GRAFTON MERCHANTING GB LTD
Oxford City Council,Direct Services,Direct Services Supplies & Services,D3311   ,28/04/2015,60037330_1,1381.94,Revenue,20002254,GRAFTON MERCHANTING GB LTD
Oxford City Council,Direct Services,Direct Services Supplies & Services,D3311   ,28/04/2015,60037331_0,593.11,Revenue,20002254,GRAFTON MERCHANTING GB LTD
Oxford City Council,Direct Services,Materials,D3021   ,28/04/2015,60037333_0,641.58,Revenue,20002254,GRAFTON MERCHANTING GB LTD
Oxford City Council,Direct Services,Materials,D3021   ,06/05/2015,60037508_0,6544.57,Revenue,20002254,GRAFTON MERCHANTING GB LTD
Oxford City Council,Direct Services,Materials,D3021   ,06/05/2015,60037509_1,819.77,Revenue,20002254,GRAFTON MERCHANTING GB LTD
Oxford City Council,Direct Services,Direct Services Supplies & Services,D3311   ,06/05/2015,60037511_1,641.27,Revenue,20002254,GRAFTON MERCHANTING GB LTD
Oxford City Council,Direct Services,Direct Services Supplies & Services,D3311   ,06/05/2015,60037512_0,753.67,Revenue,20002254,GRAFTON MERCHANTING GB LTD
Oxford City Council,Direct Services,Direct Services Supplies & Services,D3311   ,06/05/2015,60037514_0,593.11,Revenue,20002254,GRAFTON MERCHANTING GB LTD
Oxford City Council,Direct Services,Direct Services Supplies & Services,D3311   ,06/05/2015,60037517_1,753.67,Revenue,20002254,GRAFTON MERCHANTING GB LTD
Oxford City Council,Direct Services,Materials,D3021   ,06/05/2015,60037519_1,3258.65,Revenue,20002254,GRAFTON MERCHANTING GB LTD
Oxford City Council,Direct Services,Materials,D3021   ,06/05/2015,60037520_0,1518.9,Revenue,20002254,GRAFTON MERCHANTING GB LTD
Oxford City Council,Direct Services,Materials,D3021   ,06/05/2015,60037533_1,1193.44,Revenue,20002254,GRAFTON MERCHANTING GB LTD
Oxford City Council,Direct Services,Direct Services Supplies & Services,D3311   ,06/05/2015,60037536_0,1028.27,Revenue,20002254,GRAFTON MERCHANTING GB LTD
Oxford City Council,Direct Services,Materials,D3021   ,12/05/2015,60037656_1,2854.53,Revenue,20002254,GRAFTON MERCHANTING GB LTD
Oxford City Council,Direct Services,Direct Services Supplies & Services,D3311   ,12/05/2015,60037660_1,593.11,Revenue,20002254,GRAFTON MERCHANTING GB LTD
Oxford City Council,Direct Services,Direct Services Supplies & Services,D3311   ,12/05/2015,60037661_0,617.73,Revenue,20002254,GRAFTON MERCHANTING GB LTD
Oxford City Council,Direct Services,Direct Services Supplies & Services,D3311   ,12/05/2015,60037662_1,593.11,Revenue,20002254,GRAFTON MERCHANTING GB LTD
Oxford City Council,Direct Services,Materials,D3021   ,12/05/2015,60037663_0,1738.37,Revenue,20002254,GRAFTON MERCHANTING GB LTD
Oxford City Council,Direct Services,Materials,D3021   ,12/05/2015,60037664_1,1986.02,Revenue,20002254,GRAFTON MERCHANTING GB LTD
Oxford City Council,Direct Services,Direct Services Supplies & Services,D3311   ,12/05/2015,60037668_1,758.5,Revenue,20002254,GRAFTON MERCHANTING GB LTD
Oxford City Council,Direct Services,Materials,D3021   ,12/05/2015,60037678_1,5492.86,Revenue,20002254,GRAFTON MERCHANTING GB LTD
Oxford City Council,Direct Services,Materials,D3021   ,12/05/2015,60037683_0,1768.73,Revenue,20002254,GRAFTON MERCHANTING GB LTD
Oxford City Council,Direct Services,Materials,D3021   ,12/05/2015,60037685_0,937.99,Revenue,20002254,GRAFTON MERCHANTING GB LTD
Oxford City Council,Direct Services,Materials,D3021   ,12/05/2015,60037686_1,2709,Revenue,20002254,GRAFTON MERCHANTING GB LTD
Oxford City Council,Direct Services,Direct Services Supplies & Services,D3311   ,19/05/2015,60037835_0,890.76,Revenue,20002254,GRAFTON MERCHANTING GB LTD
Oxford City Council,Direct Services,Direct Services Supplies & Services,D3311   ,19/05/2015,60037836_1,659.31,Revenue,20002254,GRAFTON MERCHANTING GB LTD
Oxford City Council,Direct Services,Direct Services Supplies & Services,D3311   ,19/05/2015,60037837_0,593.11,Revenue,20002254,GRAFTON MERCHANTING GB LTD
Oxford City Council,Direct Services,Direct Services Supplies & Services,D3311   ,19/05/2015,60037838_1,738.82,Revenue,20002254,GRAFTON MERCHANTING GB LTD
Oxford City Council,Direct Services,Direct Services Supplies & Services,D3311   ,19/05/2015,60037839_0,678.39,Revenue,20002254,GRAFTON MERCHANTING GB LTD
Oxford City Council,Direct Services,Direct Services Supplies & Services,D3311   ,19/05/2015,60037840_1,593.11,Revenue,20002254,GRAFTON MERCHANTING GB LTD
Oxford City Council,Direct Services,Direct Services Supplies & Services,D3311   ,19/05/2015,60037841_0,1089.66,Revenue,20002254,GRAFTON MERCHANTING GB LTD
Oxford City Council,Direct Services,Direct Services Supplies & Services,D3311   ,19/05/2015,60037845_0,697.08,Revenue,20002254,GRAFTON MERCHANTING GB LTD
Oxford City Council,Direct Services,Materials,D3021   ,19/05/2015,60037846_1,2805.32,Revenue,20002254,GRAFTON MERCHANTING GB LTD
Oxford City Council,Direct Services,Direct Services Supplies & Services,D3311   ,19/05/2015,60037847_0,616.5,Revenue,20002254,GRAFTON MERCHANTING GB LTD
Oxford City Council,Direct Services,Direct Services Supplies & Services,D3311   ,19/05/2015,60037848_1,679.55,Revenue,20002254,GRAFTON MERCHANTING GB LTD
Oxford City Council,Direct Services,Direct Services Supplies & Services,D3311   ,19/05/2015,60037849_0,659.31,Revenue,20002254,GRAFTON MERCHANTING GB LTD
Oxford City Council,Direct Services,Direct Services Supplies & Services,D3311   ,19/05/2015,60037850_1,593.11,Revenue,20002254,GRAFTON MERCHANTING GB LTD
Oxford City Council,Direct Services,Direct Services Supplies & Services,D3311   ,19/05/2015,60037851_0,593.11,Revenue,20002254,GRAFTON MERCHANTING GB LTD
Oxford City Council,Direct Services,Direct Services Supplies & Services,D3311   ,19/05/2015,60037852_1,593.11,Revenue,20002254,GRAFTON MERCHANTING GB LTD
Oxford City Council,Direct Services,Direct Services Supplies & Services,D3311   ,19/05/2015,60037853_0,634.22,Revenue,20002254,GRAFTON MERCHANTING GB LTD
Oxford City Council,Direct Services,Direct Services Supplies & Services,D3311   ,19/05/2015,60037854_1,593.11,Revenue,20002254,GRAFTON MERCHANTING GB LTD
Oxford City Council,Direct Services,Materials,D3021   ,19/05/2015,60037856_1,3179.23,Revenue,20002254,GRAFTON MERCHANTING GB LTD
Oxford City Council,Direct Services,Materials,D3021   ,19/05/2015,60037858_1,2804.62,Revenue,20002254,GRAFTON MERCHANTING GB LTD
Oxford City Council,Direct Services,Direct Services Supplies & Services,D3311   ,19/05/2015,60037860_1,566.82,Revenue,20002254,GRAFTON MERCHANTING GB LTD
Oxford City Council,Direct Services,Direct Services Supplies & Services,D3311   ,19/05/2015,60037861_0,536.15,Revenue,20002254,GRAFTON MERCHANTING GB LTD
Oxford City Council,Direct Services,Direct Services Supplies & Services,D3311   ,19/05/2015,60037863_0,538.15,Revenue,20002254,GRAFTON MERCHANTING GB LTD
Oxford City Council,Direct Services,Direct Services Supplies & Services,D3311   ,19/05/2015,60037865_0,535,Revenue,20002254,GRAFTON MERCHANTING GB LTD
Oxford City Council,Direct Services,Materials,D3021   ,19/05/2015,60037867_0,589.8,Revenue,20002254,GRAFTON MERCHANTING GB LTD
Oxford City Council,Direct Services,Materials,D3021   ,19/05/2015,60037869_0,1112.17,Revenue,20002254,GRAFTON MERCHANTING GB LTD
Oxford City Council,Direct Services,Direct Services Supplies & Services,D3311   ,19/05/2015,60037877_0,749.15,Revenue,20002254,GRAFTON MERCHANTING GB LTD
Oxford City Council,Direct Services,Materials,D3021   ,19/05/2015,60037879_0,678.36,Revenue,20002254,GRAFTON MERCHANTING GB LTD
Oxford City Council,Direct Services,Materials,D3021   ,19/05/2015,60037883_0,1937.11,Revenue,20002254,GRAFTON MERCHANTING GB LTD
Oxford City Council,Direct Services,Direct Services Supplies & Services,D3311   ,19/05/2015,60037884_1,636.35,Revenue,20002254,GRAFTON MERCHANTING GB LTD
Oxford City Council,Direct Services,Materials,D3021   ,19/05/2015,60037977_0,1384.97,Revenue,20002254,GRAFTON MERCHANTING GB LTD
Oxford City Council,Direct Services,Materials,D3021   ,19/05/2015,60037978_1,1748.77,Revenue,20002254,GRAFTON MERCHANTING GB LTD
Oxford City Council,Direct Services,Materials,D3021   ,19/05/2015,60037982_1,1860.53,Revenue,20002254,GRAFTON MERCHANTING GB LTD
Oxford City Council,Direct Services,Materials,D3021   ,19/05/2015,60038034_1,754,Revenue,20002254,GRAFTON MERCHANTING GB LTD
Oxford City Council,Direct Services,Materials,D3021   ,19/05/2015,60038036_1,3180.44,Revenue,20002254,GRAFTON MERCHANTING GB LTD
Oxford City Council,Direct Services,Materials,D3021   ,19/05/2015,60038037_0,1498.67,Revenue,20002254,GRAFTON MERCHANTING GB LTD
Oxford City Council,Direct Services,Materials,D3021   ,19/05/2015,60038038_1,978.38,Revenue,20002254,GRAFTON MERCHANTING GB LTD
Oxford City Council,Direct Services,Materials,D3021   ,19/05/2015,60038040_1,2634.07,Revenue,20002254,GRAFTON MERCHANTING GB LTD
Oxford City Council,Direct Services,Direct Services Supplies & Services,D3311   ,19/05/2015,60038042_1,720.04,Revenue,20002254,GRAFTON MERCHANTING GB LTD
Oxford City Council,Direct Services,Direct Services Supplies & Services,D3311   ,19/05/2015,60038043_0,659.31,Revenue,20002254,GRAFTON MERCHANTING GB LTD
Oxford City Council,Direct Services,Direct Services Supplies & Services,D3311   ,19/05/2015,60038044_1,593.11,Revenue,20002254,GRAFTON MERCHANTING GB LTD
Oxford City Council,Direct Services,Direct Services Supplies & Services,D3311   ,19/05/2015,60038045_0,593.11,Revenue,20002254,GRAFTON MERCHANTING GB LTD
Oxford City Council,Direct Services,Direct Services Supplies & Services,D3311   ,19/05/2015,60038046_1,593.11,Revenue,20002254,GRAFTON MERCHANTING GB LTD
Oxford City Council,Direct Services,Direct Services Supplies & Services,D3311   ,19/05/2015,60038047_0,593.11,Revenue,20002254,GRAFTON MERCHANTING GB LTD
Oxford City Council,Direct Services,Direct Services Supplies & Services,D3311   ,19/05/2015,60038048_1,631.87,Revenue,20002254,GRAFTON MERCHANTING GB LTD
Oxford City Council,Direct Services,Direct Services Supplies & Services,D3311   ,19/05/2015,60038049_0,578.26,Revenue,20002254,GRAFTON MERCHANTING GB LTD
Oxford City Council,Direct Services,Materials,D3021   ,19/05/2015,60038060_1,1000.35,Revenue,20002254,GRAFTON MERCHANTING GB LTD
Oxford City Council,Direct Services,Direct Services Supplies & Services,D3311   ,19/05/2015,60038062_1,548.38,Revenue,20002254,GRAFTON MERCHANTING GB LTD
Oxford City Council,Direct Services,Materials,D3021   ,19/05/2015,60038064_1,2581.56,Revenue,20002254,GRAFTON MERCHANTING GB LTD
Oxford City Council,Direct Services,Materials,D3021   ,19/05/2015,60038067_0,627.95,Revenue,20002254,GRAFTON MERCHANTING GB LTD
Oxford City Council,Direct Services,Materials,D3021   ,27/05/2015,60038199_0,3306.03,Revenue,20002254,GRAFTON MERCHANTING GB LTD
Oxford City Council,Direct Services,Materials,D3021   ,27/05/2015,60038204_1,1312.17,Revenue,20002254,GRAFTON MERCHANTING GB LTD
Oxford City Council,Direct Services,Direct Services Supplies & Services,D3311   ,27/05/2015,60038205_0,578.26,Revenue,20002254,GRAFTON MERCHANTING GB LTD
Oxford City Council,Direct Services,Direct Services Supplies & Services,D3311   ,27/05/2015,60038206_1,709.95,Revenue,20002254,GRAFTON MERCHANTING GB LTD
Oxford City Council,Direct Services,Direct Services Supplies & Services,D3311   ,27/05/2015,60038207_0,593.11,Revenue,20002254,GRAFTON MERCHANTING GB LTD
Oxford City Council,Direct Services,Direct Services Supplies & Services,D3311   ,27/05/2015,60038208_1,644.46,Revenue,20002254,GRAFTON MERCHANTING GB LTD
Oxford City Council,Direct Services,Direct Services Supplies & Services,D3311   ,27/05/2015,60038209_0,578.26,Revenue,20002254,GRAFTON MERCHANTING GB LTD
Oxford City Council,Direct Services,Materials,D3021   ,27/05/2015,60038215_0,1670.64,Revenue,20002254,GRAFTON MERCHANTING GB LTD
Oxford City Council,Direct Services,Direct Services Supplies & Services,D3311   ,27/05/2015,60038216_1,598.06,Revenue,20002254,GRAFTON MERCHANTING GB LTD
Oxford City Council,Direct Services,Direct Services Supplies & Services,D3311   ,27/05/2015,60038217_0,738.82,Revenue,20002254,GRAFTON MERCHANTING GB LTD
Oxford City Council,Direct Services,Direct Services Supplies & Services,D3311   ,27/05/2015,60038218_1,634.99,Revenue,20002254,GRAFTON MERCHANTING GB LTD
Oxford City Council,Direct Services,Materials,D3021   ,27/05/2015,60038221_0,4491.22,Revenue,20002254,GRAFTON MERCHANTING GB LTD
Oxford City Council,Direct Services,Materials,D3021   ,27/05/2015,60038223_0,833.44,Revenue,20002254,GRAFTON MERCHANTING GB LTD
Oxford City Council,Direct Services,Direct Services Supplies & Services,D3311   ,27/05/2015,60038224_1,714.07,Revenue,20002254,GRAFTON MERCHANTING GB LTD
Oxford City Council,Direct Services,Direct Services Supplies & Services,D3311   ,27/05/2015,60038225_0,936.72,Revenue,20002254,GRAFTON MERCHANTING GB LTD
Oxford City Council,Direct Services,Direct Services Supplies & Services,D3311   ,27/05/2015,60038226_1,779.93,Revenue,20002254,GRAFTON MERCHANTING GB LTD
Oxford City Council,Direct Services,Direct Services Supplies & Services,D3311   ,27/05/2015,60038233_0,1381.57,Revenue,20002254,GRAFTON MERCHANTING GB LTD
Oxford City Council,Direct Services,Materials,D3021   ,27/05/2015,60038242_1,915.75,Revenue,20002254,GRAFTON MERCHANTING GB LTD
Oxford City Council,Direct Services,Materials,D3021   ,27/05/2015,60038244_1,563.58,Revenue,20002254,GRAFTON MERCHANTING GB LTD
Oxford City Council,Direct Services,Direct Services Supplies & Services,D3311   ,27/05/2015,60038477_0,861.29,Revenue,20002254,GRAFTON MERCHANTING GB LTD
Oxford City Council,Direct Services,Materials,D3021   ,02/06/2015,60038656_0,576.95,Revenue,20002254,GRAFTON MERCHANTING GB LTD
Oxford City Council,Direct Services,Direct Services Supplies & Services,D3311   ,02/06/2015,60038657_1,749.15,Revenue,20002254,GRAFTON MERCHANTING GB LTD
Oxford City Council,Direct Services,Materials,D3021   ,02/06/2015,60038660_0,1353.38,Revenue,20002254,GRAFTON MERCHANTING GB LTD
Oxford City Council,Direct Services,Materials,D3021   ,02/06/2015,60038665_1,589.8,Revenue,20002254,GRAFTON MERCHANTING GB LTD
Oxford City Council,Direct Services,Direct Services Supplies & Services,D3311   ,02/06/2015,60038666_0,528.17,Revenue,20002254,GRAFTON MERCHANTING GB LTD
Oxford City Council,Direct Services,Direct Services Supplies & Services,D3311   ,02/06/2015,60038667_1,624.77,Revenue,20002254,GRAFTON MERCHANTING GB LTD
Oxford City Council,Direct Services,Direct Services Supplies & Services,D3311   ,02/06/2015,60038668_0,684.18,Revenue,20002254,GRAFTON MERCHANTING GB LTD
Oxford City Council,Direct Services,Direct Services Supplies & Services,D3311   ,02/06/2015,60038670_0,681.78,Revenue,20002254,GRAFTON MERCHANTING GB LTD
Oxford City Council,Direct Services,Materials,D3021   ,02/06/2015,60038672_0,2892.07,Revenue,20002254,GRAFTON MERCHANTING GB LTD
Oxford City Council,Direct Services,Direct Services Supplies & Services,D3311   ,02/06/2015,60038673_1,607.21,Revenue,20002254,GRAFTON MERCHANTING GB LTD
Oxford City Council,Direct Services,Direct Services Supplies & Services,D3311   ,02/06/2015,60038674_0,693.24,Revenue,20002254,GRAFTON MERCHANTING GB LTD
Oxford City Council,Direct Services,Direct Services Supplies & Services,D3311   ,02/06/2015,60038675_1,593.11,Revenue,20002254,GRAFTON MERCHANTING GB LTD
Oxford City Council,Direct Services,Direct Services Supplies & Services,D3311   ,02/06/2015,60038676_0,915.11,Revenue,20002254,GRAFTON MERCHANTING GB LTD
Oxford City Council,Direct Services,Direct Services Supplies & Services,D3311   ,02/06/2015,60038677_1,753.67,Revenue,20002254,GRAFTON MERCHANTING GB LTD
Oxford City Council,Direct Services,Direct Services Supplies & Services,D3311   ,02/06/2015,60038678_0,753.67,Revenue,20002254,GRAFTON MERCHANTING GB LTD
Oxford City Council,Direct Services,Direct Services Supplies & Services,D3311   ,02/06/2015,60038679_1,644.46,Revenue,20002254,GRAFTON MERCHANTING GB LTD
Oxford City Council,Direct Services,Direct Services Supplies & Services,D3311   ,02/06/2015,60038682_0,593.11,Revenue,20002254,GRAFTON MERCHANTING GB LTD
Oxford City Council,Direct Services,Direct Services Supplies & Services,D3311   ,02/06/2015,60038683_1,593.11,Revenue,20002254,GRAFTON MERCHANTING GB LTD
Oxford City Council,Direct Services,Direct Services Supplies & Services,D3311   ,02/06/2015,60038684_0,578.26,Revenue,20002254,GRAFTON MERCHANTING GB LTD
Oxford City Council,Direct Services,Direct Services Supplies & Services,D3311   ,02/06/2015,60038685_1,593.11,Revenue,20002254,GRAFTON MERCHANTING GB LTD
Oxford City Council,Direct Services,Materials,D3021   ,02/06/2015,60038687_1,2320.92,Revenue,20002254,GRAFTON MERCHANTING GB LTD
Oxford City Council,Direct Services,Direct Services Supplies & Services,D3311   ,02/06/2015,60038791_1,613.35,Revenue,20002254,GRAFTON MERCHANTING GB LTD
Oxford City Council,Direct Services,Direct Services Supplies & Services,D3311   ,02/06/2015,60038792_0,769.01,Revenue,20002254,GRAFTON MERCHANTING GB LTD
Oxford City Council,Direct Services,Direct Services Supplies & Services,D3311   ,02/06/2015,60038793_1,1282.69,Revenue,20002254,GRAFTON MERCHANTING GB LTD
Oxford City Council,Direct Services,Direct Services Supplies & Services,D3311   ,02/06/2015,60038797_1,644.46,Revenue,20002254,GRAFTON MERCHANTING GB LTD
Oxford City Council,Direct Services,Direct Services Supplies & Services,D3311   ,02/06/2015,60038799_1,854.29,Revenue,20002254,GRAFTON MERCHANTING GB LTD
Oxford City Council,Direct Services,Materials,D3021   ,02/06/2015,60038887_1,639.25,Revenue,20002254,GRAFTON MERCHANTING GB LTD
Oxford City Council,Direct Services,Materials,D3021   ,02/06/2015,60038888_0,2633.75,Revenue,20002254,GRAFTON MERCHANTING GB LTD
Oxford City Council,Direct Services,Direct Services Supplies & Services,D3311   ,02/06/2015,60038889_1,550.45,Revenue,20002254,GRAFTON MERCHANTING GB LTD
Oxford City Council,Direct Services,Materials,D3021   ,02/06/2015,60038892_0,3920.52,Revenue,20002254,GRAFTON MERCHANTING GB LTD
Oxford City Council,Direct Services,Materials,D3021   ,09/06/2015,60038913_1,2877.3,Revenue,20002254,GRAFTON MERCHANTING GB LTD
Oxford City Council,Direct Services,Materials,D3021   ,09/06/2015,60038914_0,2665.74,Revenue,20002254,GRAFTON MERCHANTING GB LTD
Oxford City Council,Direct Services,Direct Services Supplies & Services,D3311   ,09/06/2015,60038915_1,644.46,Revenue,20002254,GRAFTON MERCHANTING GB LTD
Oxford City Council,Direct Services,Direct Services Supplies & Services,D3311   ,09/06/2015,60038916_0,613.35,Revenue,20002254,GRAFTON MERCHANTING GB LTD
Oxford City Council,Direct Services,Direct Services Supplies & Services,D3311   ,09/06/2015,60038917_1,644.46,Revenue,20002254,GRAFTON MERCHANTING GB LTD
Oxford City Council,Direct Services,Materials,D3021   ,09/06/2015,60038920_0,3507.47,Revenue,20002254,GRAFTON MERCHANTING GB LTD
Oxford City Council,Direct Services,Materials,D3021   ,09/06/2015,60038921_1,2928.6,Revenue,20002254,GRAFTON MERCHANTING GB LTD
Oxford City Council,Direct Services,Direct Services Supplies & Services,D3311   ,09/06/2015,60038922_0,693.24,Revenue,20002254,GRAFTON MERCHANTING GB LTD
Oxford City Council,Direct Services,Direct Services Supplies & Services,D3311   ,09/06/2015,60038923_1,634.22,Revenue,20002254,GRAFTON MERCHANTING GB LTD
Oxford City Council,Direct Services,Direct Services Supplies & Services,D3311   ,09/06/2015,60038926_0,753.67,Revenue,20002254,GRAFTON MERCHANTING GB LTD
Oxford City Council,Direct Services,Direct Services Supplies & Services,D3311   ,09/06/2015,60038927_1,753.67,Revenue,20002254,GRAFTON MERCHANTING GB LTD
Oxford City Council,Direct Services,Direct Services Supplies & Services,D3311   ,09/06/2015,60038928_0,753.67,Revenue,20002254,GRAFTON MERCHANTING GB LTD
Oxford City Council,Direct Services,Direct Services Supplies & Services,D3311   ,09/06/2015,60038929_1,515,Revenue,20002254,GRAFTON MERCHANTING GB LTD
Oxford City Council,Direct Services,Direct Services Supplies & Services,D3311   ,09/06/2015,60038943_1,749.15,Revenue,20002254,GRAFTON MERCHANTING GB LTD
Oxford City Council,Direct Services,Materials,D3021   ,09/06/2015,60038947_1,723.94,Revenue,20002254,GRAFTON MERCHANTING GB LTD
Oxford City Council,Direct Services,Direct Services Supplies & Services,D3311   ,09/06/2015,60039111_1,859.35,Revenue,20002254,GRAFTON MERCHANTING GB LTD
Oxford City Council,Direct Services,Direct Services Supplies & Services,D3311   ,09/06/2015,60039112_0,614.32,Revenue,20002254,GRAFTON MERCHANTING GB LTD
Oxford City Council,Direct Services,Direct Services Supplies & Services,D3311   ,09/06/2015,60039113_1,593.11,Revenue,20002254,GRAFTON MERCHANTING GB LTD
Oxford City Council,Direct Services,Direct Services Supplies & Services,D3311   ,09/06/2015,60039114_0,658,Revenue,20002254,GRAFTON MERCHANTING GB LTD
Oxford City Council,Direct Services,Direct Services Supplies & Services,D3311   ,09/06/2015,60039115_1,703.33,Revenue,20002254,GRAFTON MERCHANTING GB LTD
Oxford City Council,Direct Services,Direct Services Supplies & Services,D3311   ,09/06/2015,60039116_0,593.11,Revenue,20002254,GRAFTON MERCHANTING GB LTD
Oxford City Council,Direct Services,Materials,D3021   ,09/06/2015,60039118_0,3901.86,Revenue,20002254,GRAFTON MERCHANTING GB LTD
Oxford City Council,Direct Services,Materials,D3021   ,09/06/2015,60039175_1,1631.33,Revenue,20002254,GRAFTON MERCHANTING GB LTD
Oxford City Council,Direct Services,Materials,D3021   ,09/06/2015,60039181_1,1082.46,Revenue,20002254,GRAFTON MERCHANTING GB LTD
Oxford City Council,Direct Services,Direct Services Supplies & Services,D3311   ,16/06/2015,60039362_0,575,Revenue,20002254,GRAFTON MERCHANTING GB LTD
Oxford City Council,Direct Services,Materials,D3021   ,16/06/2015,60039363_1,1088.27,Revenue,20002254,GRAFTON MERCHANTING GB LTD
Oxford City Council,Direct Services,Materials,D3021   ,16/06/2015,60039365_1,853.61,Revenue,20002254,GRAFTON MERCHANTING GB LTD
Oxford City Council,Direct Services,Direct Services Supplies & Services,D3311   ,16/06/2015,60039367_1,634.22,Revenue,20002254,GRAFTON MERCHANTING GB LTD
Oxford City Council,Direct Services,Direct Services Supplies & Services,D3311   ,16/06/2015,60039368_0,619.37,Revenue,20002254,GRAFTON MERCHANTING GB LTD
Oxford City Council,Direct Services,Direct Services Supplies & Services,D3311   ,16/06/2015,60039369_1,635.53,Revenue,20002254,GRAFTON MERCHANTING GB LTD
Oxford City Council,Direct Services,Direct Services Supplies & Services,D3311   ,16/06/2015,60039370_0,976.19,Revenue,20002254,GRAFTON MERCHANTING GB LTD
Oxford City Council,Direct Services,Direct Services Supplies & Services,D3311   ,16/06/2015,60039371_1,578.26,Revenue,20002254,GRAFTON MERCHANTING GB LTD
Oxford City Council,Direct Services,Direct Services Supplies & Services,D3311   ,16/06/2015,60039372_0,593.11,Revenue,20002254,GRAFTON MERCHANTING GB LTD
Oxford City Council,Direct Services,Direct Services Supplies & Services,D3311   ,16/06/2015,60039373_1,1052.98,Revenue,20002254,GRAFTON MERCHANTING GB LTD
Oxford City Council,Direct Services,Direct Services Supplies & Services,D3311   ,16/06/2015,60039374_0,5493.01,Revenue,20002254,GRAFTON MERCHANTING GB LTD
Oxford City Council,Direct Services,Direct Services Supplies & Services,D3311   ,16/06/2015,60039381_1,738.82,Revenue,20002254,GRAFTON MERCHANTING GB LTD
Oxford City Council,Direct Services,Materials,D3021   ,16/06/2015,60039384_0,657.09,Revenue,20002254,GRAFTON MERCHANTING GB LTD
Oxford City Council,Direct Services,Materials,D3021   ,16/06/2015,60039391_1,530.82,Revenue,20002254,GRAFTON MERCHANTING GB LTD
Oxford City Council,Direct Services,Materials,D3021   ,16/06/2015,60039393_1,963.88,Revenue,20002254,GRAFTON MERCHANTING GB LTD
Oxford City Council,Direct Services,Materials,D3021   ,16/06/2015,60039482_0,652.05,Revenue,20002254,GRAFTON MERCHANTING GB LTD
Oxford City Council,Direct Services,Materials,D3021   ,16/06/2015,60039578_0,2161.72,Revenue,20002254,GRAFTON MERCHANTING GB LTD
Oxford City Council,Direct Services,Direct Services Supplies & Services,D3311   ,16/06/2015,60039579_1,613.35,Revenue,20002254,GRAFTON MERCHANTING GB LTD
Oxford City Council,Direct Services,Direct Services Supplies & Services,D3311   ,16/06/2015,60039580_0,768.52,Revenue,20002254,GRAFTON MERCHANTING GB LTD
Oxford City Council,Direct Services,Direct Services Supplies & Services,D3311   ,16/06/2015,60039581_1,634.22,Revenue,20002254,GRAFTON MERCHANTING GB LTD
Oxford City Council,Direct Services,Direct Services Supplies & Services,D3311   ,16/06/2015,60039582_0,578.26,Revenue,20002254,GRAFTON MERCHANTING GB LTD
Oxford City Council,Direct Services,Direct Services Supplies & Services,D3311   ,16/06/2015,60039583_1,578.26,Revenue,20002254,GRAFTON MERCHANTING GB LTD
Oxford City Council,Direct Services,Direct Services Supplies & Services,D3311   ,16/06/2015,60039584_0,613.35,Revenue,20002254,GRAFTON MERCHANTING GB LTD
Oxford City Council,Direct Services,Direct Services Supplies & Services,D3311   ,16/06/2015,60039592_0,817.5,Revenue,20002254,GRAFTON MERCHANTING GB LTD
Oxford City Council,Direct Services,Direct Services Supplies & Services,D3311   ,16/06/2015,60039593_1,619.37,Revenue,20002254,GRAFTON MERCHANTING GB LTD
Oxford City Council,Direct Services,Materials,D3021   ,16/06/2015,60039596_0,3446.54,Revenue,20002254,GRAFTON MERCHANTING GB LTD
Oxford City Council,Direct Services,Materials,D3021   ,16/06/2015,60039597_1,1826.56,Revenue,20002254,GRAFTON MERCHANTING GB LTD
Oxford City Council,Direct Services,Direct Services Supplies & Services,D3311   ,16/06/2015,60039608_0,610.75,Revenue,20002254,GRAFTON MERCHANTING GB LTD
Oxford City Council,Direct Services,Materials,D3021   ,16/06/2015,60039611_1,873.37,Revenue,20002254,GRAFTON MERCHANTING GB LTD
Oxford City Council,Direct Services,Direct Services Supplies & Services,D3311   ,16/06/2015,60039618_0,583.19,Revenue,20002254,GRAFTON MERCHANTING GB LTD
Oxford City Council,Direct Services,Direct Services Supplies & Services,D3311   ,16/06/2015,60039620_0,567.17,Revenue,20002254,GRAFTON MERCHANTING GB LTD
Oxford City Council,Direct Services,Direct Services Supplies & Services,D3311   ,16/06/2015,60039621_1,521.44,Revenue,20002254,GRAFTON MERCHANTING GB LTD
Oxford City Council,Direct Services,Materials,D3021   ,16/06/2015,60039629_1,1318.8,Revenue,20002254,GRAFTON MERCHANTING GB LTD
Oxford City Council,Direct Services,Direct Services Supplies & Services,D3311   ,16/06/2015,60039633_1,659.03,Revenue,20002254,GRAFTON MERCHANTING GB LTD
Oxford City Council,Direct Services,Direct Services Supplies & Services,D3311   ,16/06/2015,60039634_0,504.52,Revenue,20002254,GRAFTON MERCHANTING GB LTD
Oxford City Council,Direct Services,Direct Services Supplies & Services,D3311   ,16/06/2015,60039636_0,546.78,Revenue,20002254,GRAFTON MERCHANTING GB LTD
Oxford City Council,Direct Services,Direct Services Supplies & Services,D3311   ,16/06/2015,60039640_0,522.15,Revenue,20002254,GRAFTON MERCHANTING GB LTD
Oxford City Council,Direct Services,Direct Services Supplies & Services,D3311   ,16/06/2015,60039644_0,580.82,Revenue,20002254,GRAFTON MERCHANTING GB LTD
Oxford City Council,Direct Services,Direct Services Supplies & Services,D3311   ,16/06/2015,60039646_0,542.06,Revenue,20002254,GRAFTON MERCHANTING GB LTD
Oxford City Council,Direct Services,Direct Services Supplies & Services,D3311   ,16/06/2015,60039650_0,553.55,Revenue,20002254,GRAFTON MERCHANTING GB LTD
Oxford City Council,Direct Services,Direct Services Supplies & Services,D3311   ,16/06/2015,60039651_1,586.71,Revenue,20002254,GRAFTON MERCHANTING GB LTD
Oxford City Council,Direct Services,Materials,D3021   ,16/06/2015,60039653_1,2003.68,Revenue,20002254,GRAFTON MERCHANTING GB LTD
Oxford City Council,Direct Services,Materials,D3021   ,16/06/2015,60039654_0,1041.96,Revenue,20002254,GRAFTON MERCHANTING GB LTD
Oxford City Council,Direct Services,Direct Services Supplies & Services,D3311   ,23/06/2015,60039760_1,730,Revenue,20002254,GRAFTON MERCHANTING GB LTD
Oxford City Council,Direct Services,Direct Services Supplies & Services,D3311   ,23/06/2015,60039761_0,659.31,Revenue,20002254,GRAFTON MERCHANTING GB LTD
Oxford City Council,Direct Services,Direct Services Supplies & Services,D3311   ,23/06/2015,60039762_1,735.66,Revenue,20002254,GRAFTON MERCHANTING GB LTD
Oxford City Council,Direct Services,Materials,D3021   ,23/06/2015,60039767_0,1079.12,Revenue,20002254,GRAFTON MERCHANTING GB LTD
Oxford City Council,Direct Services,Materials,D3021   ,23/06/2015,60039867_0,2168.2,Revenue,20002254,GRAFTON MERCHANTING GB LTD
Oxford City Council,Direct Services,Direct Services Supplies & Services,D3311   ,23/06/2015,60039868_1,634.22,Revenue,20002254,GRAFTON MERCHANTING GB LTD
Oxford City Council,Direct Services,Materials,D3021   ,23/06/2015,60039869_0,937.5,Revenue,20002254,GRAFTON MERCHANTING GB LTD
Oxford City Council,Direct Services,Direct Services Supplies & Services,D3311   ,23/06/2015,60039871_0,1079.37,Revenue,20002254,GRAFTON MERCHANTING GB LTD
Oxford City Council,Direct Services,Direct Services Supplies & Services,D3311   ,23/06/2015,60039872_1,1202.98,Revenue,20002254,GRAFTON MERCHANTING GB LTD
Oxford City Council,Direct Services,Direct Services Supplies & Services,D3311   ,23/06/2015,60039873_0,996.45,Revenue,20002254,GRAFTON MERCHANTING GB LTD
Oxford City Council,Direct Services,Direct Services Supplies & Services,D3311   ,23/06/2015,60039875_0,659.31,Revenue,20002254,GRAFTON MERCHANTING GB LTD
Oxford City Council,Direct Services,Direct Services Supplies & Services,D3311   ,23/06/2015,60039876_1,593.11,Revenue,20002254,GRAFTON MERCHANTING GB LTD
Oxford City Council,Direct Services,Direct Services Supplies & Services,D3311   ,23/06/2015,60039877_0,593.11,Revenue,20002254,GRAFTON MERCHANTING GB LTD
Oxford City Council,Direct Services,Materials,D3021   ,23/06/2015,60039882_1,597.04,Revenue,20002254,GRAFTON MERCHANTING GB LTD
Oxford City Council,Direct Services,Materials,D3021   ,23/06/2015,60039887_0,703.69,Revenue,20002254,GRAFTON MERCHANTING GB LTD
Oxford City Council,Direct Services,Direct Services Supplies & Services,D3311   ,30/06/2015,60040183_1,719.77,Revenue,20002254,GRAFTON MERCHANTING GB LTD
Oxford City Council,Direct Services,Direct Services Supplies & Services,D3311   ,30/06/2015,60040185_1,859,Revenue,20002254,GRAFTON MERCHANTING GB LTD
Oxford City Council,Direct Services,Direct Services Supplies & Services,D3311   ,30/06/2015,60040187_1,1171.48,Revenue,20002254,GRAFTON MERCHANTING GB LTD
Oxford City Council,Direct Services,Direct Services Supplies & Services,D3311   ,30/06/2015,60040189_1,1180.9,Revenue,20002254,GRAFTON MERCHANTING GB LTD
Oxford City Council,Direct Services,Materials,D3021   ,30/06/2015,60040384_0,3845.58,Revenue,20002254,GRAFTON MERCHANTING GB LTD
Oxford City Council,Direct Services,Materials,D3021,21/04/2015,47979695_2,1273.5,Revenue,20002278,MF HYDRAULICS LTD
Oxford City Council,Direct Services,Materials,D3021,21/04/2015,47979695_3,1482.32,Revenue,20002278,MF HYDRAULICS LTD
Oxford City Council,Direct Services,Materials,D3021,21/04/2015,47979695_4,398.8,Revenue,20002278,MF HYDRAULICS LTD
Oxford City Council,Suspense,Creditors - BACS,J8810,19/05/2015,46285737_1,1470,Revenue,20002279,M & M SKIP HIRE LTD
Oxford City Council,Direct Services,Engineering Services Supplies and Services,D3319   ,28/04/2015,60037164_1,525,Revenue,20002282,M&J ENGINEERS LTD
Oxford City Council,Direct Services,Engineering Services Supplies and Services,D3319   ,30/06/2015,60039995_1,750,Revenue,20002282,M&J ENGINEERS LTD
Oxford City Council,Direct Services,Engineering Services Supplies and Services,D3319   ,30/06/2015,60040279_1,600,Revenue,20002282,M&J ENGINEERS LTD
Oxford City Council,Direct Services,Main Contractor,Y021,07/04/2015,1014753_1,17516,Capital,20002296,METRIC GROUP LIMITED
Oxford City Council,Direct Services,Main Contractor,Y021,28/04/2015,1014972_1,4379,Capital,20002296,METRIC GROUP LIMITED
Oxford City Council,Direct Services,Reactive Maintenance & Minor Repairs,B1101,19/05/2015,1015516_1,2878.44,Revenue,20002296,METRIC GROUP LIMITED
Oxford City Council,Direct Services,General Contracted Services,D3401,16/06/2015,1016896_1,1406.5,Revenue,20002296,METRIC GROUP LIMITED
Oxford City Council,Direct Services,Materials,D3021   ,07/04/2015,60036100_1,1420.89,Revenue,20002299,C BREWER & SONS LTD
Oxford City Council,Direct Services,Materials,D3021   ,07/04/2015,60036104_1,822.19,Revenue,20002299,C BREWER & SONS LTD
Oxford City Council,Direct Services,Materials,D3021,14/04/2015,60036549_1,1021.35,Revenue,20002299,C BREWER & SONS LTD
Oxford City Council,Direct Services,Materials,D3021   ,12/05/2015,60037687_0,1106.17,Revenue,20002299,C BREWER & SONS LTD
Oxford City Council,Direct Services,Materials,D3021   ,19/05/2015,60037821_0,731.09,Revenue,20002299,C BREWER & SONS LTD
Oxford City Council,Direct Services,Materials,D3021   ,19/05/2015,60037824_1,584.42,Revenue,20002299,C BREWER & SONS LTD
Oxford City Council,Direct Services,Materials,D3021   ,19/05/2015,60037825_0,1047.19,Revenue,20002299,C BREWER & SONS LTD
Oxford City Council,Direct Services,Materials,D3021   ,02/06/2015,60038634_0,2027.95,Revenue,20002299,C BREWER & SONS LTD
Oxford City Council,Direct Services,Materials,D3021   ,02/06/2015,60038636_0,1046.59,Revenue,20002299,C BREWER & SONS LTD
Oxford City Council,Direct Services,Materials,D3021   ,09/06/2015,60039255_1,664.04,Revenue,20002299,C BREWER & SONS LTD
Oxford City Council,Law and Governance,Hardware Purchase,D3520,09/06/2015,1015184_1,2651.25,Revenue,20002302,MISCO
Oxford City Council,Housing and Property,Hardware Purchase,D3520,09/06/2015,1015184_2,378.75,Revenue,20002302,MISCO
Oxford City Council,Business Improvement,Hardware Purchase,D3520,09/06/2015,1015184_3,126.25,Revenue,20002302,MISCO
Oxford City Council,Business Improvement,Postage & Carriage,D3501,09/06/2015,1015184_4,40.08,Revenue,20002302,MISCO
Oxford City Council,Business Improvement,Hardware Purchase,D3520,02/06/2015,1016894_1,1181.99,Revenue,20002302,MISCO
Oxford City Council,Community Services,Grants,D3701,14/04/2015,1015101_1,6050,Revenue,20002331,OXFORD BROOKES UNIVERSITY
Oxford City Council,Community Services,General Contracted Services,D3401,30/06/2015,1017755_1,16326.67,Revenue,20002331,OXFORD BROOKES UNIVERSITY
Oxford City Council,Community Services,General Contracted Services,D3401,27/05/2015,1016595_1,2250,Revenue,20002333,ACTIVATE LEARNING
Oxford City Council,Direct Services,Materials,D3021,19/05/2015,1015840_1,761,Revenue,20002335,OXFORD FENCING SUPPLIES
Oxford City Council,Direct Services,Materials,D3021,23/06/2015,1017471_1,638.4,Revenue,20002335,OXFORD FENCING SUPPLIES
Oxford City Council,Direct Services,Materials,D3021   ,16/06/2015,60039444_0,689.96,Revenue,20002335,OXFORD FENCING SUPPLIES
Oxford City Council,Direct Services,Protective Clothing,D3201,14/04/2015,60036181_1,865,Revenue,20002347,REXEL UK LIMITED
Oxford City Council,Direct Services,Furniture & Equipment Purchase,D3001   ,06/05/2015,60037475_1,6165,Revenue,20002347,REXEL UK LIMITED
Oxford City Council,Direct Services,Tools,D3023   ,16/06/2015,60039423_1,630.23,Revenue,20002347,REXEL UK LIMITED
Oxford City Council,Direct Services,Services Maintenance (Planned),B1103,14/04/2015,1014895_1,7507.77,Revenue,20002351,PHS GROUP PLC
Oxford City Council,HRA,Laundry Appliances,B1222,12/05/2015,1015982_1,945.53,Revenue,20002351,PHS GROUP PLC
Oxford City Council,Direct Services,Cleaning Materials,B1601,12/05/2015,1016002_1,2231.5,Revenue,20002351,PHS GROUP PLC
Oxford City Council,Direct Services,Services Maintenance (Planned),B1103,12/05/2015,1016011_1,1009.83,Revenue,20002351,PHS GROUP PLC
Oxford City Council,HRA,Laundry Appliances,B1222,27/05/2015,1016219_1,945.54,Revenue,20002351,PHS GROUP PLC
Oxford City Council,Direct Services,Services Maintenance (Planned),B1103,23/06/2015,1017449_1,988.95,Revenue,20002351,PHS GROUP PLC
Oxford City Council,Suspense,Other Miscellaneous Expenses,D3811,23/06/2015,1017617_1,1146.45,Revenue,20002351,PHS GROUP PLC
Oxford City Council,Direct Services,Materials,D3021,02/06/2015,1016339_1,841,Revenue,20002370,RIGBY TAYLOR LTD
Oxford City Council,Direct Services,Fertiliser & Weedkillers,D3026,30/06/2015,1017500_1,1153,Revenue,20002370,RIGBY TAYLOR LTD
Oxford City Council,Direct Services,Veh.maint direct purchase,D3031,09/06/2015,46286075_1,534.82,Revenue,20002387,AEBI SCHMIDT UK LTD
Oxford City Council,Direct Services,Veh.maint direct purchase,D3031,21/04/2015,47979702_0,890.24,Revenue,20002387,AEBI SCHMIDT UK LTD
Oxford City Council,Direct Services,Veh.maint direct purchase,D3031,21/04/2015,47979702_1,6.19,Revenue,20002387,AEBI SCHMIDT UK LTD
Oxford City Council,Direct Services,Veh.maint direct purchase,D3031,21/04/2015,47979702_2,1.46,Revenue,20002387,AEBI SCHMIDT UK LTD
Oxford City Council,Direct Services,Veh.maint direct purchase,D3031,21/04/2015,47979702_3,11.83,Revenue,20002387,AEBI SCHMIDT UK LTD
Oxford City Council,Direct Services,Veh.maint direct purchase,D3031,21/04/2015,47979702_4,1.17,Revenue,20002387,AEBI SCHMIDT UK LTD
Oxford City Council,Direct Services,Veh.maint direct purchase,D3031,21/04/2015,47979702_5,29.75,Revenue,20002387,AEBI SCHMIDT UK LTD
Oxford City Council,Direct Services,Veh.maint direct purchase,D3031,21/04/2015,47979702_6,119.44,Revenue,20002387,AEBI SCHMIDT UK LTD
Oxford City Council,Direct Services,Materials,D3021,19/05/2015,47980000_0,86.88,Revenue,20002387,AEBI SCHMIDT UK LTD
Oxford City Council,Direct Services,Materials,D3021,19/05/2015,47980000_1,416.66,Revenue,20002387,AEBI SCHMIDT UK LTD
Oxford City Council,Direct Services,Materials,D3021,09/06/2015,47980292_0,619.98,Revenue,20002387,AEBI SCHMIDT UK LTD
Oxford City Council,Direct Services,Sign Shop Materials,D3018   ,28/04/2015,60037025_0,639,Revenue,20002393,SIGNPOST SOLUTIONS LTD T/AS SIGNFIX
Oxford City Council,Community Services,Grants,D3701,14/04/2015,1015115_1,19672,Revenue,20002401,SOUTH OXFORDSHIRE DISTRICT COUNCIL
Oxford City Council,Community Services,Grants,D3701,27/05/2015,1016771_1,6360,Revenue,20002401,SOUTH OXFORDSHIRE DISTRICT COUNCIL
Oxford City Council,Community Services,Furniture & Equipment Purchase,D3001,27/05/2015,1016786_1,678,Revenue,20002401,SOUTH OXFORDSHIRE DISTRICT COUNCIL
Oxford City Council,HRA,Electricity,B1501,06/05/2015,1015594_1,3786.44,Revenue,20002402,SOUTHERN ELECTRIC PLC
Oxford City Council,Direct Services,Electricity,B1501,28/04/2015,1015681_1,2398.41,Revenue,20002402,SOUTHERN ELECTRIC PLC
Oxford City Council,Direct Services,Electricity,B1501,28/04/2015,1015682_1,1344.86,Revenue,20002402,SOUTHERN ELECTRIC PLC
Oxford City Council,Direct Services,Electricity,B1501,28/04/2015,1015700_1,1362.07,Revenue,20002402,SOUTHERN ELECTRIC PLC
Oxford City Council,Housing and Property,Electricity,B1501,19/05/2015,1015971_1,1051.97,Revenue,20002402,SOUTHERN ELECTRIC PLC
Oxford City Council,Business Improvement,Electricity,B1501,12/05/2015,1015976_1,1179.86,Revenue,20002402,SOUTHERN ELECTRIC PLC
Oxford City Council,Housing and Property,Electricity,B1501,27/05/2015,1016493_1,2475.24,Revenue,20002402,SOUTHERN ELECTRIC PLC
Oxford City Council,Community Services,Electricity,B1501,27/05/2015,1016495_1,1735.36,Revenue,20002402,SOUTHERN ELECTRIC PLC
Oxford City Council,Direct Services,Electricity,B1501,27/05/2015,1016580_1,1363.62,Revenue,20002402,SOUTHERN ELECTRIC PLC
Oxford City Council,Direct Services,Electricity,B1501,02/06/2015,1016588_1,1040.31,Revenue,20002402,SOUTHERN ELECTRIC PLC
Oxford City Council,Direct Services,Electricity,B1501,02/06/2015,1016589_1,847.27,Revenue,20002402,SOUTHERN ELECTRIC PLC
Oxford City Council,Direct Services,Electricity,B1501,02/06/2015,1016592_1,1266.96,Revenue,20002402,SOUTHERN ELECTRIC PLC
Oxford City Council,Housing and Property,Electricity,B1501,16/06/2015,1017216_1,1746.19,Revenue,20002402,SOUTHERN ELECTRIC PLC
Oxford City Council,Direct Services,Electricity,B1501,23/06/2015,1017587_1,1828.46,Revenue,20002402,SOUTHERN ELECTRIC PLC
Oxford City Council,Direct Services,Electricity,B1501,23/06/2015,1017591_1,3035.25,Revenue,20002402,SOUTHERN ELECTRIC PLC
Oxford City Council,Housing and Property,Electricity,B1501,30/06/2015,1017850_1,1004.56,Revenue,20002402,SOUTHERN ELECTRIC PLC
Oxford City Council,Housing and Property,Electricity,B1501,30/06/2015,1017855_1,693.11,Revenue,20002402,SOUTHERN ELECTRIC PLC
Oxford City Council,Direct Services,Electricity,B1501,30/06/2015,1017872_1,933.11,Revenue,20002402,SOUTHERN ELECTRIC PLC
Oxford City Council,HRA,Electricity,B1501,07/04/2015,46285356_1,1568.29,Revenue,20002402,SOUTHERN ELECTRIC PLC
Oxford City Council,HRA,Electricity,B1501,07/04/2015,46285356_2,967.93,Revenue,20002402,SOUTHERN ELECTRIC PLC
Oxford City Council,HRA,Electricity,B1501,07/04/2015,46285356_3,56.31,Revenue,20002402,SOUTHERN ELECTRIC PLC
Oxford City Council,HRA,Electricity,B1501,07/04/2015,46285356_4,5966.73,Revenue,20002402,SOUTHERN ELECTRIC PLC
Oxford City Council,HRA,Electricity,B1501,07/04/2015,46285356_5,19.2,Revenue,20002402,SOUTHERN ELECTRIC PLC
Oxford City Council,HRA,Electricity,B1501,07/04/2015,46285356_6,560.06,Revenue,20002402,SOUTHERN ELECTRIC PLC
Oxford City Council,HRA,Electricity,B1501,07/04/2015,46285356_7,589.67,Revenue,20002402,SOUTHERN ELECTRIC PLC
Oxford City Council,HRA,Electricity,B1501,07/04/2015,46285357_1,549.8,Revenue,20002402,SOUTHERN ELECTRIC PLC
Oxford City Council,HRA,Electricity,B1501,07/04/2015,46285357_2,1830.6,Revenue,20002402,SOUTHERN ELECTRIC PLC
Oxford City Council,Housing and Property,Electricity,B1501,07/04/2015,46285363_1,7105.67,Revenue,20002402,SOUTHERN ELECTRIC PLC
Oxford City Council,Direct Services,Services Maintenance (Planned),B1103,14/04/2015,46285470_1,3000,Revenue,20002402,SOUTHERN ELECTRIC PLC
Oxford City Council,Housing and Property,Services Maintenance (Planned),B1103,14/04/2015,46285470_2,680.4,Revenue,20002402,SOUTHERN ELECTRIC PLC
Oxford City Council,Direct Services,Services Maintenance (Planned),B1103,14/04/2015,46285470_3,362.7,Revenue,20002402,SOUTHERN ELECTRIC PLC
Oxford City Council,HRA,Electricity,B1501,19/05/2015,46285772_1,1101.28,Revenue,20002402,SOUTHERN ELECTRIC PLC
Oxford City Council,HRA,Electricity,B1501,19/05/2015,46285772_10,1007.1,Revenue,20002402,SOUTHERN ELECTRIC PLC
Oxford City Council,HRA,Electricity,B1501,19/05/2015,46285772_11,1998.69,Revenue,20002402,SOUTHERN ELECTRIC PLC
Oxford City Council,HRA,Electricity,B1501,19/05/2015,46285772_12,1788.43,Revenue,20002402,SOUTHERN ELECTRIC PLC
Oxford City Council,HRA,Electricity,B1501,19/05/2015,46285772_13,1967.2,Revenue,20002402,SOUTHERN ELECTRIC PLC
Oxford City Council,HRA,Electricity,B1501,19/05/2015,46285772_14,1442.63,Revenue,20002402,SOUTHERN ELECTRIC PLC
Oxford City Council,HRA,Electricity,B1501,19/05/2015,46285772_2,1258.52,Revenue,20002402,SOUTHERN ELECTRIC PLC
Oxford City Council,HRA,Electricity,B1501,19/05/2015,46285772_3,215.51,Revenue,20002402,SOUTHERN ELECTRIC PLC
Oxford City Council,HRA,Electricity,B1501,19/05/2015,46285772_4,249.19,Revenue,20002402,SOUTHERN ELECTRIC PLC
Oxford City Council,HRA,Electricity,B1501,19/05/2015,46285772_5,383.11,Revenue,20002402,SOUTHERN ELECTRIC PLC
Oxford City Council,HRA,Electricity,B1501,19/05/2015,46285772_6,1920.37,Revenue,20002402,SOUTHERN ELECTRIC PLC
Oxford City Council,HRA,Electricity,B1501,19/05/2015,46285772_7,1619.68,Revenue,20002402,SOUTHERN ELECTRIC PLC
Oxford City Council,HRA,Electricity,B1501,19/05/2015,46285772_8,15905.67,Revenue,20002402,SOUTHERN ELECTRIC PLC
Oxford City Council,HRA,Electricity,B1501,19/05/2015,46285772_9,1187.86,Revenue,20002402,SOUTHERN ELECTRIC PLC
Oxford City Council,HRA,Electricity,B1501,02/06/2015,46286027_1,1012.37,Revenue,20002402,SOUTHERN ELECTRIC PLC
Oxford City Council,HRA,Electricity,B1501,02/06/2015,46286027_2,967.93,Revenue,20002402,SOUTHERN ELECTRIC PLC
Oxford City Council,HRA,Electricity,B1501,02/06/2015,46286027_3,416.08,Revenue,20002402,SOUTHERN ELECTRIC PLC
Oxford City Council,HRA,Electricity,B1501,02/06/2015,46286027_4,9532.25,Revenue,20002402,SOUTHERN ELECTRIC PLC
Oxford City Council,HRA,Electricity,B1501,02/06/2015,46286027_5,413.36,Revenue,20002402,SOUTHERN ELECTRIC PLC
Oxford City Council,HRA,Electricity,B1501,02/06/2015,46286027_6,560.72,Revenue,20002402,SOUTHERN ELECTRIC PLC
Oxford City Council,Housing and Property,Electricity,B1501,09/06/2015,46286109_1,6356.26,Revenue,20002402,SOUTHERN ELECTRIC PLC
Oxford City Council,HRA,Electricity,B1501,30/06/2015,46286403_1,941.79,Revenue,20002402,SOUTHERN ELECTRIC PLC
Oxford City Council,HRA,Electricity,B1501,30/06/2015,46286403_2,371.37,Revenue,20002402,SOUTHERN ELECTRIC PLC
Oxford City Council,HRA,Electricity,B1501,30/06/2015,46286403_3,-72.66,Revenue,20002402,SOUTHERN ELECTRIC PLC
Oxford City Council,Direct Services,Water & Sewerage Charges,B1830,07/04/2015,1014667_1,504.39,Revenue,20002423,THAMES WATER UTILITIES LTD
Oxford City Council,Housing and Property,Water & Sewerage Charges,B1830,07/04/2015,1014674_1,581.23,Revenue,20002423,THAMES WATER UTILITIES LTD
Oxford City Council,HRA,Water & Sewerage Charges,B1830,07/04/2015,1014778_1,526.71,Revenue,20002423,THAMES WATER UTILITIES LTD
Oxford City Council,Direct Services,Water & Sewerage Charges,B1830,07/04/2015,1014816_1,3675.59,Revenue,20002423,THAMES WATER UTILITIES LTD
Oxford City Council,Housing and Property,Water & Sewerage Charges,B1830,14/04/2015,1014922_1,600.7,Revenue,20002423,THAMES WATER UTILITIES LTD
Oxford City Council,Housing and Property,Water & Sewerage Charges,B1830,06/05/2015,1014926_1,610.45,Revenue,20002423,THAMES WATER UTILITIES LTD
Oxford City Council,Direct Services,Water & Sewerage Charges,B1830,14/04/2015,1014959_1,1387.15,Revenue,20002423,THAMES WATER UTILITIES LTD
Oxford City Council,Direct Services,Water & Sewerage Charges,B1830,14/04/2015,1014962_1,780.15,Revenue,20002423,THAMES WATER UTILITIES LTD
Oxford City Council,Housing and Property,Water & Sewerage Charges,B1830,21/04/2015,1015233_1,1099.31,Revenue,20002423,THAMES WATER UTILITIES LTD
Oxford City Council,Housing and Property,Water & Sewerage Charges,B1830,21/04/2015,1015234_1,1339.12,Revenue,20002423,THAMES WATER UTILITIES LTD
Oxford City Council,Housing and Property,Water & Sewerage Charges,B1830,21/04/2015,1015307_1,1099.31,Revenue,20002423,THAMES WATER UTILITIES LTD
Oxford City Council,Housing and Property,Water & Sewerage Charges,B1830,21/04/2015,1015308_1,1099.31,Revenue,20002423,THAMES WATER UTILITIES LTD
Oxford City Council,Housing and Property,Water & Sewerage Charges,B1830,21/04/2015,1015309_1,1099.31,Revenue,20002423,THAMES WATER UTILITIES LTD
Oxford City Council,Housing and Property,Water & Sewerage Charges,B1830,21/04/2015,1015310_1,1099.31,Revenue,20002423,THAMES WATER UTILITIES LTD
Oxford City Council,Direct Services,Water & Sewerage Charges,B1830,21/04/2015,1015311_1,726.97,Revenue,20002423,THAMES WATER UTILITIES LTD
Oxford City Council,Housing and Property,Water & Sewerage Charges,B1830,21/04/2015,1015314_1,1099.31,Revenue,20002423,THAMES WATER UTILITIES LTD
Oxford City Council,Housing and Property,Water & Sewerage Charges,B1830,06/05/2015,1015480_1,1201.4,Revenue,20002423,THAMES WATER UTILITIES LTD
Oxford City Council,Housing and Property,Water & Sewerage Charges,B1830,06/05/2015,1015798_1,669.88,Revenue,20002423,THAMES WATER UTILITIES LTD
Oxford City Council,Housing and Property,Water & Sewerage Charges,B1830,06/05/2015,1015800_1,958.83,Revenue,20002423,THAMES WATER UTILITIES LTD
Oxford City Council,Housing and Property,Water & Sewerage Charges,B1830,06/05/2015,1015801_1,958.83,Revenue,20002423,THAMES WATER UTILITIES LTD
Oxford City Council,Housing and Property,Water & Sewerage Charges,B1830,06/05/2015,1015802_1,958.83,Revenue,20002423,THAMES WATER UTILITIES LTD
Oxford City Council,Housing and Property,Water & Sewerage Charges,B1830,19/05/2015,1016161_1,625.31,Revenue,20002423,THAMES WATER UTILITIES LTD
Oxford City Council,Housing and Property,Water & Sewerage Charges,B1830,19/05/2015,1016272_1,602.52,Revenue,20002423,THAMES WATER UTILITIES LTD
Oxford City Council,Housing and Property,Water & Sewerage Charges,B1830,19/05/2015,1016273_1,504.61,Revenue,20002423,THAMES WATER UTILITIES LTD
Oxford City Council,HRA,Water & Sewerage Charges,B1830,19/05/2015,1016287_1,1172.64,Revenue,20002423,THAMES WATER UTILITIES LTD
Oxford City Council,Community Services,Water & Sewerage Charges,B1830,19/05/2015,1016297_1,513.52,Revenue,20002423,THAMES WATER UTILITIES LTD
Oxford City Council,HRA,Water & Sewerage Charges,B1830,19/05/2015,1016299_1,1381,Revenue,20002423,THAMES WATER UTILITIES LTD
Oxford City Council,Housing and Property,Water & Sewerage Charges,B1830,19/05/2015,1016302_1,1099.31,Revenue,20002423,THAMES WATER UTILITIES LTD
Oxford City Council,Housing and Property,Water & Sewerage Charges,B1830,19/05/2015,1016303_1,1099.31,Revenue,20002423,THAMES WATER UTILITIES LTD
Oxford City Council,Housing and Property,Water & Sewerage Charges,B1830,19/05/2015,1016304_1,1099.31,Revenue,20002423,THAMES WATER UTILITIES LTD
Oxford City Council,Housing and Property,Water & Sewerage Charges,B1830,19/05/2015,1016305_1,1099.31,Revenue,20002423,THAMES WATER UTILITIES LTD
Oxford City Council,Direct Services,Water & Sewerage Charges,B1830,27/05/2015,1016309_1,544.02,Revenue,20002423,THAMES WATER UTILITIES LTD
Oxford City Council,Housing and Property,Water & Sewerage Charges,B1830,19/05/2015,1016312_1,809.37,Revenue,20002423,THAMES WATER UTILITIES LTD
Oxford City Council,Housing and Property,Water & Sewerage Charges,B1830,19/05/2015,1016313_1,985.77,Revenue,20002423,THAMES WATER UTILITIES LTD
Oxford City Council,Housing and Property,Water & Sewerage Charges,B1830,27/05/2015,1016314_1,1578.91,Revenue,20002423,THAMES WATER UTILITIES LTD
Oxford City Council,Housing and Property,Water & Sewerage Charges,B1830,27/05/2015,1016702_1,1817.96,Revenue,20002423,THAMES WATER UTILITIES LTD
Oxford City Council,Housing and Property,Water & Sewerage Charges,B1830,27/05/2015,1016753_1,1099.31,Revenue,20002423,THAMES WATER UTILITIES LTD
Oxford City Council,Housing and Property,Water & Sewerage Charges,B1830,27/05/2015,1016756_1,744.2,Revenue,20002423,THAMES WATER UTILITIES LTD
Oxford City Council,Direct Services,Water & Sewerage Charges,B1830,02/06/2015,1016758_1,649.28,Revenue,20002423,THAMES WATER UTILITIES LTD
Oxford City Council,Housing and Property,Water & Sewerage Charges,B1830,09/06/2015,1017044_1,1068.43,Revenue,20002423,THAMES WATER UTILITIES LTD
Oxford City Council,HRA,Water & Sewerage Charges,B1830,09/06/2015,1017046_1,685.76,Revenue,20002423,THAMES WATER UTILITIES LTD
Oxford City Council,HRA,Water & Sewerage Charges,B1830,16/06/2015,1017095_1,901.78,Revenue,20002423,THAMES WATER UTILITIES LTD
Oxford City Council,Direct Services,Water & Sewerage Charges,B1830,09/06/2015,1017163_1,877.94,Revenue,20002423,THAMES WATER UTILITIES LTD
Oxford City Council,HRA,Water & Sewerage Charges,B1830,16/06/2015,1017402_1,1536.49,Revenue,20002423,THAMES WATER UTILITIES LTD
Oxford City Council,Housing and Property,Water & Sewerage Charges,B1830,16/06/2015,1017404_1,2390.93,Revenue,20002423,THAMES WATER UTILITIES LTD
Oxford City Council,HRA,Water & Sewerage Charges,B1830,16/06/2015,1017415_1,1166.57,Revenue,20002423,THAMES WATER UTILITIES LTD
Oxford City Council,Direct Services,Water & Sewerage Charges,B1830,30/06/2015,1017737_1,1474.02,Revenue,20002423,THAMES WATER UTILITIES LTD
Oxford City Council,Direct Services,Water & Sewerage Charges,B1830,30/06/2015,1017802_1,663.88,Revenue,20002423,THAMES WATER UTILITIES LTD
Oxford City Council,HRA,Water & Sewerage Charges,B1830,30/06/2015,1017804_1,612.19,Revenue,20002423,THAMES WATER UTILITIES LTD
Oxford City Council,HRA,Electricity,B1501,30/06/2015,1017815_1,1166.57,Revenue,20002423,THAMES WATER UTILITIES LTD
Oxford City Council,Housing and Property,Water & Sewerage Charges,B1830,14/04/2015,46285465_1,1339.12,Revenue,20002423,THAMES WATER UTILITIES LTD
Oxford City Council,Housing and Property,Water & Sewerage Charges,B1830,14/04/2015,46285466_1,985.77,Revenue,20002423,THAMES WATER UTILITIES LTD
Oxford City Council,Housing and Property,Water & Sewerage Charges,B1830,14/04/2015,46285467_1,1068.43,Revenue,20002423,THAMES WATER UTILITIES LTD
Oxford City Council,Direct Services,Water & Sewerage Charges,B1830,21/04/2015,46285564_1,688.61,Revenue,20002423,THAMES WATER UTILITIES LTD
Oxford City Council,Direct Services,Water & Sewerage Charges,B1830,21/04/2015,46285564_2,512.79,Revenue,20002423,THAMES WATER UTILITIES LTD
Oxford City Council,Direct Services,Water & Sewerage Charges,B1830,21/04/2015,46285565_1,556.44,Revenue,20002423,THAMES WATER UTILITIES LTD
Oxford City Council,Direct Services,Water & Sewerage Charges,B1830,21/04/2015,46285565_2,431.58,Revenue,20002423,THAMES WATER UTILITIES LTD
Oxford City Council,Housing and Property,Uninsured Losses / Claims,B1803,21/04/2015,46285566_1,556.44,Revenue,20002423,THAMES WATER UTILITIES LTD
Oxford City Council,Housing and Property,Uninsured Losses / Claims,B1803,21/04/2015,46285566_2,431.58,Revenue,20002423,THAMES WATER UTILITIES LTD
Oxford City Council,Housing and Property,Water & Sewerage Charges,B1830,06/05/2015,46285692_1,1578.91,Revenue,20002423,THAMES WATER UTILITIES LTD
Oxford City Council,Housing and Property,Water & Sewerage Charges,B1830,06/05/2015,46285693_1,1578.91,Revenue,20002423,THAMES WATER UTILITIES LTD
Oxford City Council,Housing and Property,Water & Sewerage Charges,B1830,06/05/2015,46285694_1,1578.91,Revenue,20002423,THAMES WATER UTILITIES LTD
Oxford City Council,Housing and Property,Water & Sewerage Charges,B1830,27/05/2015,46285947_1,744.2,Revenue,20002423,THAMES WATER UTILITIES LTD
Oxford City Council,Direct Services,Materials,D3021   ,16/06/2015,60039535_1,1508.35,Revenue,20002431,TIMBMET LTD
Oxford City Council,Direct Services,Tools,D3023,27/05/2015,1016560_1,697.92,Revenue,20002434,TOOLMASTER (OXFORD) LTD
Oxford City Council,Direct Services,Materials,D3021   ,07/04/2015,60036143_0,530.85,Revenue,20002434,TOOLMASTER (OXFORD) LTD
Oxford City Council,Direct Services,Materials,D3021   ,12/05/2015,60037764_1,863.64,Revenue,20002434,TOOLMASTER (OXFORD) LTD
Oxford City Council,Direct Services,Materials,D3021   ,19/05/2015,60038077_0,570.55,Revenue,20002434,TOOLMASTER (OXFORD) LTD
Oxford City Council,Direct Services,Materials,D3021   ,19/05/2015,60038078_1,654.07,Revenue,20002434,TOOLMASTER (OXFORD) LTD
Oxford City Council,Direct Services,Materials,D3021   ,19/05/2015,60038079_0,780.1,Revenue,20002434,TOOLMASTER (OXFORD) LTD
Oxford City Council,Direct Services,Materials,D3021   ,19/05/2015,60038080_1,600.68,Revenue,20002434,TOOLMASTER (OXFORD) LTD
Oxford City Council,Direct Services,Materials,D3021   ,02/06/2015,60038808_0,795.07,Revenue,20002434,TOOLMASTER (OXFORD) LTD
Oxford City Council,Direct Services,Materials,D3021   ,09/06/2015,60039285_1,668.1,Revenue,20002434,TOOLMASTER (OXFORD) LTD
Oxford City Council,Direct Services,Materials,D3021   ,16/06/2015,60039415_1,524.07,Revenue,20002434,TOOLMASTER (OXFORD) LTD
Oxford City Council,Direct Services,Materials,D3021   ,16/06/2015,60039417_1,616.38,Revenue,20002434,TOOLMASTER (OXFORD) LTD
Oxford City Council,Direct Services,Materials,D3021   ,16/06/2015,60039537_1,1912.48,Revenue,20002434,TOOLMASTER (OXFORD) LTD
Oxford City Council,Direct Services,Protective Clothing,D3201,27/05/2015,1016438_1,592.99,Revenue,20002435,P A TURNEY LTD
Oxford City Council,Direct Services,Plant Purchase,C2002,07/04/2015,47979602_0,375,Revenue,20002435,P A TURNEY LTD
Oxford City Council,Direct Services,Plant Purchase,C2002,07/04/2015,47979602_1,699,Revenue,20002435,P A TURNEY LTD
Oxford City Council,Direct Services,Plant Purchase,C2002,07/04/2015,47979602_2,4312,Revenue,20002435,P A TURNEY LTD
Oxford City Council,Direct Services,Plant Purchase,C2002,07/04/2015,47979602_3,722,Revenue,20002435,P A TURNEY LTD
Oxford City Council,Direct Services,Plant Purchase,C2002,07/04/2015,47979602_4,860,Revenue,20002435,P A TURNEY LTD
Oxford City Council,Direct Services,General Contracted Services,D3401,07/04/2015,47979602_5,308,Revenue,20002435,P A TURNEY LTD
Oxford City Council,Direct Services,Plant Purchase,C2002,14/04/2015,47979665_2,573,Revenue,20002435,P A TURNEY LTD
Oxford City Council,Direct Services,General Contracted Services,D3401,21/04/2015,47979684_0,960,Revenue,20002435,P A TURNEY LTD
Oxford City Council,Direct Services,Plant Purchase,C2002,21/04/2015,47979689_1,165,Revenue,20002435,P A TURNEY LTD
Oxford City Council,Direct Services,Plant Purchase,C2002,21/04/2015,47979689_2,448,Revenue,20002435,P A TURNEY LTD
Oxford City Council,Direct Services,Plant Purchase,C2002,21/04/2015,47979689_3,486,Revenue,20002435,P A TURNEY LTD
Oxford City Council,Direct Services,General Contracted Services,D3401,21/04/2015,47979689_4,308,Revenue,20002435,P A TURNEY LTD
Oxford City Council,Direct Services,General Contracted Services,D3401,21/04/2015,47979689_5,165,Revenue,20002435,P A TURNEY LTD
Oxford City Council,Direct Services,Plant Purchase,C2002,21/04/2015,47979689_6,165,Revenue,20002435,P A TURNEY LTD
Oxford City Council,Direct Services,Plant Purchase,C2002,21/04/2015,47979689_7,165,Revenue,20002435,P A TURNEY LTD
Oxford City Council,Direct Services,Plant Purchase,C2002,21/04/2015,47979689_8,363,Revenue,20002435,P A TURNEY LTD
Oxford City Council,Direct Services,Vehicle Excise Licences,C2202   ,16/06/2015,47980373_0,690,Revenue,20002435,P A TURNEY LTD
Oxford City Council,Direct Services,Contract Plant Hire,C2402,14/04/2015,60036476_2,507.6,Revenue,20002443,UNIVERSAL ACCESS & POWER PLAN
Oxford City Council,Direct Services,Contract Plant Hire,C2402,14/04/2015,60036477_0,583.74,Revenue,20002443,UNIVERSAL ACCESS & POWER PLAN
Oxford City Council,Direct Services,Contract Plant Hire,C2402,14/04/2015,60036478_2,558.36,Revenue,20002443,UNIVERSAL ACCESS & POWER PLAN
Oxford City Council,Direct Services,Direct Services Supplies & Services,D3311   ,12/05/2015,60037771_0,1689,Revenue,20002443,UNIVERSAL ACCESS & POWER PLAN
Oxford City Council,Direct Services,Tools,D3023   ,19/05/2015,60037930_1,539,Revenue,20002443,UNIVERSAL ACCESS & POWER PLAN
Oxford City Council,Direct Services,Tools,D3023   ,09/06/2015,60038996_0,577,Revenue,20002443,UNIVERSAL ACCESS & POWER PLAN
Oxford City Council,Direct Services,Materials,D3021   ,09/06/2015,60038997_1,3231,Revenue,20002443,UNIVERSAL ACCESS & POWER PLAN
Oxford City Council,Direct Services,Materials,D3021   ,09/06/2015,60039002_0,1457.64,Revenue,20002443,UNIVERSAL ACCESS & POWER PLAN
Oxford City Council,Direct Services,Tools,D3023   ,09/06/2015,60039007_1,909,Revenue,20002443,UNIVERSAL ACCESS & POWER PLAN
Oxford City Council,Direct Services,Materials,D3021   ,23/06/2015,60039824_1,1350,Revenue,20002443,UNIVERSAL ACCESS & POWER PLAN
Oxford City Council,Direct Services,Materials,D3021,02/06/2015,47980196_1,0.75,Revenue,20002444,UNIVERSAL TRUCK&TRAILER PARTS
Oxford City Council,Direct Services,Materials,D3021,02/06/2015,47980196_2,9.24,Revenue,20002444,UNIVERSAL TRUCK&TRAILER PARTS
Oxford City Council,Direct Services,Materials,D3021,02/06/2015,47980196_3,22,Revenue,20002444,UNIVERSAL TRUCK&TRAILER PARTS
Oxford City Council,Direct Services,Materials,D3021,02/06/2015,47980196_4,513.24,Revenue,20002444,UNIVERSAL TRUCK&TRAILER PARTS
Oxford City Council,Direct Services,Materials,D3021,14/04/2015,60036610_0,1715.56,Revenue,20002464,WOLSELEY UK LIMITED
Oxford City Council,Direct Services,Materials,D3021   ,21/04/2015,60036923_1,728.01,Revenue,20002464,WOLSELEY UK LIMITED
Oxford City Council,Direct Services,Materials,D3021   ,21/04/2015,60036936_1,550.52,Revenue,20002464,WOLSELEY UK LIMITED
Oxford City Council,Direct Services,Materials,D3021   ,28/04/2015,60037165_0,2142.69,Revenue,20002464,WOLSELEY UK LIMITED
Oxford City Council,Direct Services,Materials,D3021   ,28/04/2015,60037186_1,1722.29,Revenue,20002464,WOLSELEY UK LIMITED
Oxford City Council,Direct Services,Materials,D3021   ,28/04/2015,60037241_0,1873.79,Revenue,20002464,WOLSELEY UK LIMITED
Oxford City Council,Direct Services,Materials,D3021   ,06/05/2015,60037495_1,1971.92,Revenue,20002464,WOLSELEY UK LIMITED
Oxford City Council,Direct Services,Materials,D3021   ,06/05/2015,60037499_1,601.26,Revenue,20002464,WOLSELEY UK LIMITED
Oxford City Council,Direct Services,Materials,D3021   ,12/05/2015,60037778_1,1059.12,Revenue,20002464,WOLSELEY UK LIMITED
Oxford City Council,Direct Services,Materials,D3021   ,19/05/2015,60037931_0,2624.71,Revenue,20002464,WOLSELEY UK LIMITED
Oxford City Council,Direct Services,Materials,D3021   ,27/05/2015,60038331_0,601.26,Revenue,20002464,WOLSELEY UK LIMITED
Oxford City Council,Direct Services,Materials,D3021   ,27/05/2015,60038332_1,1792.81,Revenue,20002464,WOLSELEY UK LIMITED
Oxford City Council,Direct Services,Materials,D3021   ,27/05/2015,60038537_0,1097.69,Revenue,20002464,WOLSELEY UK LIMITED
Oxford City Council,Direct Services,Materials,D3021   ,27/05/2015,60038545_0,713.74,Revenue,20002464,WOLSELEY UK LIMITED
Oxford City Council,Direct Services,Materials,D3021   ,27/05/2015,60038553_0,1379.34,Revenue,20002464,WOLSELEY UK LIMITED
Oxford City Council,Direct Services,Materials,D3021   ,09/06/2015,60039011_1,777.87,Revenue,20002464,WOLSELEY UK LIMITED
Oxford City Council,Direct Services,Materials,D3021   ,09/06/2015,60039014_0,1867.53,Revenue,20002464,WOLSELEY UK LIMITED
Oxford City Council,Direct Services,Materials,D3021   ,09/06/2015,60039018_0,743.42,Revenue,20002464,WOLSELEY UK LIMITED
Oxford City Council,Direct Services,Materials,D3021   ,16/06/2015,60039559_1,1664.98,Revenue,20002464,WOLSELEY UK LIMITED
Oxford City Council,Direct Services,Direct Services Supplies & Services,D3311   ,23/06/2015,60039836_1,717.18,Revenue,20002464,WOLSELEY UK LIMITED
Oxford City Council,Direct Services,Materials,D3021   ,23/06/2015,60039838_1,633.81,Revenue,20002464,WOLSELEY UK LIMITED
Oxford City Council,Direct Services,Materials,D3021   ,23/06/2015,60039844_1,1240.24,Revenue,20002464,WOLSELEY UK LIMITED
Oxford City Council,Direct Services,Materials,D3021   ,23/06/2015,60039845_0,1612.75,Revenue,20002464,WOLSELEY UK LIMITED
Oxford City Council,Direct Services,Materials,D3021   ,23/06/2015,60039847_0,562.49,Revenue,20002464,WOLSELEY UK LIMITED
Oxford City Council,Direct Services,Materials,D3021   ,23/06/2015,60039850_1,1310.57,Revenue,20002464,WOLSELEY UK LIMITED
Oxford City Council,Direct Services,Materials,D3021   ,23/06/2015,60039851_0,652.52,Revenue,20002464,WOLSELEY UK LIMITED
Oxford City Council,Direct Services,Materials,D3021   ,23/06/2015,60039853_0,1895.97,Revenue,20002464,WOLSELEY UK LIMITED
Oxford City Council,Direct Services,Materials,D3021,23/06/2015,1017353_1,557.8,Revenue,20002467,AWBS LTD
Oxford City Council,Regeneration and Major Projects Team,Main Contractor,Y021,07/04/2015,48021173_1,194035.11,Capital,20002494,E W BEARD LTD
Oxford City Council,Regeneration and Major Projects Team,Main Contractor,Y021,19/05/2015,48021216_1,136582.41,Capital,20002494,E W BEARD LTD
Oxford City Council,Regeneration and Major Projects Team,Main Contractor,Y021,16/06/2015,48021234_1,380570.08,Capital,20002494,E W BEARD LTD
Oxford City Council,Direct Services,Direct Services Sub Contractors,B1111,14/04/2015,60036194_0,4000,Revenue,20002513,MARCUS COPELIN
Oxford City Council,Direct Services,Direct Services Sub Contractors,B1111   ,21/04/2015,60036918_1,720,Revenue,20002513,MARCUS COPELIN
Oxford City Council,Direct Services,Direct Services Sub Contractors,B1111   ,28/04/2015,60037094_1,1041.99,Revenue,20002513,MARCUS COPELIN
Oxford City Council,Direct Services,Direct Services Sub Contractors,B1111   ,28/04/2015,60037335_0,720,Revenue,20002513,MARCUS COPELIN
Oxford City Council,HRA,Fire Alarms and Emergency Lighting,B1241,07/04/2015,46285342_1,6334.58,Revenue,20002568,PYROTEC SERVICES LTD
Oxford City Council,Direct Services,Fire Alarms and Emergency Lighting,B1241,07/04/2015,46285342_10,281.25,Revenue,20002568,PYROTEC SERVICES LTD
Oxford City Council,Housing and Property,Fire Alarms and Emergency Lighting,B1241,07/04/2015,46285342_11,2803.49,Revenue,20002568,PYROTEC SERVICES LTD
Oxford City Council,Housing and Property,Fire Alarms and Emergency Lighting,B1241,07/04/2015,46285342_12,137.49,Revenue,20002568,PYROTEC SERVICES LTD
Oxford City Council,Housing and Property,Fire Alarms and Emergency Lighting,B1241,07/04/2015,46285342_13,820,Revenue,20002568,PYROTEC SERVICES LTD
Oxford City Council,Housing and Property,Fire Alarms and Emergency Lighting,B1241,07/04/2015,46285342_14,120,Revenue,20002568,PYROTEC SERVICES LTD
Oxford City Council,Regeneration and Major Projects Team,Main Contractor,Y021,07/04/2015,46285342_15,18114,Capital,20002568,PYROTEC SERVICES LTD
Oxford City Council,HRA,Main Contractor,Y021,07/04/2015,46285342_16,15635,Capital,20002568,PYROTEC SERVICES LTD
Oxford City Council,Housing and Property,Fire Alarms and Emergency Lighting,B1241,07/04/2015,46285342_2,3451.96,Revenue,20002568,PYROTEC SERVICES LTD
Oxford City Council,Direct Services,Fire Alarms and Emergency Lighting,B1241,07/04/2015,46285342_3,125,Revenue,20002568,PYROTEC SERVICES LTD
Oxford City Council,Direct Services,Fire Alarms and Emergency Lighting,B1241,07/04/2015,46285342_4,353.75,Revenue,20002568,PYROTEC SERVICES LTD
Oxford City Council,Direct Services,Fire Alarms and Emergency Lighting,B1241,07/04/2015,46285342_5,312.51,Revenue,20002568,PYROTEC SERVICES LTD
Oxford City Council,Direct Services,Fire Alarms and Emergency Lighting,B1241,07/04/2015,46285342_6,43.74,Revenue,20002568,PYROTEC SERVICES LTD
Oxford City Council,Housing and Property,Fire Alarms and Emergency Lighting,B1241,07/04/2015,46285342_7,350,Revenue,20002568,PYROTEC SERVICES LTD
Oxford City Council,Housing and Property,Fire Alarms and Emergency Lighting,B1241,07/04/2015,46285342_8,180,Revenue,20002568,PYROTEC SERVICES LTD
Oxford City Council,Direct Services,Fire Alarms and Emergency Lighting,B1241,07/04/2015,46285342_9,321.25,Revenue,20002568,PYROTEC SERVICES LTD
Oxford City Council,Housing and Property,Services Maintenance (Planned),B1103,14/04/2015,46285403_1,988,Revenue,20002568,PYROTEC SERVICES LTD
Oxford City Council,HRA,Fire Alarms and Emergency Lighting,B1241,06/05/2015,46285704_1,6516.5,Revenue,20002568,PYROTEC SERVICES LTD
Oxford City Council,Housing and Property,Fire Alarms and Emergency Lighting,B1241,06/05/2015,46285704_2,961.24,Revenue,20002568,PYROTEC SERVICES LTD
Oxford City Council,Housing and Property,Fire Alarms and Emergency Lighting,B1241,06/05/2015,46285704_3,3035,Revenue,20002568,PYROTEC SERVICES LTD
Oxford City Council,Housing and Property,Fire Alarms and Emergency Lighting,B1241,06/05/2015,46285704_4,1362.49,Revenue,20002568,PYROTEC SERVICES LTD
Oxford City Council,Direct Services,Fire Alarms and Emergency Lighting,B1241,06/05/2015,46285704_5,40,Revenue,20002568,PYROTEC SERVICES LTD
Oxford City Council,Direct Services,Fire Alarms and Emergency Lighting,B1241,06/05/2015,46285704_6,76,Revenue,20002568,PYROTEC SERVICES LTD
Oxford City Council,Housing and Property,Fire Alarms and Emergency Lighting,B1241,06/05/2015,46285704_7,266.7,Revenue,20002568,PYROTEC SERVICES LTD
Oxford City Council,Direct Services,Reactive Maintenance & Minor Repairs,B1101,06/05/2015,46285704_8,8666,Revenue,20002568,PYROTEC SERVICES LTD
Oxford City Council,Regeneration and Major Projects Team,Main Contractor,Y021,06/05/2015,46285704_9,14119,Capital,20002568,PYROTEC SERVICES LTD
Oxford City Council,HRA,Fire Alarms and Emergency Lighting,B1241,02/06/2015,46286023_1,4459.91,Revenue,20002568,PYROTEC SERVICES LTD
Oxford City Council,HRA,Fire Alarms and Emergency Lighting,B1241,02/06/2015,46286023_2,330,Revenue,20002568,PYROTEC SERVICES LTD
Oxford City Council,Housing and Property,Fire Alarms and Emergency Lighting,B1241,02/06/2015,46286023_3,150,Revenue,20002568,PYROTEC SERVICES LTD
Oxford City Council,Housing and Property,Fire Alarms and Emergency Lighting,B1241,02/06/2015,46286023_4,55,Revenue,20002568,PYROTEC SERVICES LTD
Oxford City Council,Direct Services,Fire Alarms and Emergency Lighting,B1241,02/06/2015,46286023_5,40,Revenue,20002568,PYROTEC SERVICES LTD
Oxford City Council,Direct Services,Fire Alarms and Emergency Lighting,B1241,02/06/2015,46286023_6,40,Revenue,20002568,PYROTEC SERVICES LTD
Oxford City Council,Housing and Property,Fire Alarms and Emergency Lighting,B1241,02/06/2015,46286023_7,4895,Revenue,20002568,PYROTEC SERVICES LTD
Oxford City Council,Housing and Property,Fire Alarms and Emergency Lighting,B1241,02/06/2015,46286023_8,70,Revenue,20002568,PYROTEC SERVICES LTD
Oxford City Council,HRA,Fire Alarms and Emergency Lighting,B1241,30/06/2015,46286416_1,3361.93,Revenue,20002568,PYROTEC SERVICES LTD
Oxford City Council,Housing and Property,Fire Alarms and Emergency Lighting,B1241,30/06/2015,46286416_10,439.87,Revenue,20002568,PYROTEC SERVICES LTD
Oxford City Council,Direct Services,Fire Alarms and Emergency Lighting,B1241,30/06/2015,46286416_11,43.74,Revenue,20002568,PYROTEC SERVICES LTD
Oxford City Council,Housing and Property,Fire Alarms and Emergency Lighting,B1241,30/06/2015,46286416_12,422.7,Revenue,20002568,PYROTEC SERVICES LTD
Oxford City Council,Direct Services,Fire Alarms and Emergency Lighting,B1241,30/06/2015,46286416_2,323.75,Revenue,20002568,PYROTEC SERVICES LTD
Oxford City Council,Direct Services,Fire Alarms and Emergency Lighting,B1241,30/06/2015,46286416_3,321.25,Revenue,20002568,PYROTEC SERVICES LTD
Oxford City Council,Direct Services,Fire Alarms and Emergency Lighting,B1241,30/06/2015,46286416_4,243.75,Revenue,20002568,PYROTEC SERVICES LTD
Oxford City Council,Direct Services,Fire Alarms and Emergency Lighting,B1241,30/06/2015,46286416_5,312.51,Revenue,20002568,PYROTEC SERVICES LTD
Oxford City Council,Direct Services,Fire Alarms and Emergency Lighting,B1241,30/06/2015,46286416_6,125,Revenue,20002568,PYROTEC SERVICES LTD
Oxford City Council,Housing and Property,Fire Alarms and Emergency Lighting,B1241,30/06/2015,46286416_7,350,Revenue,20002568,PYROTEC SERVICES LTD
Oxford City Council,Housing and Property,Fire Alarms and Emergency Lighting,B1241,30/06/2015,46286416_8,2424.3,Revenue,20002568,PYROTEC SERVICES LTD
Oxford City Council,Housing and Property,Fire Alarms and Emergency Lighting,B1241,30/06/2015,46286416_9,571.15,Revenue,20002568,PYROTEC SERVICES LTD
Oxford City Council,Housing and Property,Main Contractor,Y021,19/05/2015,48021214_1,2009.1,Capital,20002568,PYROTEC SERVICES LTD
Oxford City Council,Housing and Property,Main Contractor,Y021,19/05/2015,48021215_1,2358.45,Capital,20002568,PYROTEC SERVICES LTD
Oxford City Council,Direct Services,Materials,D3021,23/06/2015,47980377_0,263.31,Revenue,20002610,JOHNSTON SWEEPERS LTD
Oxford City Council,Direct Services,Materials,D3021,23/06/2015,47980377_1,522.76,Revenue,20002610,JOHNSTON SWEEPERS LTD
Oxford City Council,Direct Services,Materials,D3021,27/05/2015,1016263_1,417.6,Revenue,20002617,W G POWELL
Oxford City Council,Direct Services,Materials,D3021,27/05/2015,1016263_2,95.04,Revenue,20002617,W G POWELL
Oxford City Council,Housing and Property,Services Maintenance (Planned),B1103,14/04/2015,46285400_1,2664.14,Revenue,20002633,ADT FIRE & SECURITY
Oxford City Council,Suspense,Materials,D3021   ,30/06/2015,60040100_0,523.26,Revenue,20002653,H TUCKWELL & SONS LTD
Oxford City Council,Direct Services,Materials,D3021   ,28/04/2015,60037369_0,593.1,Revenue,20002679,LOCKS & LATCHES (STAFFORD) LTD
Oxford City Council,Direct Services,Materials,D3021   ,19/05/2015,60037924_1,1089.5,Revenue,20002679,LOCKS & LATCHES (STAFFORD) LTD
Oxford City Council,Direct Services,Materials,D3021   ,30/06/2015,60040162_0,836.5,Revenue,20002679,LOCKS & LATCHES (STAFFORD) LTD
